{"text_format":"1","workbook":"xlsx","n_sheets":45,"sheets":["Свод","Баганский","Барабинский","Бердск","Болотнинский","Венгеровский","Доволенский","Здвинский","Искитим","Искитимский","Карасукский","Каргатский","Колыванский","Кольцово","Коченевский","Кочковский","Краснозерский","Куйбышевский","Купинский","Кыштовский","Маслянинский","Мошковский","Обь","Ордынский","Новосибирский","Северный","Сузунский","Татарский","Тогучинский","Убинский","Усть-Таркский","Чановский","Черепановский","Чистоозерный","Чулымский","Дзержинский ДОУ","Калининский ДОУ","Кировский ДОУ","Ленинский ДОУ","Октябрьский ДОУ","Первомайский ДОУ","Советский ДОУ","Центральный округ ДОУ","Школы Новосибирск","Конец"],"not_rendered":{"charts":0,"images":0,"macros":1,"external_links":1,"defined_names":0,"comments":24,"pivot_tables":0},"unopened":[],"bounds":{"document_bytes":16777216,"sheet_cells":100000,"rows_first":2000,"rows_last":500,"rows_between":2000,"halvings":0,"cell_chars":16384,"cell_head_chars":4096},"cells_cut":0,"cells_raw":0,"read":"whole","date_system":"1900"}

{"sheet":"Свод","index":0,"n_rows":51,"n_cols":48,"rows_kept":51,"cut":false,"hidden":false,"merged":[[30,1,32,1],[33,0,50,0],[33,1,36,1],[37,1,40,1],[41,1,44,1],[45,1,47,1],[48,1,50,1],[15,0,32,0],[15,1,18,1],[19,1,22,1],[23,1,26,1],[27,1,29,1],[3,0,14,0],[3,1,5,1],[6,1,8,1],[9,1,11,1],[12,1,14,1]]}
["Объёмы КЦ НСО по районам",null,2021,"год"]
[null,null,null,1,2,3,4,5,6,7,8,9,10,11,12,13,14,15,16,17,18,19,20,21,22,23,24,25,26,27,28,29,30,31,32,33,34,36,38,40,42,44]
[null,null,null,"Баганский","Барабинский","Бердск","Болотнинский","Венгеровский","Доволенский","Здвинский","Искитим","Искитимский","Карасукский","Каргатский","Колыванский","Кольцово","Коченевский","Кочковский","Краснозерский","Куйбышевский","Купинский","Кыштовский","Маслянинский","Мошковский","Обь","Ордынский","Новосибирский","Северный","Сузунский","Татарский","Тогучинский","Убинский","Усть-Таркский","Чановский","Черепановский","Чистоозерный","Чулымский","Дзержинский ДОУ","Калининский ДОУ","Кировский ДОУ","Ленинский ДОУ","Октябрьский ДОУ","Первомайский ДОУ","Советский ДОУ","Центральный округ ДОУ","Школы Новосибирск",null,"Итого"]
["Общее количество обращений по видам помощи в   1 квартале 2021 г.","методическая помощь","очная ",3,70,20,2,103,null,40,19,122,113,10,null,0,0,49,0,2,34,8,0,0,23,0,59,0,78,0,0,7,12,11,6,85,0,59,null,null,67,0,null,null,0,101,null,1103]
[null,null,"дистанционная",0,27,20,0,74,null,10,16,19,61,10,null,0,1,24,0,3,14,12,0,0,9,0,20,0,49,0,0,0,3,0,0,0,0,8,null,null,33,1,null,null,0,21,null,435]
[null,null,"выездная",0,0,0,0,3,null,0,0,1,0,0,null,0,0,0,0,0,0,0,0,0,0,0,1,0,7,0,0,0,3,0,0,0,0,0,null,null,0,0,null,null,0,1,null,16]
[null,"психолого-педагогическая помощь","очная",18,180,58,0,74,null,116,138,275,214,50,null,0,10,66,181,54,36,14,2,0,130,0,357,0,50,0,0,7,34,29,19,55,10,48,null,null,78,0,null,null,2,824,null,3129]
[null,null,"дистанционная",0,32,0,0,14,null,16,27,17,30,0,null,0,8,5,0,0,12,11,0,0,10,0,43,0,10,0,0,0,6,2,0,0,0,23,null,null,33,3,null,null,0,113,null,415]
[null,null,"выездная",0,1,0,0,5,null,0,3,9,0,0,null,0,5,3,0,0,6,0,0,0,0,0,0,0,8,0,0,0,3,0,0,0,0,0,null,null,0,0,null,null,0,0,null,43]
[null,"диагностическая помощь","очная",17,33,322,0,62,null,51,45,256,37,34,null,0,25,55,5,2,65,4,0,0,74,0,163,0,30,0,0,2,12,6,24,140,10,51,null,null,102,15,null,null,23,664,null,2329]
[null,null,"дистанционная",0,9,0,0,9,null,0,0,8,21,0,null,0,10,0,0,0,5,2,0,0,0,0,3,0,0,0,0,0,5,0,0,0,0,3,null,null,0,1,null,null,0,53,null,129]
[null,null,"выездная",5,0,0,0,0,null,0,0,0,0,2,null,0,0,0,0,0,9,0,0,0,0,0,0,0,41,0,0,0,0,0,0,0,0,0,null,null,0,0,null,null,0,0,null,57]
[null,"консультативная помощь","очная",42,460,343,5,85,null,181,373,538,195,109,null,41,56,188,111,113,96,54,8,0,76,0,1204,20,127,0,16,82,57,120,7,130,4,32,null,null,113,137,null,null,53,964,null,6140]
[null,null,"дистанционная",15,132,15,0,61,null,26,82,44,69,26,null,3,3,13,0,42,56,42,2,0,13,0,227,10,7,0,0,0,3,29,0,0,0,29,null,null,34,3,null,null,0,75,null,1061]
[null,null,"выездная",5,2,9,0,5,null,0,5,30,15,0,null,0,5,0,0,2,21,0,0,0,0,0,0,0,4,0,0,0,2,1,0,0,0,0,null,null,0,0,null,null,0,2,null,108]
["Общее количество родителей(законных представителей), обратившихся за помощью  в 1 квартале 2021 г","Количество родителей (з/пр) с детьми, получающими дошкольное образование                 в форме семейного образования"," до 1,5 лет",0,0,0,0,0,null,0,0,0,0,0,null,0,0,0,0,1,0,0,0,0,0,0,0,0,0,0,0,0,0,1,0,0,0,0,null,null,0,0,null,null,0,0,null,2]
[null,null,"от 1,5 до 3 лет",0,0,0,0,0,null,0,0,0,0,0,null,0,5,0,0,0,0,0,0,0,0,0,0,0,0,0,0,0,0,3,0,0,0,0,null,null,0,0,null,null,0,0,null,8]
[null,null,"от 3 до 7 лет",0,0,0,0,1,null,0,0,0,0,0,null,0,32,0,0,0,0,0,0,0,0,0,15,0,0,0,0,0,0,0,0,0,0,0,null,null,0,0,null,null,17,0,null,65]
[null,null,"7 лет и старше",0,0,0,0,0,null,0,0,0,0,0,null,0,0,0,0,0,0,0,0,0,0,0,0,0,0,0,0,0,0,0,0,0,0,0,null,null,0,0,null,null,0,0,null,0]
[null,"Количество родителей (з/пр) детей,  не получающих дошкольное образование","до 1,5 лет",0,2,0,0,0,null,0,1,0,0,0,null,0,0,0,0,8,0,2,0,0,0,0,0,0,0,0,0,0,2,2,0,0,0,1,null,null,15,0,null,null,0,0,null,33]
[null,null,"от 1,5 до 3 лет",0,12,5,2,5,null,0,2,1,0,0,null,0,0,0,0,7,0,5,5,0,0,0,5,0,0,0,0,1,9,7,0,0,0,0,null,null,62,0,null,null,0,0,null,128]
[null,null,"от 3 до 7 лет",2,6,4,4,12,null,0,1,0,25,2,null,0,0,0,0,7,0,8,0,0,0,0,7,1,0,0,2,5,3,4,0,0,0,5,null,null,4,5,null,null,0,0,null,107]
[null,null,"7 лет и старше",0,0,4,0,0,null,0,0,0,0,2,null,0,0,0,0,0,0,0,0,0,0,0,0,0,0,0,0,0,0,0,0,0,0,4,null,null,3,0,null,null,0,0,null,13]
[null,"Количество родителей (з/пр),  с детьми, получающими дошкольное образование в ДОО","до 1,5 лет",0,0,0,0,0,null,0,2,6,1,0,null,0,0,0,0,3,0,0,0,0,0,0,0,0,2,0,0,0,0,2,0,0,0,1,null,null,0,0,null,null,0,0,null,17]
[null,null,"от 1,5 до 3 лет",0,40,4,0,7,null,22,20,52,25,11,null,0,0,0,11,21,0,17,4,0,0,0,37,2,15,0,0,2,0,11,1,0,0,64,null,null,13,0,null,null,0,0,null,379]
[null,null,"от 3 до 7 лет",9,259,97,0,25,null,122,157,326,44,14,null,0,0,8,45,134,25,42,3,0,0,0,481,8,97,0,11,5,30,49,6,0,1,168,null,null,110,155,null,null,47,4,null,2482]
[null,null,"7 лет и старше",0,1,12,0,0,null,6,6,5,0,1,null,0,0,0,0,6,2,5,0,0,0,0,8,0,0,0,0,0,0,6,0,0,0,9,null,null,2,0,null,null,0,0,null,69]
[null,"Количество родителей (з/пр),  с детьми школьниками, получающими  образование в форме семейного образования","7-11 лет",0,0,0,0,0,null,2,0,39,4,0,null,0,0,0,0,0,0,0,0,0,0,0,1,0,0,0,0,0,2,0,0,0,0,0,null,null,0,0,null,null,0,1,null,49]
[null,null,"12-15 лет",0,0,0,0,0,null,0,0,29,5,0,null,0,1,0,0,0,0,0,0,0,0,0,2,0,1,0,0,0,0,1,0,0,0,0,null,null,0,0,null,null,0,6,null,45]
[null,null,"16 лет и старше",0,0,3,0,2,null,0,0,4,9,16,null,0,1,0,0,0,0,0,0,0,0,0,0,0,0,0,0,0,0,1,0,0,0,0,null,null,0,0,null,null,0,13,null,49]
[null,"Количество родителей (з/пр), обратившихся  с детьми школьниками, получающими  образование в ОО","7-11 лет",19,265,71,0,37,null,86,186,189,79,51,null,21,25,112,0,15,25,3,0,0,22,0,595,4,66,0,2,17,21,50,21,72,13,1,null,null,2,0,null,null,0,329,null,2399]
[null,null," 12-15 лет",10,252,94,0,41,null,142,194,143,270,16,null,17,20,91,0,14,30,9,0,0,72,0,416,2,96,0,1,56,49,52,0,135,8,0,null,null,0,0,null,null,0,385,null,2615]
[null,null,"16 лет и старше",4,67,33,0,8,null,14,89,43,215,2,null,6,3,22,0,2,6,0,0,0,14,0,69,0,43,0,0,0,24,3,0,56,2,0,null,null,0,0,null,null,0,170,null,895]
["Общее количество детей, охваченных услугами в 1 квартале  2021 г","Количество детей, получающих дошкольное образование в семейной форме"," до 1,5 лет",0,0,0,0,0,null,0,0,0,0,0,null,0,0,0,0,1,0,0,0,0,0,0,0,0,0,0,0,0,0,1,0,0,0,0,null,null,0,0,null,null,0,0,null,2]
[null,null,"от 1,5 до 3 лет",0,0,0,0,0,null,0,0,0,0,0,null,0,0,0,0,0,0,0,0,0,0,0,0,0,0,0,0,0,0,3,0,0,0,37,null,null,0,0,null,null,0,0,null,40]
[null,null,"от 3 до 7 лет",0,0,0,0,1,null,0,0,0,0,0,null,0,0,0,0,76,0,0,0,0,0,0,0,0,0,0,0,0,0,0,0,0,0,42,null,null,0,0,null,null,0,0,null,119]
[null,null," 7 лет и старше",0,0,0,0,0,null,0,0,0,0,0,null,0,0,0,0,0,0,0,0,0,0,0,0,0,0,0,0,0,0,0,0,0,0,0,null,null,0,0,null,null,0,0,null,0]
[null,"Количество детей, не получающих дошкольное образование"," до 1,5 лет",0,3,0,0,0,null,0,1,0,0,0,null,0,0,0,0,8,0,0,0,0,0,0,0,0,0,0,0,0,2,2,0,0,0,1,null,null,7,0,null,null,0,0,null,24]
[null,null,"от 1,5 до 3 лет",0,12,0,2,0,null,0,2,1,0,0,null,0,0,0,0,7,0,0,5,0,0,0,5,0,0,0,0,1,9,7,0,0,0,1,null,null,31,0,null,null,0,0,null,83]
[null,null,"от 3 до 7 лет",2,5,10,4,12,null,0,1,0,0,0,null,0,0,0,0,7,0,0,0,0,0,0,7,1,0,0,2,5,3,4,0,0,0,7,null,null,16,5,null,null,0,0,null,91]
[null,null," 7 лет и старше",0,0,4,0,0,null,0,0,0,0,2,null,0,0,0,0,0,0,0,0,0,0,0,0,0,0,0,0,0,0,0,0,0,0,4,null,null,0,0,null,null,0,0,null,10]
[null,"Количество детей, получающих дошкольное образование в ДОО","до 1,5 лет",0,0,0,0,0,null,0,1,6,1,0,null,0,0,0,0,3,0,0,0,0,0,0,0,0,2,0,0,0,0,0,0,0,0,1,null,null,0,0,null,null,0,0,null,14]
[null,null,"от 1,5 до 3 лет",0,40,16,0,0,null,22,26,56,54,7,null,0,3,0,11,21,0,17,4,0,0,0,37,2,17,0,0,2,0,11,1,0,0,64,null,null,23,0,null,null,0,0,null,434]
[null,null,"от 3 до 7 лет",9,255,152,0,47,null,122,153,326,92,13,null,0,52,8,55,58,24,53,3,0,0,0,479,8,103,0,11,5,30,51,6,0,1,162,null,null,130,155,null,null,105,4,null,2672]
[null,null,"7 лет и старше",0,1,7,0,0,null,6,6,5,2,1,null,0,0,0,0,6,1,4,0,0,0,0,8,0,0,0,0,0,0,6,0,0,0,9,null,null,21,0,null,null,0,0,null,83]
[null,"Количество детей школьников, получающих образование в семейной форме","7-11 лет",0,0,2,0,0,null,2,0,1,4,0,null,0,0,0,0,0,0,0,0,0,0,0,2,0,0,0,0,0,2,0,0,0,0,0,null,null,2,0,null,null,0,5,null,20]
[null,null," 12-15 лет",0,0,1,0,0,null,0,0,0,4,0,null,0,1,0,0,0,0,0,0,0,0,0,1,0,1,0,0,0,0,1,0,0,0,0,null,null,0,0,null,null,0,18,null,27]
[null,null,"16 лет и старше",0,0,1,0,3,null,0,0,0,9,16,null,0,1,0,0,0,0,0,0,0,0,0,2,0,0,0,0,0,0,1,0,0,0,0,null,null,0,0,null,null,0,12,null,45]
[null,"Количество детей школьников, получающих образование в ОО","7-11 лет",19,268,12,0,37,null,86,193,277,79,39,null,21,25,116,0,15,35,3,0,0,22,0,608,4,66,0,2,17,21,49,24,95,13,1,null,null,1,0,null,null,0,809,null,2957]
[null,null,"12-15 лет",10,253,112,0,44,null,142,199,205,270,45,null,17,20,91,0,16,43,9,0,0,98,0,437,2,124,0,1,56,49,52,0,100,8,0,null,null,0,0,null,null,0,981,null,3384]
[null,null,"16 лет и старше",4,68,131,0,13,null,14,90,60,215,3,null,6,3,23,0,2,4,0,0,0,16,0,69,0,46,0,0,0,24,3,0,45,2,0,null,null,0,0,null,null,0,398,null,1239]

{"sheet":"Баганский","index":1,"n_rows":49,"n_cols":7,"rows_kept":49,"cut":false,"hidden":false,"merged":[[31,0,48,0],[31,1,34,1],[43,1,45,1],[46,1,48,1],[35,1,38,1],[39,1,42,1],[21,1,24,1],[1,0,12,0],[1,1,3,1],[4,1,6,1],[7,1,9,1],[10,1,12,1],[13,0,30,0],[13,1,16,1],[17,1,20,1],[25,1,27,1],[28,1,30,1]]}
[null,null,null,"МКОУ Баганская СОШ №1","МКОУ Баганская СОШ№2","МКДОУ Баганский детский сад №2","Итого"]
["Общее количество обращений по видам помощи в   1 квартале 2022 г.","методическая помощь","очная ",1,0,2,3]
[null,null,"дистанционная",0,0,0,0]
[null,null,"выездная",0,0,0,0]
[null,"психолого-педагогическая помощь","очная",10,2,6,18]
[null,null,"дистанционная",0,0,0,0]
[null,null,"выездная",0,0,0,0]
[null,"диагностическая помощь","очная",5,2,10,17]
[null,null,"дистанционная",0,0,0,0]
[null,null,"выездная",0,0,5,5]
[null,"консультативная помощь","очная",13,19,10,42]
[null,null,"дистанционная",0,0,15,15]
[null,null,"выездная",0,0,5,5]
["Общее количество родителей(законных представителей), обратившихся за помощью  в 1 квартале 2022 г","Количество родителей (з/пр) с детьми, получающими дошкольное образование                 в форме семейного образования"," до 1,5 лет",0,0,0,0]
[null,null,"от 1,5 до 3 лет",0,0,0,0]
[null,null,"от 3 до 7 лет",0,0,0,0]
[null,null,"7 лет и старше",0,0,0,0]
[null,"Количество родителей (з/пр) детей,  не получающих дошкольное образование","до 1,5 лет",0,0,0,0]
[null,null,"от 1,5 до 3 лет",0,0,0,0]
[null,null,"от 3 до 7 лет",1,0,1,2]
[null,null,"7 лет и старше",0,0,0,0]
[null,"Количество родителей (з/пр),  с детьми, получающими дошкольное образование в ДОО","до 1,5 лет",0,0,0,0]
[null,null,"от 1,5 до 3 лет",0,0,0,0]
[null,null,"от 3 до 7 лет",0,0,9,9]
[null,null,"7 лет и старше",0,0,0,0]
[null,"Количество родителей (з/пр),  с детьми школьниками, получающими  образование в форме семейного образования","7-11 лет",0,0,0,0]
[null,null,"12-15 лет",0,0,0,0]
[null,null,"16 лет и старше",0,0,0,0]
[null,"Количество родителей (з/пр), обратившихся  с детьми школьниками, получающими  образование в ОО","7-11 лет",4,15,0,19]
[null,null," 12-15 лет",5,5,0,10]
[null,null,"16 лет и старше",3,1,0,4]
["Общее количество детей, охваченных услугами в 1 квартале  2022 г","Количество детей, получающих дошкольное образование в семейной форме"," до 1,5 лет",0,0,0,0]
[null,null,"от 1,5 до 3 лет",0,0,0,0]
[null,null,"от 3 до 7 лет",0,0,0,0]
[null,null," 7 лет и старше",0,0,0,0]
[null,"Количество детей, не получающих дошкольное образование"," до 1,5 лет",0,0,0,0]
[null,null,"от 1,5 до 3 лет",0,0,0,0]
[null,null,"от 3 до 7 лет",1,0,1,2]
[null,null," 7 лет и старше",0,0,0,0]
[null,"Количество детей, получающих дошкольное образование в ДОО","до 1,5 лет",0,0,0,0]
[null,null,"от 1,5 до 3 лет",0,0,0,0]
[null,null,"от 3 до 7 лет",0,0,9,9]
[null,null,"7 лет и старше",0,0,0,0]
[null,"Количество детей школьников, получающих образование в семейной форме","7-11 лет",0,0,0,0]
[null,null," 12-15 лет",0,0,0,0]
[null,null,"16 лет и старше",0,0,0,0]
[null,"Количество детей школьников, получающих образование в ОО","7-11 лет",4,15,0,19]
[null,null,"12-15 лет",5,5,0,10]
[null,null,"16 лет и старше",3,1,0,4]

{"sheet":"Барабинский","index":2,"n_rows":49,"n_cols":25,"rows_kept":49,"cut":false,"hidden":false,"merged":[[31,0,48,0],[31,1,34,1],[43,1,45,1],[46,1,48,1],[35,1,38,1],[39,1,42,1],[21,1,24,1],[1,0,12,0],[1,1,3,1],[4,1,6,1],[7,1,9,1],[10,1,12,1],[13,0,30,0],[13,1,16,1],[17,1,20,1],[25,1,27,1],[28,1,30,1]]}
[null,"1 квартал 2022",null,"МКДОУ №1 \"Ручеек\"","МКДОУ №2","МКДОУ №3","МКДОУ №4","МКДОУ №5 \"Рябинка\"","МКДОУ №6","МБДОУ №7 \"Радуга\"","МБДОУ №8 \"Солнышко\"","МКОУ СОШ №1","МБОУ СОШ №2","МБОУ СОШ №3","МКОУ СОШ №47","МБОУ СОШ №92","МБОУ СОШ №93","МКОУ Новоспасская СОШ","МКОУ Новочановская СОШ","МКОУ Новониколаевская СОШ","МКОУ Шубинская СОШ","МКОУ Кармаклинская СОШ","МКОУ Зюзинская СОШ","МКОУ Таскаевская СОШ","Итого"]
["Общее количество обращений по видам помощи в   1 квартале 2022 г.","методическая помощь","очная ",4,null,11,null,null,null,null,5,6,3,null,6,4,null,null,null,null,3,10,3,15,70]
[null,null,"дистанционная",null,null,null,null,null,null,null,null,2,null,null,null,null,null,null,null,null,3,2,8,12,27]
[null,null,"выездная",null,null,null,null,null,null,null,null,null,null,null,null,null,null,null,null,null,null,null,null,null,0]
[null,"психолого-педагогическая помощь","очная",31,5,12,null,null,null,null,31,12,12,null,2,null,null,7,3,18,17,24,4,2,180]
[null,null,"дистанционная",3,2,null,null,null,null,null,4,null,6,null,2,null,null,null,null,null,2,2,6,5,32]
[null,null,"выездная",null,null,null,null,null,null,null,null,null,null,null,null,null,null,null,null,null,1,null,null,null,1]
[null,"диагностическая помощь","очная",null,null,null,null,null,null,4,null,8,5,null,1,null,null,10,null,null,null,null,2,3,33]
[null,null,"дистанционная",null,null,null,null,null,null,null,null,null,null,null,null,null,null,null,null,null,null,null,7,2,9]
[null,null,"выездная",null,null,null,null,null,null,null,null,null,null,null,null,null,null,null,null,null,null,null,null,null,0]
[null,"консультативная помощь","очная",null,2,15,38,37,24,50,2,18,7,19,60,54,53,23,21,20,9,null,3,5,460]
[null,null,"дистанционная",null,null,null,null,null,19,null,2,7,20,null,35,27,1,null,10,null,3,null,5,3,132]
[null,null,"выездная",null,null,null,null,null,null,null,null,null,null,1,null,null,null,null,null,null,1,null,null,null,2]
["Общее количество родителей(законных представителей), обратившихся за помощью  в 1 квартале 2022 г","Количество родителей (з/пр) с детьми, получающими дошкольное образование                 в форме семейного образования"," до 1,5 лет",null,null,null,null,null,null,null,null,null,null,null,null,null,null,null,null,null,null,null,null,null,0]
[null,null,"от 1,5 до 3 лет",null,null,null,null,null,null,null,null,null,null,null,null,null,null,null,null,null,null,null,null,null,0]
[null,null,"от 3 до 7 лет",null,null,null,null,null,null,null,null,null,null,null,null,null,null,null,null,null,null,null,null,null,0]
[null,null,"7 лет и старше",null,null,null,null,null,null,null,null,null,null,null,null,null,null,null,null,null,null,null,null,null,0]
[null,"Количество родителей (з/пр) детей,  не получающих дошкольное образование","до 1,5 лет",null,null,null,null,null,null,2,null,null,null,null,null,null,null,null,null,null,null,null,null,null,2]
[null,null,"от 1,5 до 3 лет",null,null,null,null,null,null,11,null,null,null,null,null,null,null,null,null,1,null,null,null,null,12]
[null,null,"от 3 до 7 лет",null,null,null,null,null,null,5,null,null,null,null,null,null,null,null,null,1,null,null,null,null,6]
[null,null,"7 лет и старше",null,null,null,null,null,null,null,null,null,null,null,null,null,null,null,null,null,null,null,null,null,0]
[null,"Количество родителей (з/пр),  с детьми, получающими дошкольное образование в ДОО","до 1,5 лет",null,null,null,null,null,null,null,null,null,null,null,null,null,null,null,null,null,null,null,null,null,0]
[null,null,"от 1,5 до 3 лет",null,3,null,8,null,4,15,6,null,null,null,null,null,null,null,null,null,null,4,null,null,40]
[null,null,"от 3 до 7 лет",38,3,38,30,37,30,21,38,null,null,null,null,null,null,null,null,6,null,8,5,5,259]
[null,null,"7 лет и старше",null,null,null,null,null,1,null,null,null,null,null,null,null,null,null,null,null,null,null,null,null,1]
[null,"Количество родителей (з/пр),  с детьми школьниками, получающими  образование в форме семейного образования","7-11 лет",null,null,null,null,null,null,null,null,null,null,null,null,null,null,null,null,null,null,null,null,null,0]
[null,null,"12-15 лет",null,null,null,null,null,null,null,null,null,null,null,null,null,null,null,null,null,null,null,null,null,0]
[null,null,"16 лет и старше",null,null,null,null,null,null,null,null,null,null,null,null,null,null,null,null,null,null,null,null,null,0]
[null,"Количество родителей (з/пр), обратившихся  с детьми школьниками, получающими  образование в ОО","7-11 лет",null,null,null,null,null,null,null,null,32,16,9,70,15,35,3,20,16,3,12,17,17,265]
[null,null," 12-15 лет",null,null,null,null,null,null,null,null,18,18,6,32,58,17,34,13,10,9,13,12,12,252]
[null,null,"16 лет и старше",null,null,null,null,null,null,null,null,3,19,1,4,12,2,3,1,2,10,1,4,5,67]
["Общее количество детей, охваченных услугами в 1 квартале  2022 г","Количество детей, получающих дошкольное образование в семейной форме"," до 1,5 лет",null,null,null,null,null,null,null,null,null,null,null,null,null,null,null,null,null,null,null,null,null,0]
[null,null,"от 1,5 до 3 лет",null,null,null,null,null,null,null,null,null,null,null,null,null,null,null,null,null,null,null,null,null,0]
[null,null,"от 3 до 7 лет",null,null,null,null,null,null,null,null,null,null,null,null,null,null,null,null,null,null,null,null,null,0]
[null,null," 7 лет и старше",null,null,null,null,null,null,null,null,null,null,null,null,null,null,null,null,null,null,null,null,null,0]
[null,"Количество детей, не получающих дошкольное образование"," до 1,5 лет",null,null,null,null,null,null,2,null,null,null,null,null,null,null,null,null,1,null,null,null,null,3]
[null,null,"от 1,5 до 3 лет",null,null,null,null,null,null,11,null,null,null,null,null,null,null,null,null,1,null,null,null,null,12]
[null,null,"от 3 до 7 лет",null,null,null,null,null,null,5,null,null,null,null,null,null,null,null,null,null,null,null,null,null,5]
[null,null," 7 лет и старше",null,null,null,null,null,null,null,null,null,null,null,null,null,null,null,null,null,null,null,null,null,0]
[null,"Количество детей, получающих дошкольное образование в ДОО","до 1,5 лет",null,null,null,null,null,null,null,null,null,null,null,null,null,null,null,null,null,null,null,null,null,0]
[null,null,"от 1,5 до 3 лет",null,3,null,8,null,4,15,6,null,null,null,null,null,null,null,null,null,null,4,null,null,40]
[null,null,"от 3 до 7 лет",34,3,38,30,37,30,21,38,null,null,null,null,null,null,null,null,6,null,8,5,5,255]
[null,null,"7 лет и старше",null,null,null,null,null,1,null,null,null,null,null,null,null,null,null,null,null,null,null,null,null,1]
[null,"Количество детей школьников, получающих образование в семейной форме","7-11 лет",null,null,null,null,null,null,null,null,null,null,null,null,null,null,null,null,null,null,null,null,null,0]
[null,null," 12-15 лет",null,null,null,null,null,null,null,null,null,null,null,null,null,null,null,null,null,null,null,null,null,0]
[null,null,"16 лет и старше",null,null,null,null,null,null,null,null,null,null,null,null,null,null,null,null,null,null,null,null,null,0]
[null,"Количество детей школьников, получающих образование в ОО","7-11 лет",null,null,null,null,null,null,null,null,32,16,9,70,15,35,3,20,18,4,12,17,17,268]
[null,null,"12-15 лет",null,null,null,null,null,null,null,null,18,18,6,32,58,17,34,13,10,10,13,12,12,253]
[null,null,"16 лет и старше",null,null,null,null,null,null,null,null,3,19,1,4,12,2,3,1,2,11,1,4,5,68]

{"sheet":"Бердск","index":3,"n_rows":49,"n_cols":6,"rows_kept":49,"cut":false,"hidden":false,"merged":[[13,0,30,0],[13,1,16,1],[31,0,48,0],[31,1,34,1],[43,1,45,1],[46,1,48,1],[35,1,38,1],[17,1,20,1],[25,1,27,1],[28,1,30,1],[21,1,24,1],[39,1,42,1],[1,0,12,0],[1,1,3,1],[4,1,6,1],[7,1,9,1],[10,1,12,1]]}
[null,null,null,"МБОУ СОШ № 9","МБОУ ДО \"Перспектива\"","Итого"]
["Общее количество обращений по видам помощи в   1 квартале 2022 г.","методическая помощь","очная ",0,20,20]
[null,null,"дистанционная",0,20,20]
[null,null,"выездная",0,0,0]
[null,"психолого-педагогическая помощь","очная",0,58,58]
[null,null,"дистанционная",0,0,0]
[null,null,"выездная",0,0,0]
[null,"диагностическая помощь","очная",0,322,322]
[null,null,"дистанционная",0,0,0]
[null,null,"выездная",0,0,0]
[null,"консультативная помощь","очная",18,325,343]
[null,null,"дистанционная",0,15,15]
[null,null,"выездная",8,1,9]
["Общее количество родителей(законных представителей), обратившихся за помощью  в 1 квартале 2022 г","Количество родителей (з/пр) с детьми, получающими дошкольное образование                 в форме семейного образования"," до 1,5 лет",0,0,0]
[null,null,"от 1,5 до 3 лет",0,0,0]
[null,null,"от 3 до 7 лет",0,0,0]
[null,null,"7 лет и старше",0,0,0]
[null,"Количество родителей (з/пр) детей,  не получающих дошкольное образование","до 1,5 лет",0,0,0]
[null,null,"от 1,5 до 3 лет",0,5,5]
[null,null,"от 3 до 7 лет",0,4,4]
[null,null,"7 лет и старше",0,4,4]
[null,"Количество родителей (з/пр),  с детьми, получающими дошкольное образование в ДОО","до 1,5 лет",0,0,0]
[null,null,"от 1,5 до 3 лет",0,4,4]
[null,null,"от 3 до 7 лет",0,97,97]
[null,null,"7 лет и старше",0,12,12]
[null,"Количество родителей (з/пр),  с детьми школьниками, получающими  образование в форме семейного образования","7-11 лет",0,0,0]
[null,null,"12-15 лет",0,0,0]
[null,null,"16 лет и старше",0,3,3]
[null,"Количество родителей (з/пр), обратившихся  с детьми школьниками, получающими  образование в ОО","7-11 лет",7,64,71]
[null,null," 12-15 лет",15,79,94]
[null,null,"16 лет и старше",4,29,33]
["Общее количество детей, охваченных услугами в 1 квартале  2022 г","Количество детей, получающих дошкольное образование в семейной форме"," до 1,5 лет",0,0,0]
[null,null,"от 1,5 до 3 лет",0,0,0]
[null,null,"от 3 до 7 лет",0,0,0]
[null,null," 7 лет и старше",0,0,0]
[null,"Количество детей, не получающих дошкольное образование"," до 1,5 лет",0,0,0]
[null,null,"от 1,5 до 3 лет",0,0,0]
[null,null,"от 3 до 7 лет",0,10,10]
[null,null," 7 лет и старше",0,4,4]
[null,"Количество детей, получающих дошкольное образование в ДОО","до 1,5 лет",0,0,0]
[null,null,"от 1,5 до 3 лет",0,16,16]
[null,null,"от 3 до 7 лет",0,152,152]
[null,null,"7 лет и старше",0,7,7]
[null,"Количество детей школьников, получающих образование в семейной форме","7-11 лет",0,2,2]
[null,null," 12-15 лет",0,1,1]
[null,null,"16 лет и старше",0,1,1]
[null,"Количество детей школьников, получающих образование в ОО","7-11 лет",11,1,12]
[null,null,"12-15 лет",20,92,112]
[null,null,"16 лет и старше",4,127,131]

{"sheet":"Болотнинский","index":4,"n_rows":49,"n_cols":5,"rows_kept":49,"cut":false,"hidden":false,"merged":[[31,0,48,0],[31,1,34,1],[43,1,45,1],[46,1,48,1],[35,1,38,1],[39,1,42,1],[21,1,24,1],[1,0,12,0],[1,1,3,1],[4,1,6,1],[7,1,9,1],[10,1,12,1],[13,0,30,0],[13,1,16,1],[17,1,20,1],[25,1,27,1],[28,1,30,1]]}
[null,null,null,"МБДОУ д.сад \"Сказка\"","Итого"]
["Общее количество обращений по видам помощи в   1 квартале 2022 г.","методическая помощь","очная ",2,2]
[null,null,"дистанционная",null,0]
[null,null,"выездная",null,0]
[null,"психолого-педагогическая помощь","очная",null,0]
[null,null,"дистанционная",null,0]
[null,null,"выездная",null,0]
[null,"диагностическая помощь","очная",null,0]
[null,null,"дистанционная",null,0]
[null,null,"выездная",null,0]
[null,"консультативная помощь","очная",5,5]
[null,null,"дистанционная",null,0]
[null,null,"выездная",null,0]
["Общее количество родителей(законных представителей), обратившихся за помощью  в 1 квартале 2022 г","Количество родителей (з/пр) с детьми, получающими дошкольное образование                 в форме семейного образования"," до 1,5 лет",null,0]
[null,null,"от 1,5 до 3 лет",null,0]
[null,null,"от 3 до 7 лет",null,0]
[null,null,"7 лет и старше",null,0]
[null,"Количество родителей (з/пр) детей,  не получающих дошкольное образование","до 1,5 лет",null,0]
[null,null,"от 1,5 до 3 лет",2,2]
[null,null,"от 3 до 7 лет",4,4]
[null,null,"7 лет и старше",null,0]
[null,"Количество родителей (з/пр),  с детьми, получающими дошкольное образование в ДОО","до 1,5 лет",null,0]
[null,null,"от 1,5 до 3 лет",null,0]
[null,null,"от 3 до 7 лет",null,0]
[null,null,"7 лет и старше",null,0]
[null,"Количество родителей (з/пр),  с детьми школьниками, получающими  образование в форме семейного образования","7-11 лет",null,0]
[null,null,"12-15 лет",null,0]
[null,null,"16 лет и старше",null,0]
[null,"Количество родителей (з/пр), обратившихся  с детьми школьниками, получающими  образование в ОО","7-11 лет",null,0]
[null,null," 12-15 лет",null,0]
[null,null,"16 лет и старше",null,0]
["Общее количество детей, охваченных услугами в 1 квартале  2022 г","Количество детей, получающих дошкольное образование в семейной форме"," до 1,5 лет",null,0]
[null,null,"от 1,5 до 3 лет",null,0]
[null,null,"от 3 до 7 лет",null,0]
[null,null," 7 лет и старше",null,0]
[null,"Количество детей, не получающих дошкольное образование"," до 1,5 лет",null,0]
[null,null,"от 1,5 до 3 лет",2,2]
[null,null,"от 3 до 7 лет",4,4]
[null,null," 7 лет и старше",null,0]
[null,"Количество детей, получающих дошкольное образование в ДОО","до 1,5 лет",null,0]
[null,null,"от 1,5 до 3 лет",null,0]
[null,null,"от 3 до 7 лет",null,0]
[null,null,"7 лет и старше",null,0]
[null,"Количество детей школьников, получающих образование в семейной форме","7-11 лет",null,0]
[null,null," 12-15 лет",null,0]
[null,null,"16 лет и старше",null,0]
[null,"Количество детей школьников, получающих образование в ОО","7-11 лет",null,0]
[null,null,"12-15 лет",null,0]
[null,null,"16 лет и старше",null,0]

{"sheet":"Венгеровский","index":5,"n_rows":49,"n_cols":9,"rows_kept":49,"cut":false,"hidden":false,"merged":[[21,1,24,1],[35,1,38,1],[13,0,30,0],[13,1,16,1],[39,1,42,1],[31,0,48,0],[31,1,34,1],[43,1,45,1],[46,1,48,1],[17,1,20,1],[25,1,27,1],[28,1,30,1],[1,0,12,0],[1,1,3,1],[4,1,6,1],[7,1,9,1],[10,1,12,1]]}
[null,null,null,"МКОУ Венгеровская СОШ № 1","МКОУ Венгеровская СОШ № 2","МКОУ Тартасская СОШ","МКОУ Вознесенская СКШИ","МКДОУ Венгеровский детский сад № 4","Итого"]
["Общее количество обращений по видам помощи в   1 квартале 2022 г.","методическая помощь","очная ",15,21,7,7,53,103]
[null,null,"дистанционная",0,0,5,10,59,74]
[null,null,"выездная",0,0,3,0,0,3]
[null,"психолого-педагогическая помощь","очная",24,26,10,6,8,74]
[null,null,"дистанционная",0,0,1,8,5,14]
[null,null,"выездная",0,0,5,0,0,5]
[null,"диагностическая помощь","очная",24,26,null,5,7,62]
[null,null,"дистанционная",0,0,1,8,0,9]
[null,null,"выездная",0,0,null,0,0,0]
[null,"консультативная помощь","очная",11,28,10,12,24,85]
[null,null,"дистанционная",0,0,6,23,32,61]
[null,null,"выездная",0,0,5,0,0,5]
["Общее количество родителей(законных представителей), обратившихся за помощью  в 1 квартале 2022 г","Количество родителей (з/пр) с детьми, получающими дошкольное образование                 в форме семейного образования"," до 1,5 лет",0,0,null,0,0,0]
[null,null,"от 1,5 до 3 лет",0,0,null,0,0,0]
[null,null,"от 3 до 7 лет",0,0,1,0,0,1]
[null,null,"7 лет и старше",0,0,null,0,0,0]
[null,"Количество родителей (з/пр) детей,  не получающих дошкольное образование","до 1,5 лет",0,0,null,0,0,0]
[null,null,"от 1,5 до 3 лет",0,0,null,0,5,5]
[null,null,"от 3 до 7 лет",0,0,12,0,0,12]
[null,null,"7 лет и старше",0,0,null,0,0,0]
[null,"Количество родителей (з/пр),  с детьми, получающими дошкольное образование в ДОО","до 1,5 лет",0,0,null,0,0,0]
[null,null,"от 1,5 до 3 лет",0,0,null,0,7,7]
[null,null,"от 3 до 7 лет",0,0,7,0,18,25]
[null,null,"7 лет и старше",0,0,null,0,0,0]
[null,"Количество родителей (з/пр),  с детьми школьниками, получающими  образование в форме семейного образования","7-11 лет",0,0,null,0,0,0]
[null,null,"12-15 лет",0,0,null,0,0,0]
[null,null,"16 лет и старше",1,0,1,0,0,2]
[null,"Количество родителей (з/пр), обратившихся  с детьми школьниками, получающими  образование в ОО","7-11 лет",9,12,12,4,0,37]
[null,null," 12-15 лет",3,14,18,6,0,41]
[null,null,"16 лет и старше",3,1,2,2,0,8]
["Общее количество детей, охваченных услугами в 1 квартале  2022 г","Количество детей, получающих дошкольное образование в семейной форме"," до 1,5 лет",0,0,null,0,0,0]
[null,null,"от 1,5 до 3 лет",0,0,null,0,0,0]
[null,null,"от 3 до 7 лет",0,0,1,0,0,1]
[null,null," 7 лет и старше",0,0,null,0,0,0]
[null,"Количество детей, не получающих дошкольное образование"," до 1,5 лет",0,0,null,0,0,0]
[null,null,"от 1,5 до 3 лет",0,0,null,0,0,0]
[null,null,"от 3 до 7 лет",0,0,12,0,0,12]
[null,null," 7 лет и старше",0,0,null,0,0,0]
[null,"Количество детей, получающих дошкольное образование в ДОО","до 1,5 лет",0,0,null,0,0,0]
[null,null,"от 1,5 до 3 лет",0,0,null,0,0,0]
[null,null,"от 3 до 7 лет",0,0,7,0,40,47]
[null,null,"7 лет и старше",0,0,null,0,0,0]
[null,"Количество детей школьников, получающих образование в семейной форме","7-11 лет",0,0,null,0,0,0]
[null,null," 12-15 лет",0,0,null,0,0,0]
[null,null,"16 лет и старше",1,1,1,0,0,3]
[null,"Количество детей школьников, получающих образование в ОО","7-11 лет",5,12,12,8,0,37]
[null,null,"12-15 лет",4,14,18,8,0,44]
[null,null,"16 лет и старше",9,0,2,2,0,13]

{"sheet":"Доволенский","index":6,"n_rows":49,"n_cols":4,"rows_kept":49,"cut":false,"hidden":false,"merged":[[1,0,12,0],[1,1,3,1],[4,1,6,1],[7,1,9,1],[10,1,12,1],[28,1,30,1],[31,0,48,0],[31,1,34,1],[35,1,38,1],[39,1,42,1],[43,1,45,1],[46,1,48,1],[13,0,30,0],[13,1,16,1],[17,1,20,1],[21,1,24,1],[25,1,27,1]]}
[null,null,null,"Итого"]
["Общее количество обращений по видам помощи в   1 квартале 2021 г.","методическая помощь","очная "]
[null,null,"дистанционная"]
[null,null,"выездная"]
[null,"психолого-педагогическая помощь","очная"]
[null,null,"дистанционная"]
[null,null,"выездная"]
[null,"диагностическая помощь","очная"]
[null,null,"дистанционная"]
[null,null,"выездная"]
[null,"консультативная помощь","очная"]
[null,null,"дистанционная"]
[null,null,"выездная"]
["Общее количество родителей(законных представителей), обратившихся за помощью  в 1 квартале 2021 г","Количество родителей (з/пр) с детьми, получающими дошкольное образование                 в форме семейного образования"," до 1,5 лет"]
[null,null,"от 1,5 до 3 лет"]
[null,null,"от 3 до 7 лет"]
[null,null,"7 лет и старше"]
[null,"Количество родителей (з/пр) детей,  не получающих дошкольное образование","до 1,5 лет"]
[null,null,"от 1,5 до 3 лет"]
[null,null,"от 3 до 7 лет"]
[null,null,"7 лет и старше"]
[null,"Количество родителей (з/пр),  с детьми, получающими дошкольное образование в ДОО","до 1,5 лет"]
[null,null,"от 1,5 до 3 лет"]
[null,null,"от 3 до 7 лет"]
[null,null,"7 лет и старше"]
[null,"Количество родителей (з/пр),  с детьми школьниками, получающими  образование в форме семейного образования","7-11 лет"]
[null,null,"12-15 лет"]
[null,null,"16 лет и старше"]
[null,"Количество родителей (з/пр), обратившихся  с детьми школьниками, получающими  образование в ОО","7-11 лет"]
[null,null," 12-15 лет"]
[null,null,"16 лет и старше"]
["Общее количество детей, охваченных услугами в 1 квартале  2021 г","Количество детей, получающих дошкольное образование в семейной форме"," до 1,5 лет"]
[null,null,"от 1,5 до 3 лет"]
[null,null,"от 3 до 7 лет"]
[null,null," 7 лет и старше"]
[null,"Количество детей, не получающих дошкольное образование"," до 1,5 лет"]
[null,null,"от 1,5 до 3 лет"]
[null,null,"от 3 до 7 лет"]
[null,null," 7 лет и старше"]
[null,"Количество детей, получающих дошкольное образование в ДОО","до 1,5 лет"]
[null,null,"от 1,5 до 3 лет"]
[null,null,"от 3 до 7 лет"]
[null,null,"7 лет и старше"]
[null,"Количество детей школьников, получающих образование в семейной форме","7-11 лет"]
[null,null," 12-15 лет"]
[null,null,"16 лет и старше"]
[null,"Количество детей школьников, получающих образование в ОО","7-11 лет"]
[null,null,"12-15 лет"]
[null,null,"16 лет и старше"]

{"sheet":"Здвинский","index":7,"n_rows":49,"n_cols":16,"rows_kept":49,"cut":false,"hidden":false,"merged":[[25,1,27,1],[28,1,30,1],[21,1,24,1],[13,0,30,0],[13,1,16,1],[17,1,20,1],[1,0,12,0],[1,1,3,1],[4,1,6,1],[7,1,9,1],[10,1,12,1],[31,0,48,0],[31,1,34,1],[43,1,45,1],[46,1,48,1],[35,1,38,1],[39,1,42,1]]}
[null,"I квартал 2022 г.",null,"МКДОУ Здвинский д/с \"Солнышко\" общеразв вида","МКДОУ Верх-Каргатский д/с \"Колосок\"","МКДОУ Нижнечулымский д/с \"Ромашка\"","МКДОУ Цветниковский д/с \"Берёзка\"","МКОУ Здвинская СОШ № 1","МКОУ Здвинская СОШ № 2","МКОУ Верх-Каргатская СОШ","МКОУ Сарыбалыкская СОШ","МКОУ Лянинская СОШ","МКОУ Цветниковская СОШ","МКОУ Чулымская СОШ","Итого ","Итого"]
["Общее количество обращений по видам помощи в   1 квартале 2022 г.","методическая помощь","очная ",2,3,1,2,null,1,null,5,null,null,5,21,40]
[null,null,"дистанционная",null,null,null,null,null,null,null,3,null,null,2,5,10]
[null,null,"выездная",null,null,null,null,null,null,null,null,null,null,null,null,0]
[null,"психолого-педагогическая помощь","очная",7,1,3,3,12,11,null,5,11,null,null,63,116]
[null,null,"дистанционная",1,null,null,1,null,null,6,null,null,null,null,8,16]
[null,null,"выездная",null,null,null,null,null,null,null,null,null,null,null,null,0]
[null,"диагностическая помощь","очная",null,null,null,1,12,11,null,null,null,null,null,27,51]
[null,null,"дистанционная",null,null,null,null,null,null,null,null,null,null,null,null,0]
[null,null,"выездная",null,null,null,null,null,null,null,null,null,null,null,null,0]
[null,"консультативная помощь","очная",14,null,8,6,12,11,14,5,null,9,6,96,181]
[null,null,"дистанционная",4,null,3,2,null,null,null,2,null,null,2,13,26]
[null,null,"выездная",null,null,null,null,null,null,null,null,null,null,null,null,0]
["Общее количество родителей(законных представителей), обратившихся за помощью  в 1 квартале 2022 г","Количество родителей (з/пр) с детьми, получающими дошкольное образование                 в форме семейного образования"," до 1,5 лет",null,null,null,null,null,null,null,null,null,null,null,null,0]
[null,null,"от 1,5 до 3 лет",null,null,null,null,null,null,null,null,null,null,null,null,0]
[null,null,"от 3 до 7 лет",null,null,null,null,null,null,null,null,null,null,null,null,0]
[null,null,"7 лет и старше",null,null,null,null,null,null,null,null,null,null,null,null,0]
[null,"Количество родителей (з/пр) детей,  не получающих дошкольное образование","до 1,5 лет",null,null,null,null,null,null,null,null,null,null,null,null,0]
[null,null,"от 1,5 до 3 лет",null,null,null,null,null,null,null,null,null,null,null,null,0]
[null,null,"от 3 до 7 лет",null,null,null,null,null,null,null,null,null,null,null,null,0]
[null,null,"7 лет и старше",null,null,null,null,null,null,null,null,null,null,null,null,0]
[null,"Количество родителей (з/пр),  с детьми, получающими дошкольное образование в ДОО","до 1,5 лет",null,null,null,null,null,null,null,null,null,null,null,null,0]
[null,null,"от 1,5 до 3 лет",null,1,7,3,null,null,null,null,null,null,null,11,22]
[null,null,"от 3 до 7 лет",28,3,8,10,null,null,null,null,null,null,null,73,122]
[null,null,"7 лет и старше",null,null,null,2,null,null,null,null,null,null,null,4,6]
[null,"Количество родителей (з/пр),  с детьми школьниками, получающими  образование в форме семейного образования","7-11 лет",null,null,null,null,null,null,1,null,null,null,null,1,2]
[null,null,"12-15 лет",null,null,null,null,null,null,null,null,null,null,null,null,0]
[null,null,"16 лет и старше",null,null,null,null,null,null,null,null,null,null,null,null,0]
[null,"Количество родителей (з/пр), обратившихся  с детьми школьниками, получающими  образование в ОО","7-11 лет",null,null,null,null,12,5,7,3,8,5,3,43,86]
[null,null," 12-15 лет",null,null,null,null,24,6,11,14,2,4,10,71,142]
[null,null,"16 лет и старше",null,null,null,null,null,null,1,3,1,null,2,7,14]
["Общее количество детей, охваченных услугами в 1 квартале  2022 г","Количество детей, получающих дошкольное образование в семейной форме"," до 1,5 лет",null,null,null,null,null,null,null,null,null,null,null,null,0]
[null,null,"от 1,5 до 3 лет",null,null,null,null,null,null,null,null,null,null,null,null,0]
[null,null,"от 3 до 7 лет",null,null,null,null,null,null,null,null,null,null,null,null,0]
[null,null," 7 лет и старше",null,null,null,null,null,null,null,null,null,null,null,null,0]
[null,"Количество детей, не получающих дошкольное образование"," до 1,5 лет",null,null,null,null,null,null,null,null,null,null,null,null,0]
[null,null,"от 1,5 до 3 лет",null,null,null,null,null,null,null,null,null,null,null,null,0]
[null,null,"от 3 до 7 лет",null,null,null,null,null,null,null,null,null,null,null,null,0]
[null,null," 7 лет и старше",null,null,null,null,null,null,null,null,null,null,null,null,0]
[null,"Количество детей, получающих дошкольное образование в ДОО","до 1,5 лет",null,null,null,null,null,null,null,null,null,null,null,null,0]
[null,null,"от 1,5 до 3 лет",null,1,7,3,null,null,null,null,null,null,null,11,22]
[null,null,"от 3 до 7 лет",28,3,8,10,null,null,null,null,null,null,null,73,122]
[null,null,"7 лет и старше",null,null,null,2,null,null,null,null,null,null,null,4,6]
[null,"Количество детей школьников, получающих образование в семейной форме","7-11 лет",null,null,null,null,null,null,1,null,null,null,null,1,2]
[null,null," 12-15 лет",null,null,null,null,null,null,null,null,null,null,null,null,0]
[null,null,"16 лет и старше",null,null,null,null,null,null,null,null,null,null,null,null,0]
[null,"Количество детей школьников, получающих образование в ОО","7-11 лет",null,null,null,null,12,5,7,3,8,5,3,43,86]
[null,null,"12-15 лет",null,null,null,null,24,6,11,14,2,4,10,71,142]
[null,null,"16 лет и старше",null,null,null,null,null,null,1,3,1,null,2,7,14]

{"sheet":"Искитим","index":8,"n_rows":55,"n_cols":34,"rows_kept":55,"cut":false,"hidden":false,"merged":[[13,0,30,0],[13,1,16,1],[1,0,12,0],[1,1,3,1],[4,1,6,1],[7,1,9,1],[10,1,12,1],[17,1,20,1],[21,1,24,1],[25,1,27,1],[28,1,30,1],[31,0,48,0],[31,1,34,1],[35,1,38,1],[39,1,42,1],[43,1,45,1],[46,1,48,1]]}
[null,null,null,"СОШ 1","СОШ 2","СОШ 3","СОШ 4","СОШ 5","ООШ 6","КШ 7","СОШ  8","СОШ 9","ООШ 10","СОШ 11","КШИ 12","СОШ 14","д/с Дюймовочка","д/с Теремок","д/с Зол.ключик","д/с Незабудка","д/с Ручеек","д/с Березка","д/с Солнышко","д/с Огонек","д/с Зол.рыбка","д/с Орленк","д/с Колокольчик","д/с Родничок","д/с Дельфинчик","д/с Журавушка","д/с Медвежонок","д/с Сказка","д/с Росинка","Итого"]
["Общее количество обращений по видам помощи в   1 квартале 2022 г.","методическая помощь","очная ",3,null,4,3,2,null,null,null,null,0,null,null,2,null,null,null,null,null,null,null,null,2,null,null,null,null,null,null,3,null,19]
[null,null,"дистанционная",3,null,3,3,null,null,2,null,1,0,null,2,1,null,null,null,null,null,null,null,null,1,null,null,null,null,null,null,null,null,16]
[null,null,"выездная",null,null,null,null,null,null,null,null,null,0,null,null,null,null,null,null,null,null,null,null,null,null,null,null,null,null,null,null,null,null,0]
[null,"психолого-педагогическая помощь","очная",28,17,19,16,14,null,null,22,null,0,7,null,5,null,null,null,null,null,null,3,null,5,null,null,null,null,null,null,2,null,138]
[null,null,"дистанционная",6,null,3,null,null,null,null,14,null,0,3,null,null,null,null,null,null,null,null,null,null,1,null,null,null,null,null,null,null,null,27]
[null,null,"выездная",1,null,null,null,null,null,null,null,2,0,null,null,null,null,null,null,null,null,null,null,null,null,null,null,null,null,null,null,null,null,3]
[null,"диагностическая помощь","очная",10,null,6,8,3,null,null,null,null,0,10,5,null,null,null,null,null,null,null,2,null,1,null,null,null,null,null,null,null,null,45]
[null,null,"дистанционная",null,null,null,null,null,null,null,null,null,0,null,null,null,null,null,null,null,null,null,null,null,null,null,null,null,null,null,null,null,null,0]
[null,null,"выездная",null,null,null,null,null,null,null,null,null,0,null,null,null,null,null,null,null,null,null,null,null,null,null,null,null,null,null,null,null,null,0]
[null,"консультативная помощь","очная",30,26,4,18,14,17,20,1,48,10,20,18,14,7,6,3,5,7,12,5,6,9,5,5,4,28,5,6,17,3,373]
[null,null,"дистанционная",8,5,null,null,2,null,2,9,15,6,7,2,2,null,0,null,null,2,null,null,null,9,null,7,2,4,null,null,null,null,82]
[null,null,"выездная",3,null,null,null,null,null,null,null,null,null,2,null,null,null,0,null,null,null,null,null,null,null,null,null,null,null,null,null,null,null,5]
["Общее количество родителей(законных представителей), обратившихся за помощью  в 1 квартале 2022 г","Количество родителей (з/пр) с детьми, получающими дошкольное образование в форме семейного образования"," до 1,5 лет",null,null,null,null,null,null,null,null,null,null,null,null,null,null,null,null,null,null,null,null,null,null,null,null,null,null,null,null,null,null,0]
[null,null,"от 1,5 до 3 лет",null,null,null,null,null,null,null,null,null,null,null,null,null,null,null,null,null,null,null,null,null,null,null,null,null,null,null,null,null,null,0]
[null,null,"от 3 до 7 лет",null,null,null,null,null,null,null,null,null,null,null,null,null,null,null,null,null,null,null,null,null,null,null,null,null,null,null,null,null,null,0]
[null,null,"7 лет и старше",null,null,null,null,null,null,null,null,null,null,null,null,null,null,null,null,null,null,null,null,null,null,null,null,null,null,null,null,null,null,0]
[null,"Количество родителей (з/пр) детей,  не получающих дошкольное образование","до 1,5 лет",null,null,null,null,null,null,null,null,null,null,null,null,null,null,null,null,null,null,null,null,null,null,null,null,null,1,null,null,null,null,1]
[null,null,"от 1,5 до 3 лет",null,null,null,null,null,null,null,null,null,null,null,null,null,null,null,null,null,null,null,null,null,null,null,null,null,2,null,null,null,null,2]
[null,null,"от 3 до 7 лет",null,null,null,null,null,null,null,null,null,null,null,null,null,null,null,null,null,null,null,null,null,null,null,null,null,1,null,null,null,null,1]
[null,null,"7 лет и старше",null,null,null,null,null,null,null,null,null,null,null,null,null,null,null,null,null,null,null,null,null,null,null,null,null,null,null,null,null,null,0]
[null,"Количество родителей (з/пр),  с детьми, получающими дошкольное образование в ДОО","до 1,5 лет",null,null,null,null,null,null,null,null,null,null,null,null,null,null,null,null,null,null,null,1,null,null,null,null,null,null,null,null,1,null,2]
[null,null,"от 1,5 до 3 лет",null,null,null,null,null,null,null,null,null,null,null,null,null,null,null,null,2,null,2,2,null,7,2,null,null,1,null,null,4,null,20]
[null,null,"от 3 до 7 лет",null,5,null,null,null,null,1,null,2,null,null,6,null,7,6,3,3,9,10,7,6,21,3,12,4,21,5,6,17,3,157]
[null,null,"7 лет и старше",null,null,null,null,null,null,null,null,null,null,null,null,null,null,null,null,null,null,null,null,null,null,null,null,null,6,null,null,null,null,6]
[null,"Количество родителей (з/пр),  с детьми школьниками, получающими  образование в форме семейного образования","7-11 лет",null,null,null,null,null,null,null,null,null,null,null,null,null,null,null,null,null,null,null,null,null,null,null,null,null,null,null,null,null,null,0]
[null,null,"12-15 лет",null,null,null,null,null,null,null,null,null,null,null,null,null,null,null,null,null,null,null,null,null,null,null,null,null,null,null,null,null,null,0]
[null,null,"16 лет и старше",null,null,null,null,null,null,null,null,null,null,null,null,null,null,null,null,null,null,null,null,null,null,null,null,null,null,null,null,null,null,0]
[null,"Количество родителей (з/пр), обратившихся  с детьми школьниками, получающими  образование в ОО","7-11 лет",15,19,5,18,12,4,14,15,46,4,17,9,8,null,null,null,null,null,null,null,null,null,null,null,null,null,null,null,null,null,186]
[null,null," 12-15 лет",30,12,4,21,13,11,4,30,16,9,27,5,12,null,null,null,null,null,null,null,null,null,null,null,null,null,null,null,null,null,194]
[null,null,"16 лет и старше",10,12,21,9,10,2,3,1,2,3,5,7,4,null,null,null,null,null,null,null,null,null,null,null,null,null,null,null,null,null,89]
["Общее количество детей, охваченных услугами в 1 квартале  2022 г","Количество детей, получающих дошкольное образование в семейной форме"," до 1,5 лет",null,null,null,null,null,null,null,null,null,null,null,null,null,null,null,null,null,null,null,null,null,null,null,null,null,null,null,null,null,null,0]
[null,null,"от 1,5 до 3 лет",null,null,null,null,null,null,null,null,null,null,null,null,null,null,null,null,null,null,null,null,null,null,null,null,null,null,null,null,null,null,0]
[null,null,"от 3 до 7 лет",null,null,null,null,null,null,null,null,null,null,null,null,null,null,null,null,null,null,null,null,null,null,null,null,null,null,null,null,null,null,0]
[null,null," 7 лет и старше",null,null,null,null,null,null,null,null,null,null,null,null,null,null,null,null,null,null,null,null,null,null,null,null,null,null,null,null,null,null,0]
[null,"Количество детей, не получающих дошкольное образование"," до 1,5 лет",null,null,null,null,null,null,null,null,null,null,null,null,null,null,null,null,null,null,null,null,null,null,null,null,null,1,null,null,null,null,1]
[null,null,"от 1,5 до 3 лет",null,null,null,null,null,null,null,null,null,null,null,null,null,null,null,null,null,null,null,null,null,null,null,null,null,2,null,null,null,null,2]
[null,null,"от 3 до 7 лет",null,null,null,null,null,null,null,null,null,null,null,null,null,null,null,null,null,null,null,null,null,null,null,null,null,1,null,null,null,null,1]
[null,null," 7 лет и старше",null,null,null,null,null,null,null,null,null,null,null,null,null,null,null,null,null,null,null,null,null,null,null,null,null,null,null,null,null,null,0]
[null,"Количество детей, получающих дошкольное образование в ДОО","до 1,5 лет",null,null,null,null,null,null,null,null,null,null,null,null,null,null,null,null,null,null,null,null,null,null,null,null,null,null,null,null,1,null,1]
[null,null,"от 1,5 до 3 лет",null,null,null,null,null,null,null,null,null,null,null,null,null,null,6,null,2,null,2,2,null,7,2,null,null,1,null,null,4,null,26]
[null,null,"от 3 до 7 лет",null,5,null,null,null,null,1,null,2,null,null,6,null,7,null,3,3,9,10,8,6,21,3,12,5,21,5,6,17,3,153]
[null,null,"7 лет и старше",null,null,null,null,null,null,null,null,null,null,null,null,null,null,null,null,null,null,null,null,null,null,null,null,null,6,null,null,null,null,6]
[null,"Количество детей школьников, получающих образование в семейной форме","7-11 лет",null,null,null,null,null,null,null,null,null,null,null,null,null,null,null,null,null,null,null,null,null,null,null,null,null,null,null,null,null,null,0]
[null,null," 12-15 лет",null,null,null,null,null,null,null,null,null,null,null,null,null,null,null,null,null,null,null,null,null,null,null,null,null,null,null,null,null,null,0]
[null,null,"16 лет и старше",null,null,null,null,null,null,null,null,null,null,null,null,null,null,null,null,null,null,null,null,null,null,null,null,null,null,null,null,null,null,0]
[null,"Количество детей школьников, получающих образование в ОО","7-11 лет",22,19,5,18,12,4,14,15,46,4,17,9,8,null,null,null,null,null,null,null,null,null,null,null,null,null,null,null,null,null,193]
[null,null,"12-15 лет",35,12,4,21,13,11,4,30,16,9,27,5,12,null,null,null,null,null,null,null,null,null,null,null,null,null,null,null,null,null,199]
[null,null,"16 лет и старше",11,12,21,9,10,2,3,1,2,3,5,7,4,null,null,null,null,null,null,null,null,null,null,null,null,null,null,null,null,null,90]
[]
[null,"Отчет предоставляется в форме Приложения (приложение Excel  к письму) в сроки:"]
[null,"за 1 квартал – до 17 марта 2022г.;"]
[null,"за 2 квартал – до 17 июня 2022 г.;"]
[null,"за 3 квартал – до 19 сентября 2022 г.;"]
[null,"за 4 квартал – до 9 декабря 2022г."]

{"sheet":"Искитимский","index":9,"n_rows":49,"n_cols":22,"rows_kept":49,"cut":false,"hidden":false,"merged":[[31,0,48,0],[31,1,34,1],[43,1,45,1],[46,1,48,1],[35,1,38,1],[39,1,42,1],[21,1,24,1],[1,0,12,0],[1,1,3,1],[4,1,6,1],[7,1,9,1],[10,1,12,1],[13,0,30,0],[13,1,16,1],[17,1,20,1],[25,1,27,1],[28,1,30,1]]}
[null,null,null,"МКОУ \"Линевская школа-интернат для обучающихся с ограниченными возможностями здоровья\"","МБОУ\"СОШ п. Листвянский\"","МБОУ \"СОШ п. Агролес\"","МБОУ \"СОШ с. Лебедёвка\"","МБОУ \"СОШ ст. Евсино\"","МБОУ \"Гимназия № 1\" р. п. Линёво","МБОУ \"СОШ №4 р.п. Линёво\"","МБОУ \"СОШ № 3 р.п. Линёво\"","МБОУ \"СОШ п. Керамкомбинат\"","МБОУ \"СОШ № 1 р. п. Линёвоимени Ф. И. Кулиша\"","МКДОУ д/с \"Огонёк\" р. п. Линёво","МКДОУ д/с \"Красная шапочка\" р. п. Линёво","МКДОУ д/с \"Светлячок\" ст. Евсино","МКДОУ д/с \"Сибирячок\"п. Листвянский","МКДОУ д/с \"Теремок\" п. Керамкомбинат","МКДОУ д/с \"Родничок\" с. Лебедёвка\"","МКДОУ д/с \"Родничок\" р. п. Линёво","МКДОУ д/с \"Жаворонок\" р. п. Линёво","Итого"]
["Общее количество обращений по видам помощи в   1 квартале 2022 г.","методическая помощь","очная ",2,1,5,0,8,5,0,13,3,0,30,35,1,0,0,2,16,1,122]
[null,null,"дистанционная",0,0,0,0,0,0,0,0,0,5,1,13,0,0,0,0,0,0,19]
[null,null,"выездная",0,0,0,0,0,0,0,0,0,0,0,1,0,0,0,0,0,0,1]
[null,"психолого-педагогическая помощь","очная",24,10,2,6,30,12,0,24,3,21,15,77,0,1,0,8,32,10,275]
[null,null,"дистанционная",0,0,0,0,0,0,0,0,0,0,2,15,0,0,0,0,0,0,17]
[null,null,"выездная",7,2,0,0,0,0,0,0,0,0,0,0,0,0,0,0,0,0,9]
[null,"диагностическая помощь","очная",31,2,9,5,7,9,0,10,2,53,2,50,0,1,0,3,72,0,256]
[null,null,"дистанционная",0,0,0,0,0,0,0,0,0,0,0,8,0,0,0,0,0,0,8]
[null,null,"выездная",0,0,0,0,0,0,0,0,0,0,0,0,0,0,0,0,0,0,0]
[null,"консультативная помощь","очная",61,25,35,7,30,21,76,34,21,72,40,11,1,0,2,12,75,15,538]
[null,null,"дистанционная",0,0,7,0,8,0,0,16,0,2,1,5,0,1,0,4,0,0,44]
[null,null,"выездная",30,0,0,0,0,0,0,0,0,0,0,0,0,0,0,0,0,0,30]
["Общее количество родителей(законных представителей), обратившихся за помощью  в 1 квартале 2022 г","Количество родителей (з/пр) с детьми, получающими дошкольное образование                 в форме семейного образования"," до 1,5 лет",0,0,0,0,0,0,0,0,0,0,0,0,0,0,0,0,0,0,0]
[null,null,"от 1,5 до 3 лет",0,0,0,0,0,0,0,0,0,0,0,0,0,0,0,0,0,0,0]
[null,null,"от 3 до 7 лет",0,0,0,0,0,0,0,0,0,0,0,0,0,0,0,0,0,0,0]
[null,null,"7 лет и старше",0,0,0,0,0,0,0,0,0,0,0,0,0,0,0,0,0,0,0]
[null,"Количество родителей (з/пр) детей,  не получающих дошкольное образование","до 1,5 лет",0,0,0,0,0,0,0,0,0,0,0,0,0,0,0,0,0,0,0]
[null,null,"от 1,5 до 3 лет",0,0,0,0,0,0,0,0,0,0,0,0,0,1,0,0,0,0,1]
[null,null,"от 3 до 7 лет",0,0,0,0,0,0,0,0,0,0,0,0,0,0,0,0,0,0,0]
[null,null,"7 лет и старше",0,0,0,0,0,0,0,0,0,0,0,0,0,0,0,0,0,0,0]
[null,"Количество родителей (з/пр),  с детьми, получающими дошкольное образование в ДОО","до 1,5 лет",0,0,0,0,0,0,0,0,0,0,3,0,0,0,0,3,0,0,6]
[null,null,"от 1,5 до 3 лет",0,0,0,0,0,0,0,0,0,0,18,15,0,0,2,5,8,4,52]
[null,null,"от 3 до 7 лет",0,0,0,0,0,0,0,0,0,0,69,144,1,2,0,19,76,15,326]
[null,null,"7 лет и старше",0,0,0,0,0,0,0,0,0,0,1,1,0,0,0,2,0,1,5]
[null,"Количество родителей (з/пр),  с детьми школьниками, получающими  образование в форме семейного образования","7-11 лет",0,0,0,1,0,0,0,0,0,38,0,0,0,0,0,0,0,0,39]
[null,null,"12-15 лет",0,0,0,0,0,0,0,0,0,29,0,0,0,0,0,0,0,0,29]
[null,null,"16 лет и старше",0,0,0,0,0,0,0,0,0,4,0,0,0,0,0,0,0,0,4]
[null,"Количество родителей (з/пр), обратившихся  с детьми школьниками, получающими  образование в ОО","7-11 лет",34,20,29,4,9,15,36,22,20,0,0,0,0,0,0,0,0,0,189]
[null,null," 12-15 лет",25,18,6,2,21,21,22,19,9,0,0,0,0,0,0,0,0,0,143]
[null,null,"16 лет и старше",2,2,0,1,8,11,18,1,0,0,0,0,0,0,0,0,0,0,43]
["Общее количество детей, охваченных услугами в 1 квартале  2022 г","Количество детей, получающих дошкольное образование в семейной форме"," до 1,5 лет",0,0,0,0,0,0,0,0,0,0,0,0,0,0,0,0,0,0,0]
[null,null,"от 1,5 до 3 лет",0,0,0,0,0,0,0,0,0,0,0,0,0,0,0,0,0,0,0]
[null,null,"от 3 до 7 лет",0,0,0,0,0,0,0,0,0,0,0,0,0,0,0,0,0,0,0]
[null,null," 7 лет и старше",0,0,0,0,0,0,0,0,0,0,0,0,0,0,0,0,0,0,0]
[null,"Количество детей, не получающих дошкольное образование"," до 1,5 лет",0,0,0,0,0,0,0,0,0,0,0,0,0,0,0,0,0,0,0]
[null,null,"от 1,5 до 3 лет",0,0,0,0,0,0,0,0,0,0,0,0,0,1,0,0,0,0,1]
[null,null,"от 3 до 7 лет",0,0,0,0,0,0,0,0,0,0,0,0,0,0,0,0,0,0,0]
[null,null," 7 лет и старше",0,0,0,0,0,0,0,0,0,0,0,0,0,0,0,0,0,0,0]
[null,"Количество детей, получающих дошкольное образование в ДОО","до 1,5 лет",0,0,0,0,0,0,0,0,0,0,3,0,0,0,0,3,0,0,6]
[null,null,"от 1,5 до 3 лет",0,0,0,0,0,0,0,0,0,0,18,15,0,0,2,5,12,4,56]
[null,null,"от 3 до 7 лет",0,0,0,0,0,0,0,0,0,0,69,144,1,2,0,19,76,15,326]
[null,null,"7 лет и старше",0,0,0,0,0,0,0,0,0,0,1,1,0,0,0,2,0,1,5]
[null,"Количество детей школьников, получающих образование в семейной форме","7-11 лет",0,0,0,1,0,0,0,0,0,0,0,0,0,0,0,0,0,0,1]
[null,null," 12-15 лет",0,0,0,0,0,0,0,0,0,0,0,0,0,0,0,0,0,0,0]
[null,null,"16 лет и старше",0,0,0,0,0,0,0,0,0,0,0,0,0,0,0,0,0,0,0]
[null,"Количество детей школьников, получающих образование в ОО","7-11 лет",16,20,31,4,9,15,36,78,20,48,0,0,0,0,0,0,0,0,277]
[null,null,"12-15 лет",17,18,28,2,21,21,22,16,9,51,0,0,0,0,0,0,0,0,205]
[null,null,"16 лет и старше",10,2,9,1,8,11,18,1,0,0,0,0,0,0,0,0,0,0,60]

{"sheet":"Карасукский","index":10,"n_rows":49,"n_cols":18,"rows_kept":49,"cut":false,"hidden":false,"merged":[[31,0,48,0],[31,1,34,1],[43,1,45,1],[46,1,48,1],[35,1,38,1],[39,1,42,1],[21,1,24,1],[1,0,12,0],[1,1,3,1],[4,1,6,1],[7,1,9,1],[10,1,12,1],[13,0,30,0],[13,1,16,1],[17,1,20,1],[25,1,27,1],[28,1,30,1]]}
[null,null,null,"МБДОУ №9 \"Радуга\"","МБДОУ №6 \"Василек\"","МБДОУ д\\с № 8 \"Сказка\"","МБОУ гимназия №1","МБОУ СОШ №2","МБОУ СОШ №3","МБОУ ООШ №4","МБОУ СОШ №5","МБОУ ТЛ №176","МБОУ Шилово-Курьинская СОШ","МБОУ Михайловская СОШ","МБОУ Морозовская СОШ","МБОУ Хорошенская СОШ","МБОУ Чернокурьинская СОШ","Итого"]
["Общее количество обращений по видам помощи в   1 квартале 2022 г.","методическая помощь","очная ",6,3,14,15,23,8,5,9,17,2,4,3,2,2,113]
[null,null,"дистанционная",3,null,20,null,10,4,5,null,10,4,3,2,null,null,61]
[null,null,"выездная",null,null,null,null,null,null,null,null,null,null,null,null,null,null,0]
[null,"психолого-педагогическая помощь","очная",null,12,12,34,26,4,23,28,31,5,15,15,6,3,214]
[null,null,"дистанционная",null,null,13,null,null,null,5,null,10,null,null,2,null,null,30]
[null,null,"выездная",null,null,null,null,null,null,null,null,null,null,null,null,null,null,0]
[null,"диагностическая помощь","очная",10,null,null,null,null,2,5,9,null,2,null,null,9,null,37]
[null,null,"дистанционная",null,null,5,6,null,10,null,null,null,null,null,null,null,null,21]
[null,null,"выездная",null,null,null,null,null,null,null,null,null,null,null,null,null,null,0]
[null,"консультативная помощь","очная",10,10,null,17,23,29,13,20,31,3,15,15,6,3,195]
[null,null,"дистанционная",4,null,27,null,null,10,5,10,13,null,null,null,null,null,69]
[null,null,"выездная",null,null,null,null,5,null,null,null,null,4,null,null,2,4,15]
["Общее количество родителей(законных представителей), обратившихся за помощью  в 1 квартале 2022 г","Количество родителей (з/пр) с детьми, получающими дошкольное образование                 в форме семейного образования"," до 1,5 лет",null,null,null,null,null,null,null,null,null,null,null,null,null,null,0]
[null,null,"от 1,5 до 3 лет",null,null,null,null,null,null,null,null,null,null,null,null,null,null,0]
[null,null,"от 3 до 7 лет",null,null,null,null,null,null,null,null,null,null,null,null,null,null,0]
[null,null,"7 лет и старше",null,null,null,null,null,null,null,null,null,null,null,null,null,null,0]
[null,"Количество родителей (з/пр) детей,  не получающих дошкольное образование","до 1,5 лет",null,null,null,null,null,null,null,null,null,null,null,null,null,null,0]
[null,null,"от 1,5 до 3 лет",null,null,null,null,null,null,null,null,null,null,null,null,null,null,0]
[null,null,"от 3 до 7 лет",null,null,25,null,null,null,null,null,null,null,null,null,null,null,25]
[null,null,"7 лет и старше",null,null,null,null,null,null,null,null,null,null,null,null,null,null,0]
[null,"Количество родителей (з/пр),  с детьми, получающими дошкольное образование в ДОО","до 1,5 лет",1,null,null,null,null,null,null,null,null,null,null,null,null,null,1]
[null,null,"от 1,5 до 3 лет",15,10,null,null,null,null,null,null,null,null,null,null,null,null,25]
[null,null,"от 3 до 7 лет",17,15,12,null,null,null,null,null,null,null,null,null,null,null,44]
[null,null,"7 лет и старше",null,null,null,null,null,null,null,null,null,null,null,null,null,null,0]
[null,"Количество родителей (з/пр),  с детьми школьниками, получающими  образование в форме семейного образования","7-11 лет",null,null,null,1,null,1,null,null,2,null,null,null,null,null,4]
[null,null,"12-15 лет",null,null,null,null,null,2,null,1,null,null,1,null,1,null,5]
[null,null,"16 лет и старше",null,null,null,null,null,3,1,2,null,null,null,3,null,null,9]
[null,"Количество родителей (з/пр), обратившихся  с детьми школьниками, получающими  образование в ОО","7-11 лет",null,null,null,20,7,7,15,3,10,2,5,3,3,4,79]
[null,null," 12-15 лет",null,null,null,30,47,20,45,39,51,8,11,9,7,3,270]
[null,null,"16 лет и старше",null,null,null,21,33,34,0,31,49,10,20,10,2,5,215]
["Общее количество детей, охваченных услугами в 1 квартале  2022 г","Количество детей, получающих дошкольное образование в семейной форме"," до 1,5 лет",null,null,null,null,null,null,null,null,null,null,null,null,null,null,0]
[null,null,"от 1,5 до 3 лет",null,null,null,null,null,null,null,null,null,null,null,null,null,null,0]
[null,null,"от 3 до 7 лет",null,null,null,null,null,null,null,null,null,null,null,null,null,null,0]
[null,null," 7 лет и старше",null,null,null,null,null,null,null,null,null,null,null,null,null,null,0]
[null,"Количество детей, не получающих дошкольное образование"," до 1,5 лет",null,null,null,null,null,null,null,null,null,null,null,null,null,null,0]
[null,null,"от 1,5 до 3 лет",null,null,null,null,null,null,null,null,null,null,null,null,null,null,0]
[null,null,"от 3 до 7 лет",null,null,null,null,null,null,null,null,null,null,null,null,null,null,0]
[null,null," 7 лет и старше",null,null,null,null,null,null,null,null,null,null,null,null,null,null,0]
[null,"Количество детей, получающих дошкольное образование в ДОО","до 1,5 лет",1,null,null,null,null,null,null,null,null,null,null,null,null,null,1]
[null,null,"от 1,5 до 3 лет",15,10,29,null,null,null,null,null,null,null,null,null,null,null,54]
[null,null,"от 3 до 7 лет",17,15,60,null,null,null,null,null,null,null,null,null,null,null,92]
[null,null,"7 лет и старше",null,null,2,null,null,null,null,null,null,null,null,null,null,null,2]
[null,"Количество детей школьников, получающих образование в семейной форме","7-11 лет",null,null,null,1,0,1,0,0,2,0,0,0,0,0,4]
[null,null," 12-15 лет",null,null,null,0,0,2,1,1,0,0,0,0,0,0,4]
[null,null,"16 лет и старше",null,null,null,0,0,3,0,2,0,0,1,3,0,0,9]
[null,"Количество детей школьников, получающих образование в ОО","7-11 лет",null,null,null,20,7,7,15,3,10,2,5,3,3,4,79]
[null,null,"12-15 лет",null,null,null,30,47,20,45,39,51,8,11,9,7,3,270]
[null,null,"16 лет и старше",null,null,null,21,33,34,0,31,49,10,20,10,2,5,215]

{"sheet":"Каргатский","index":11,"n_rows":49,"n_cols":7,"rows_kept":49,"cut":false,"hidden":false,"merged":[[31,0,48,0],[31,1,34,1],[43,1,45,1],[46,1,48,1],[35,1,38,1],[39,1,42,1],[21,1,24,1],[1,0,12,0],[1,1,3,1],[4,1,6,1],[7,1,9,1],[10,1,12,1],[13,0,30,0],[13,1,16,1],[17,1,20,1],[25,1,27,1],[28,1,30,1]]}
[null,null,null,"МКОУ КСШ№1","МКОУ КСШ№2 им.Горького","МКДОУ детский сад «Берёзка»","Итого"]
["Общее количество обращений по видам помощи в   1 квартале 2022 г.","методическая помощь","очная ",4,2,4,10]
[null,null,"дистанционная",2,3,5,10]
[null,null,"выездная",0,0,0,0]
[null,"психолого-педагогическая помощь","очная",13,21,16,50]
[null,null,"дистанционная",0,0,0,0]
[null,null,"выездная",0,0,0,0]
[null,"диагностическая помощь","очная",30,4,0,34]
[null,null,"дистанционная",0,0,0,0]
[null,null,"выездная",2,0,0,2]
[null,"консультативная помощь","очная",51,37,21,109]
[null,null,"дистанционная",15,8,3,26]
[null,null,"выездная",0,0,0,0]
["Общее количество родителей(законных представителей), обратившихся за помощью  в 1 квартале 2022 г","Количество родителей (з/пр) с детьми, получающими дошкольное образование                 в форме семейного образования"," до 1,5 лет",0,0,0,0]
[null,null,"от 1,5 до 3 лет",0,0,0,0]
[null,null,"от 3 до 7 лет",0,0,0,0]
[null,null,"7 лет и старше",0,0,0,0]
[null,"Количество родителей (з/пр) детей,  не получающих дошкольное образование","до 1,5 лет",0,0,0,0]
[null,null,"от 1,5 до 3 лет",0,0,0,0]
[null,null,"от 3 до 7 лет",0,0,2,2]
[null,null,"7 лет и старше",0,2,0,2]
[null,"Количество родителей (з/пр),  с детьми, получающими дошкольное образование в ДОО","до 1,5 лет",0,0,0,0]
[null,null,"от 1,5 до 3 лет",0,0,11,11]
[null,null,"от 3 до 7 лет",0,0,14,14]
[null,null,"7 лет и старше",0,0,1,1]
[null,"Количество родителей (з/пр),  с детьми школьниками, получающими  образование в форме семейного образования","7-11 лет",0,0,0,0]
[null,null,"12-15 лет",0,0,0,0]
[null,null,"16 лет и старше",9,7,0,16]
[null,"Количество родителей (з/пр), обратившихся  с детьми школьниками, получающими  образование в ОО","7-11 лет",25,26,0,51]
[null,null," 12-15 лет",10,6,0,16]
[null,null,"16 лет и старше",1,1,0,2]
["Общее количество детей, охваченных услугами в 1 квартале  2022 г","Количество детей, получающих дошкольное образование в семейной форме"," до 1,5 лет",0,0,0,0]
[null,null,"от 1,5 до 3 лет",0,0,0,0]
[null,null,"от 3 до 7 лет",0,0,0,0]
[null,null," 7 лет и старше",0,0,0,0]
[null,"Количество детей, не получающих дошкольное образование"," до 1,5 лет",0,0,0,0]
[null,null,"от 1,5 до 3 лет",0,0,0,0]
[null,null,"от 3 до 7 лет",0,0,0,0]
[null,null," 7 лет и старше",0,2,0,2]
[null,"Количество детей, получающих дошкольное образование в ДОО","до 1,5 лет",0,0,0,0]
[null,null,"от 1,5 до 3 лет",0,0,7,7]
[null,null,"от 3 до 7 лет",0,0,13,13]
[null,null,"7 лет и старше",0,0,1,1]
[null,"Количество детей школьников, получающих образование в семейной форме","7-11 лет",0,0,0,0]
[null,null," 12-15 лет",0,0,0,0]
[null,null,"16 лет и старше",9,7,0,16]
[null,"Количество детей школьников, получающих образование в ОО","7-11 лет",20,19,0,39]
[null,null,"12-15 лет",41,4,0,45]
[null,null,"16 лет и старше",2,1,0,3]

{"sheet":"Колыванский","index":12,"n_rows":49,"n_cols":4,"rows_kept":49,"cut":false,"hidden":false,"merged":[[28,1,30,1],[31,0,48,0],[31,1,34,1],[35,1,38,1],[39,1,42,1],[43,1,45,1],[46,1,48,1],[13,0,30,0],[13,1,16,1],[17,1,20,1],[21,1,24,1],[25,1,27,1],[1,0,12,0],[1,1,3,1],[4,1,6,1],[7,1,9,1],[10,1,12,1]]}
[null,null,null,"Итого"]
["Общее количество обращений по видам помощи в   1 квартале 2021 г.","методическая помощь","очная "]
[null,null,"дистанционная"]
[null,null,"выездная"]
[null,"психолого-педагогическая помощь","очная"]
[null,null,"дистанционная"]
[null,null,"выездная"]
[null,"диагностическая помощь","очная"]
[null,null,"дистанционная"]
[null,null,"выездная"]
[null,"консультативная помощь","очная"]
[null,null,"дистанционная"]
[null,null,"выездная"]
["Общее количество родителей(законных представителей), обратившихся за помощью  в 1 квартале 2021 г","Количество родителей (з/пр) с детьми, получающими дошкольное образование                 в форме семейного образования"," до 1,5 лет"]
[null,null,"от 1,5 до 3 лет"]
[null,null,"от 3 до 7 лет"]
[null,null,"7 лет и старше"]
[null,"Количество родителей (з/пр) детей,  не получающих дошкольное образование","до 1,5 лет"]
[null,null,"от 1,5 до 3 лет"]
[null,null,"от 3 до 7 лет"]
[null,null,"7 лет и старше"]
[null,"Количество родителей (з/пр),  с детьми, получающими дошкольное образование в ДОО","до 1,5 лет"]
[null,null,"от 1,5 до 3 лет"]
[null,null,"от 3 до 7 лет"]
[null,null,"7 лет и старше"]
[null,"Количество родителей (з/пр),  с детьми школьниками, получающими  образование в форме семейного образования","7-11 лет"]
[null,null,"12-15 лет"]
[null,null,"16 лет и старше"]
[null,"Количество родителей (з/пр), обратившихся  с детьми школьниками, получающими  образование в ОО","7-11 лет"]
[null,null," 12-15 лет"]
[null,null,"16 лет и старше"]
["Общее количество детей, охваченных услугами в 1 квартале  2021 г","Количество детей, получающих дошкольное образование в семейной форме"," до 1,5 лет"]
[null,null,"от 1,5 до 3 лет"]
[null,null,"от 3 до 7 лет"]
[null,null," 7 лет и старше"]
[null,"Количество детей, не получающих дошкольное образование"," до 1,5 лет"]
[null,null,"от 1,5 до 3 лет"]
[null,null,"от 3 до 7 лет"]
[null,null," 7 лет и старше"]
[null,"Количество детей, получающих дошкольное образование в ДОО","до 1,5 лет"]
[null,null,"от 1,5 до 3 лет"]
[null,null,"от 3 до 7 лет"]
[null,null,"7 лет и старше"]
[null,"Количество детей школьников, получающих образование в семейной форме","7-11 лет"]
[null,null," 12-15 лет"]
[null,null,"16 лет и старше"]
[null,"Количество детей школьников, получающих образование в ОО","7-11 лет"]
[null,null,"12-15 лет"]
[null,null,"16 лет и старше"]

{"sheet":"Кольцово","index":13,"n_rows":49,"n_cols":7,"rows_kept":49,"cut":false,"hidden":false,"merged":[[28,1,30,1],[31,0,48,0],[31,1,34,1],[35,1,38,1],[39,1,42,1],[43,1,45,1],[46,1,48,1],[13,0,30,0],[13,1,16,1],[17,1,20,1],[21,1,24,1],[25,1,27,1],[1,0,12,0],[1,1,3,1],[4,1,6,1],[7,1,9,1],[10,1,12,1]]}
[null,null,null,"ОО №1","00 №2","ОО №3","Итого"]
["Общее количество обращений по видам помощи в   1 квартале 2021 г.","методическая помощь","очная ",null,0,0,0]
[null,null,"дистанционная",null,0,0,0]
[null,null,"выездная",null,0,0,0]
[null,"психолого-педагогическая помощь","очная",null,0,0,0]
[null,null,"дистанционная",null,0,0,0]
[null,null,"выездная",null,0,0,0]
[null,"диагностическая помощь","очная",null,0,0,0]
[null,null,"дистанционная",null,0,0,0]
[null,null,"выездная",null,0,0,0]
[null,"консультативная помощь","очная",41,0,0,41]
[null,null,"дистанционная",3,0,0,3]
[null,null,"выездная",null,0,0,0]
["Общее количество родителей(законных представителей), обратившихся за помощью  в 1 квартале 2021 г","Количество родителей (з/пр) с детьми, получающими дошкольное образование                 в форме семейного образования"," до 1,5 лет",null,0,0,0]
[null,null,"от 1,5 до 3 лет",null,0,0,0]
[null,null,"от 3 до 7 лет",null,0,0,0]
[null,null,"7 лет и старше",null,0,0,0]
[null,"Количество родителей (з/пр) детей,  не получающих дошкольное образование","до 1,5 лет",null,0,0,0]
[null,null,"от 1,5 до 3 лет",null,0,0,0]
[null,null,"от 3 до 7 лет",null,0,0,0]
[null,null,"7 лет и старше",null,0,0,0]
[null,"Количество родителей (з/пр),  с детьми, получающими дошкольное образование в ДОО","до 1,5 лет",null,0,0,0]
[null,null,"от 1,5 до 3 лет",null,0,0,0]
[null,null,"от 3 до 7 лет",null,0,0,0]
[null,null,"7 лет и старше",null,0,0,0]
[null,"Количество родителей (з/пр),  с детьми школьниками, получающими  образование в форме семейного образования","7-11 лет",null,0,0,0]
[null,null,"12-15 лет",null,0,0,0]
[null,null,"16 лет и старше",null,0,0,0]
[null,"Количество родителей (з/пр), обратившихся  с детьми школьниками, получающими  образование в ОО","7-11 лет",21,0,0,21]
[null,null," 12-15 лет",17,0,0,17]
[null,null,"16 лет и старше",6,0,0,6]
["Общее количество детей, охваченных услугами в 1 квартале  2021 г","Количество детей, получающих дошкольное образование в семейной форме"," до 1,5 лет",null,0,0,0]
[null,null,"от 1,5 до 3 лет",null,0,0,0]
[null,null,"от 3 до 7 лет",null,0,0,0]
[null,null," 7 лет и старше",null,0,0,0]
[null,"Количество детей, не получающих дошкольное образование"," до 1,5 лет",null,0,0,0]
[null,null,"от 1,5 до 3 лет",null,0,0,0]
[null,null,"от 3 до 7 лет",null,0,0,0]
[null,null," 7 лет и старше",null,0,0,0]
[null,"Количество детей, получающих дошкольное образование в ДОО","до 1,5 лет",null,0,0,0]
[null,null,"от 1,5 до 3 лет",null,0,0,0]
[null,null,"от 3 до 7 лет",null,0,0,0]
[null,null,"7 лет и старше",null,0,0,0]
[null,"Количество детей школьников, получающих образование в семейной форме","7-11 лет",null,0,0,0]
[null,null," 12-15 лет",null,0,0,0]
[null,null,"16 лет и старше",null,0,0,0]
[null,"Количество детей школьников, получающих образование в ОО","7-11 лет",21,0,0,21]
[null,null,"12-15 лет",17,0,0,17]
[null,null,"16 лет и старше",6,0,0,6]

{"sheet":"Коченевский","index":14,"n_rows":49,"n_cols":7,"rows_kept":49,"cut":false,"hidden":false,"merged":[[1,0,12,0],[1,1,3,1],[4,1,6,1],[7,1,9,1],[10,1,12,1],[13,0,30,0],[13,1,16,1],[31,0,48,0],[31,1,34,1],[43,1,45,1],[46,1,48,1],[35,1,38,1],[17,1,20,1],[25,1,27,1],[28,1,30,1],[21,1,24,1],[39,1,42,1]]}
[null,null,null,"МКОУ Коченевская СОШ № 1 имени Героя Советского Союза Аргунова Н.Ф. ","МКОУ Коченевская СОШ № 13 ","МКДОУ детский сад №6 \"Антошка\"","Итого"]
["Общее количество обращений по видам помощи в   1 квартале 2022 г.","методическая помощь","очная ",null,null,null,0]
[null,null,"дистанционная",null,1,null,1]
[null,null,"выездная",null,null,null,0]
[null,"психолого-педагогическая помощь","очная",null,10,null,10]
[null,null,"дистанционная",null,8,null,8]
[null,null,"выездная",5,null,null,5]
[null,"диагностическая помощь","очная",null,15,10,25]
[null,null,"дистанционная",null,null,10,10]
[null,null,"выездная",null,null,null,0]
[null,"консультативная помощь","очная",20,15,21,56]
[null,null,"дистанционная",null,1,2,3]
[null,null,"выездная",5,null,null,5]
["Общее количество родителей(законных представителей), обратившихся за помощью  в 1 квартале 2022 г","Количество родителей (з/пр) с детьми, получающими дошкольное образование                 в форме семейного образования"," до 1,5 лет",null,null,null,0]
[null,null,"от 1,5 до 3 лет",null,null,5,5]
[null,null,"от 3 до 7 лет",null,null,32,32]
[null,null,"7 лет и старше",null,null,null,0]
[null,"Количество родителей (з/пр) детей,  не получающих дошкольное образование","до 1,5 лет",null,null,null,0]
[null,null,"от 1,5 до 3 лет",null,null,null,0]
[null,null,"от 3 до 7 лет",null,null,null,0]
[null,null,"7 лет и старше",null,null,null,0]
[null,"Количество родителей (з/пр),  с детьми, получающими дошкольное образование в ДОО","до 1,5 лет",null,null,null,0]
[null,null,"от 1,5 до 3 лет",null,null,null,0]
[null,null,"от 3 до 7 лет",null,null,null,0]
[null,null,"7 лет и старше",null,null,null,0]
[null,"Количество родителей (з/пр),  с детьми школьниками, получающими  образование в форме семейного образования","7-11 лет",null,null,null,0]
[null,null,"12-15 лет",null,1,null,1]
[null,null,"16 лет и старше",null,1,null,1]
[null,"Количество родителей (з/пр), обратившихся  с детьми школьниками, получающими  образование в ОО","7-11 лет",15,10,null,25]
[null,null," 12-15 лет",10,10,null,20]
[null,null,"16 лет и старше",null,3,null,3]
["Общее количество детей, охваченных услугами в 1 квартале  2022 г","Количество детей, получающих дошкольное образование в семейной форме"," до 1,5 лет",null,null,null,0]
[null,null,"от 1,5 до 3 лет",null,null,null,0]
[null,null,"от 3 до 7 лет",null,null,null,0]
[null,null," 7 лет и старше",null,null,null,0]
[null,"Количество детей, не получающих дошкольное образование"," до 1,5 лет",null,null,null,0]
[null,null,"от 1,5 до 3 лет",null,null,null,0]
[null,null,"от 3 до 7 лет",null,null,null,0]
[null,null," 7 лет и старше",null,null,null,0]
[null,"Количество детей, получающих дошкольное образование в ДОО","до 1,5 лет",null,null,null,0]
[null,null,"от 1,5 до 3 лет",null,null,3,3]
[null,null,"от 3 до 7 лет",null,null,52,52]
[null,null,"7 лет и старше",null,null,null,0]
[null,"Количество детей школьников, получающих образование в семейной форме","7-11 лет",null,null,null,0]
[null,null," 12-15 лет",null,1,null,1]
[null,null,"16 лет и старше",null,1,null,1]
[null,"Количество детей школьников, получающих образование в ОО","7-11 лет",15,10,null,25]
[null,null,"12-15 лет",10,10,null,20]
[null,null,"16 лет и старше",null,3,null,3]

{"sheet":"Кочковский","index":15,"n_rows":49,"n_cols":17,"rows_kept":49,"cut":false,"hidden":false,"merged":[[21,1,24,1],[1,0,12,0],[1,1,3,1],[4,1,6,1],[7,1,9,1],[10,1,12,1],[13,0,30,0],[13,1,16,1],[17,1,20,1],[25,1,27,1],[28,1,30,1],[31,0,48,0],[31,1,34,1],[43,1,45,1],[46,1,48,1],[35,1,38,1],[39,1,42,1]]}
[null,null,null,"Решетовская","Новорешетовская","Кочковская","Черновская","Красносибирская","Быструхинская","Жуланская","Троицкая","Новоцелинаня","Республиканская","Букреевская","Ермаковская","Кочковский д/с","Итого"]
["Общее количество обращений по видам помощи в   1 квартале 2022 г.","методическая помощь","очная ",0,10,6,2,1,1,12,0,6,0,1,8,2,49]
[null,null,"дистанционная",0,0,0,0,0,9,15,0,0,0,0,0,0,24]
[null,null,"выездная",0,0,0,0,0,0,0,0,0,0,0,0,0,0]
[null,"психолого-педагогическая помощь","очная",0,5,19,2,3,12,9,0,3,0,6,4,3,66]
[null,null,"дистанционная",0,0,0,0,0,0,5,0,0,0,0,0,0,5]
[null,null,"выездная",0,0,0,0,0,0,3,0,0,0,0,0,0,3]
[null,"диагностическая помощь","очная",0,0,34,0,3,0,0,0,15,0,0,0,3,55]
[null,null,"дистанционная",0,0,0,0,0,0,0,0,0,0,0,0,0,0]
[null,null,"выездная",0,0,0,0,0,0,0,0,0,0,0,0,0,0]
[null,"консультативная помощь","очная",24,20,40,2,11,56,6,4,7,2,2,7,7,188]
[null,null,"дистанционная",0,0,2,0,2,0,4,4,0,0,0,0,1,13]
[null,null,"выездная",0,0,0,0,0,0,0,0,0,0,0,0,0,0]
["Общее количество родителей(законных представителей), обратившихся за помощью  в 1 квартале 2022 г","Количество родителей (з/пр) с детьми, получающими дошкольное образование                 в форме семейного образования"," до 1,5 лет",null,null,null,null,null,null,null,null,null,null,null,null,null,0]
[null,null,"от 1,5 до 3 лет",null,null,null,null,null,null,null,null,null,null,null,null,null,0]
[null,null,"от 4 до 7 лет",null,null,null,null,null,null,null,null,null,null,null,null,null,0]
[null,null,"7 лет и старше",null,null,null,null,null,null,null,null,null,null,null,null,null,0]
[null,"Количество родителей (з/пр) детей,  не получающих дошкольное образование","до 1,5 лет",null,null,null,null,null,null,null,null,null,null,null,null,null,0]
[null,null,"от 1,5 до 3 лет",null,null,null,null,null,null,null,null,null,null,null,null,null,0]
[null,null,"от 3 до 7 лет",null,null,null,null,null,null,null,null,null,null,null,null,null,0]
[null,null,"7 лет и старше",null,null,null,null,null,null,null,null,null,null,null,null,null,0]
[null,"Количество родителей (з/пр),  с детьми, получающими дошкольное образование в ДОО","до 1,5 лет",null,null,null,null,null,null,null,null,null,null,null,null,0,0]
[null,null,"от 1,5 до 3 лет",null,null,null,null,null,null,null,null,null,null,null,null,0,0]
[null,null,"от 3 до 7 лет",null,null,null,null,null,null,null,null,null,null,null,null,8,8]
[null,null,"7 лет и старше",null,null,null,null,null,null,null,null,null,null,null,null,0,0]
[null,"Количество родителей (з/пр),  с детьми школьниками, получающими  образование в форме семейного образования","7-11 лет",null,null,null,null,null,null,null,null,null,null,null,null,null,0]
[null,null,"12-15 лет",null,null,null,null,null,null,null,null,null,null,null,null,null,0]
[null,null,"16 лет и старше",null,null,null,null,null,null,null,null,null,null,null,null,null,0]
[null,"Количество родителей (з/пр), обратившихся  с детьми школьниками, получающими  образование в ОО","7-11 лет",14,5,27,2,3,36,8,4,6,2,1,4,null,112]
[null,null," 12-15 лет",9,3,14,2,9,15,19,3,9,0,5,3,null,91]
[null,null,"16 лет и старше",1,2,12,0,1,4,0,1,1,0,0,0,null,22]
["Общее количество детей, охваченных услугами в 1 квартале  2022 г","Количество детей, получающих дошкольное образование в семейной форме"," до 1,5 лет",null,null,null,null,null,null,null,null,null,null,null,null,null,0]
[null,null,"от 1,5 до 3 лет",null,null,null,null,null,null,null,null,null,null,null,null,null,0]
[null,null,"от 3 до 7 лет",null,null,null,null,null,null,null,null,null,null,null,null,null,0]
[null,null," 7 лет и старше",null,null,null,null,null,null,null,null,null,null,null,null,null,0]
[null,"Количество детей, не получающих дошкольное образование"," до 1,5 лет",null,null,null,null,null,null,null,null,null,null,null,null,null,0]
[null,null,"от 1,5 до 3 лет",null,null,null,null,null,null,null,null,null,null,null,null,null,0]
[null,null,"от 3 до 7 лет",null,null,null,null,null,null,null,null,null,null,null,null,null,0]
[null,null," 7 лет и старше",null,null,null,null,null,null,null,null,null,null,null,null,null,0]
[null,"Количество детей, получающих дошкольное образование в ДОО","до 1,5 лет",null,null,null,null,null,null,null,null,null,null,null,null,0,0]
[null,null,"от 1,5 до 3 лет",null,null,null,null,null,null,null,null,null,null,null,null,0,0]
[null,null,"от 3 до 7 лет",null,null,null,null,null,null,null,null,null,null,null,null,8,8]
[null,null,"7 лет и старше",null,null,null,null,null,null,null,null,null,null,null,null,0,0]
[null,"Количество детей школьников, получающих образование в семейной форме","7-11 лет",null,null,null,null,null,null,null,null,null,null,null,null,null,0]
[null,null," 12-15 лет",null,null,null,null,null,null,null,null,null,null,null,null,null,0]
[null,null,"16 лет и старше",null,null,null,null,null,null,null,null,null,null,null,null,null,0]
[null,"Количество детей школьников, получающих образование в ОО","7-11 лет",14,5,29,2,5,36,8,4,6,2,1,4,null,116]
[null,null,"12-15 лет",9,3,14,2,9,15,19,3,9,0,5,3,null,91]
[null,null,"16 лет и старше",1,2,12,0,2,4,0,1,1,0,0,0,null,23]

{"sheet":"Краснозерский","index":16,"n_rows":49,"n_cols":7,"rows_kept":49,"cut":false,"hidden":false,"merged":[[25,1,27,1],[31,0,48,0],[31,1,34,1],[35,1,38,1],[39,1,42,1],[43,1,45,1],[46,1,48,1],[28,1,30,1],[13,0,30,0],[13,1,16,1],[17,1,20,1],[21,1,24,1],[1,0,12,0],[1,1,3,1],[4,1,6,1],[7,1,9,1],[10,1,12,1]]}
[null,"За  1- квартал 2022 года",null,"Краснозерский детский сад №6","00 №2","ОО №3","Итого"]
["Общее количество обращений по видам помощи в   1 квартале 2022 г.","методическая помощь","очная",null,null,null,0]
[null,null,"дистанционная",null,null,null,0]
[null,null,"выездная",null,null,null,0]
[null,"психолого-педагогическая помощь","очная",181,null,null,181]
[null,null,"дистанционная",null,null,null,0]
[null,null,"выездная",null,null,null,0]
[null,"диагностическая помощь","очная",5,null,null,5]
[null,null,"дистанционная",null,null,null,0]
[null,null,"выездная",null,null,null,0]
[null,"консультативная помощь","очная",111,null,null,111]
[null,null,"дистанционная",null,null,null,0]
[null,null,"выездная",null,null,null,0]
["Общее количество родителей(законных представителей), обратившихся за помощью  в 1 квартале 2022 г","Количество родителей (з/пр) с детьми, получающими дошкольное образование                 в форме семейного образования"," до 1,5 лет",null,null,null,0]
[null,null,"от 1,5 до 3 лет",null,null,null,0]
[null,null,"от 3 до 7 лет",null,null,null,0]
[null,null,"7 лет и старше",null,null,null,0]
[null,"Количество родителей (з/пр) детей,  не получающих дошкольное образование","до 1,5 лет",null,null,null,0]
[null,null,"от 1,5 до 3 лет",null,null,null,0]
[null,null,"от 3 до 7 лет",null,null,null,0]
[null,null,"7 лет и старше",null,null,null,0]
[null,"Количество родителей (з/пр),  с детьми, получающими дошкольное образование в ДОО","до 1,5 лет",null,null,null,0]
[null,null,"от 1,5 до 3 лет",11,null,null,11]
[null,null,"от 3 до 7 лет",45,null,null,45]
[null,null,"7 лет и старше",null,null,null,0]
[null,"Количество родителей (з/пр),  с детьми школьниками, получающими  образование в форме семейного образования","7-11 лет",null,null,null,0]
[null,null,"12-15 лет",null,null,null,0]
[null,null,"16 лет и старше",null,null,null,0]
[null,"Количество родителей (з/пр), обратившихся  с детьми школьниками, получающими  образование в ОО","7-11 лет",null,null,null,0]
[null,null," 12-15 лет",null,null,null,0]
[null,null,"16 лет и старше",null,null,null,0]
["Общее количество детей, охваченных услугами в 1 квартале  2022 г","Количество детей, получающих дошкольное образование в семейной форме"," до 1,5 лет",null,null,null,0]
[null,null,"от 1,5 до 3 лет",null,null,null,0]
[null,null,"от 3 до 7 лет",null,null,null,0]
[null,null," 7 лет и старше",null,null,null,0]
[null,"Количество детей, не получающих дошкольное образование"," до 1,5 лет",null,null,null,0]
[null,null,"от 1,5 до 3 лет",null,null,null,0]
[null,null,"от 3 до 7 лет",null,null,null,0]
[null,null," 7 лет и старше",null,null,null,0]
[null,"Количество детей, получающих дошкольное образование в ДОО","до 1,5 лет",null,null,null,0]
[null,null,"от 1,5 до 3 лет",11,null,null,11]
[null,null,"от 3 до 7 лет",55,null,null,55]
[null,null,"7 лет и старше",null,null,null,0]
[null,"Количество детей школьников, получающих образование в семейной форме","7-11 лет",null,null,null,0]
[null,null," 12-15 лет",null,null,null,0]
[null,null,"16 лет и старше",null,null,null,0]
[null,"Количество детей школьников, получающих образование в ОО","7-11 лет",null,null,null,0]
[null,null,"12-15 лет",null,null,null,0]
[null,null,"16 лет и старше",null,null,null,0]

{"sheet":"Куйбышевский","index":17,"n_rows":49,"n_cols":8,"rows_kept":49,"cut":false,"hidden":false,"merged":[[1,0,12,0],[1,1,3,1],[4,1,6,1],[7,1,9,1],[10,1,12,1],[13,0,30,0],[13,1,16,1],[31,0,48,0],[31,1,34,1],[43,1,45,1],[46,1,48,1],[35,1,38,1],[17,1,20,1],[25,1,27,1],[28,1,30,1],[21,1,24,1],[39,1,42,1]]}
[null,null,null,"ДОУ \"Солнышко\"","ДОУ \"Родничок\"","МКОУ СОШ № 4","МКОУ школа-интернат","Итого"]
["Общее количество обращений по видам помощи в   1 квартале 2022 г.","методическая помощь","очная ",0,0,0,2,2]
[null,null,"дистанционная",3,0,0,0,3]
[null,null,"выездная",0,0,0,0,0]
[null,"психолого-педагогическая помощь","очная",0,37,14,3,54]
[null,null,"дистанционная",0,0,0,0,0]
[null,null,"выездная",0,0,0,0,0]
[null,"диагностическая помощь","очная",0,0,0,2,2]
[null,null,"дистанционная",0,0,0,0,0]
[null,null,"выездная",0,0,0,0,0]
[null,"консультативная помощь","очная",56,39,2,16,113]
[null,null,"дистанционная",40,0,0,2,42]
[null,null,"выездная",0,0,0,2,2]
["Общее количество родителей(законных представителей), обратившихся за помощью  в 1 квартале 2022 г","Количество родителей (з/пр) с детьми, получающими дошкольное образование                 в форме семейного образования"," до 1,5 лет",1,0,0,0,1]
[null,null,"от 1,5 до 3 лет",0,0,0,0,0]
[null,null,"от 3 до 7 лет",0,0,0,0,0]
[null,null,"7 лет и старше",0,0,0,0,0]
[null,"Количество родителей (з/пр) детей,  не получающих дошкольное образование","до 1,5 лет",8,0,0,0,8]
[null,null,"от 1,5 до 3 лет",7,0,0,0,7]
[null,null,"от 3 до 7 лет",7,0,0,0,7]
[null,null,"7 лет и старше",0,0,0,0,0]
[null,"Количество родителей (з/пр),  с детьми, получающими дошкольное образование в ДОО","до 1,5 лет",3,0,0,0,3]
[null,null,"от 1,5 до 3 лет",21,0,0,0,21]
[null,null,"от 3 до 7 лет",46,76,11,1,134]
[null,null,"7 лет и старше",6,0,0,0,6]
[null,"Количество родителей (з/пр),  с детьми школьниками, получающими  образование в форме семейного образования","7-11 лет",0,0,0,0,0]
[null,null,"12-15 лет",0,0,0,0,0]
[null,null,"16 лет и старше",0,0,0,0,0]
[null,"Количество родителей (з/пр), обратившихся  с детьми школьниками, получающими  образование в ОО","7-11 лет",0,0,3,12,15]
[null,null," 12-15 лет",0,0,2,12,14]
[null,null,"16 лет и старше",0,0,0,2,2]
["Общее количество детей, охваченных услугами в 1 квартале  2022 г","Количество детей, получающих дошкольное образование в семейной форме"," до 1,5 лет",1,0,0,0,1]
[null,null,"от 1,5 до 3 лет",0,0,0,0,0]
[null,null,"от 3 до 7 лет",0,76,0,0,76]
[null,null," 7 лет и старше",0,0,0,0,0]
[null,"Количество детей, не получающих дошкольное образование"," до 1,5 лет",8,0,0,0,8]
[null,null,"от 1,5 до 3 лет",7,0,0,0,7]
[null,null,"от 3 до 7 лет",7,0,0,0,7]
[null,null," 7 лет и старше",0,0,0,0,0]
[null,"Количество детей, получающих дошкольное образование в ДОО","до 1,5 лет",3,0,0,0,3]
[null,null,"от 1,5 до 3 лет",21,0,0,0,21]
[null,null,"от 3 до 7 лет",46,0,11,1,58]
[null,null,"7 лет и старше",6,0,0,0,6]
[null,"Количество детей школьников, получающих образование в семейной форме","7-11 лет",0,0,0,0,0]
[null,null," 12-15 лет",0,0,0,0,0]
[null,null,"16 лет и старше",0,0,0,0,0]
[null,"Количество детей школьников, получающих образование в ОО","7-11 лет",0,0,3,12,15]
[null,null,"12-15 лет",0,0,2,14,16]
[null,null,"16 лет и старше",0,0,0,2,2]

{"sheet":"Купинский","index":18,"n_rows":49,"n_cols":8,"rows_kept":49,"cut":false,"hidden":false,"merged":[[13,0,30,0],[13,1,16,1],[31,0,48,0],[31,1,34,1],[43,1,45,1],[46,1,48,1],[35,1,38,1],[17,1,20,1],[25,1,27,1],[28,1,30,1],[21,1,24,1],[39,1,42,1],[1,0,12,0],[1,1,3,1],[4,1,6,1],[7,1,9,1],[10,1,12,1]]}
[null,null,null,"Муниципальное бюджетное общеобразовательное учреждение Купинского района \"Специальная (коррекционная) школа-интернат № 2\"","Муниципальное бюджетное общеобразовательное учреждение специальная (коррекционная) школа – интернат № 1 Купинского района  Новосибирской области.","Муниципальное бюджетное общеобразовательное учреждение средняя общеобразовательная школа № 148 Купинского района","Муниципальное казенное дошкольное образовательное учреждение детский сад \"Теремок\" Купинского района","Итого"]
["Общее количество обращений по видам помощи в   1 квартале 2022 г.","методическая помощь","очная ",24,7,3,null,34]
[null,null,"дистанционная",8,4,2,null,14]
[null,null,"выездная",0,null,null,null,0]
[null,"психолого-педагогическая помощь","очная",16,15,5,null,36]
[null,null,"дистанционная",9,3,null,null,12]
[null,null,"выездная",6,null,null,null,6]
[null,"диагностическая помощь","очная",64,null,1,null,65]
[null,null,"дистанционная",2,3,null,null,5]
[null,null,"выездная",9,null,null,null,9]
[null,"консультативная помощь","очная",32,30,3,31,96]
[null,null,"дистанционная",13,40,3,null,56]
[null,null,"выездная",12,9,null,null,21]
["Общее количество родителей(законных представителей), обратившихся за помощью  в 1 квартале 2022 г","Количество родителей (з/пр) с детьми, получающими дошкольное образование                 в форме семейного образования"," до 1,5 лет",null,null,null,null,0]
[null,null,"от 1,5 до 3 лет",null,null,null,null,0]
[null,null,"от 3 до 7 лет",null,null,null,null,0]
[null,null,"7 лет и старше",null,null,null,null,0]
[null,"Количество родителей (з/пр) детей,  не получающих дошкольное образование","до 1,5 лет",null,null,null,null,0]
[null,null,"от 1,5 до 3 лет",null,null,null,null,0]
[null,null,"от 3 до 7 лет",null,null,null,null,0]
[null,null,"7 лет и старше",null,null,null,null,0]
[null,"Количество родителей (з/пр),  с детьми, получающими дошкольное образование в ДОО","до 1,5 лет",null,null,null,null,0]
[null,null,"от 1,5 до 3 лет",null,null,null,null,0]
[null,null,"от 3 до 7 лет",null,null,null,25,25]
[null,null,"7 лет и старше",null,null,null,2,2]
[null,"Количество родителей (з/пр),  с детьми школьниками, получающими  образование в форме семейного образования","7-11 лет",null,null,null,null,0]
[null,null,"12-15 лет",null,null,null,null,0]
[null,null,"16 лет и старше",null,null,null,null,0]
[null,"Количество родителей (з/пр), обратившихся  с детьми школьниками, получающими  образование в ОО","7-11 лет",14,10,1,null,25]
[null,null," 12-15 лет",11,15,4,null,30]
[null,null,"16 лет и старше",5,null,1,null,6]
["Общее количество детей, охваченных услугами в 1 квартале  2022 г","Количество детей, получающих дошкольное образование в семейной форме"," до 1,5 лет",null,null,null,null,0]
[null,null,"от 1,5 до 3 лет",null,null,null,null,0]
[null,null,"от 3 до 7 лет",null,null,null,null,0]
[null,null," 7 лет и старше",null,null,null,null,0]
[null,"Количество детей, не получающих дошкольное образование"," до 1,5 лет",null,null,null,null,0]
[null,null,"от 1,5 до 3 лет",null,null,null,null,0]
[null,null,"от 3 до 7 лет",null,null,null,null,0]
[null,null," 7 лет и старше",null,null,null,null,0]
[null,"Количество детей, получающих дошкольное образование в ДОО","до 1,5 лет",null,null,null,null,0]
[null,null,"от 1,5 до 3 лет",null,null,null,null,0]
[null,null,"от 3 до 7 лет",null,null,null,24,24]
[null,null,"7 лет и старше",null,null,null,1,1]
[null,"Количество детей школьников, получающих образование в семейной форме","7-11 лет",null,null,null,null,0]
[null,null," 12-15 лет",null,null,null,null,0]
[null,null,"16 лет и старше",null,null,null,null,0]
[null,"Количество детей школьников, получающих образование в ОО","7-11 лет",26,8,1,null,35]
[null,null,"12-15 лет",24,15,4,null,43]
[null,null,"16 лет и старше",3,null,1,null,4]

{"sheet":"Кыштовский","index":19,"n_rows":49,"n_cols":7,"rows_kept":49,"cut":false,"hidden":false,"merged":[[13,0,30,0],[13,1,16,1],[31,0,48,0],[31,1,34,1],[43,1,45,1],[46,1,48,1],[35,1,38,1],[17,1,20,1],[25,1,27,1],[28,1,30,1],[21,1,24,1],[39,1,42,1],[1,0,12,0],[1,1,3,1],[4,1,6,1],[7,1,9,1],[10,1,12,1]]}
[null,null,null,"МБОУ КСОШ № 2","МКДОУ\"Ласточка\"","МКДОУ \"Березка\"","Итого"]
["Общее количество обращений по видам помощи в   1 квартале 2022 г.","методическая помощь","очная ",0,8,0,8]
[null,null,"дистанционная",0,12,0,12]
[null,null,"выездная",0,0,0,0]
[null,"психолого-педагогическая помощь","очная",0,14,0,14]
[null,null,"дистанционная",0,11,0,11]
[null,null,"выездная",0,0,0,0]
[null,"диагностическая помощь","очная",0,4,0,4]
[null,null,"дистанционная",0,2,0,2]
[null,null,"выездная",0,0,0,0]
[null,"консультативная помощь","очная",12,38,4,54]
[null,null,"дистанционная",0,15,27,42]
[null,null,"выездная",0,0,0,0]
["Общее количество родителей(законных представителей), обратившихся за помощью  в 1 квартале 2022 г","Количество родителей (з/пр) с детьми, получающими дошкольное образование                 в форме семейного образования"," до 1,5 лет",0,0,0,0]
[null,null,"от 1,5 до 3 лет",0,0,0,0]
[null,null,"от 3 до 7 лет",0,0,0,0]
[null,null,"7 лет и старше",0,0,0,0]
[null,"Количество родителей (з/пр) детей,  не получающих дошкольное образование","до 1,5 лет",0,2,0,2]
[null,null,"от 1,5 до 3 лет",0,5,0,5]
[null,null,"от 3 до 7 лет",0,8,0,8]
[null,null,"7 лет и старше",0,0,0,0]
[null,"Количество родителей (з/пр),  с детьми, получающими дошкольное образование в ДОО","до 1,5 лет",0,0,0,0]
[null,null,"от 1,5 до 3 лет",0,11,6,17]
[null,null,"от 3 до 7 лет",0,17,25,42]
[null,null,"7 лет и старше",0,5,0,5]
[null,"Количество родителей (з/пр),  с детьми школьниками, получающими  образование в форме семейного образования","7-11 лет",0,0,0,0]
[null,null,"12-15 лет",0,0,0,0]
[null,null,"16 лет и старше",0,0,0,0]
[null,"Количество родителей (з/пр), обратившихся  с детьми школьниками, получающими  образование в ОО","7-11 лет",3,0,0,3]
[null,null," 12-15 лет",9,0,0,9]
[null,null,"16 лет и старше",0,0,0,0]
["Общее количество детей, охваченных услугами в 1 квартале  2022 г","Количество детей, получающих дошкольное образование в семейной форме"," до 1,5 лет",0,0,0,0]
[null,null,"от 1,5 до 3 лет",0,0,0,0]
[null,null,"от 3 до 7 лет",0,0,0,0]
[null,null," 7 лет и старше",0,0,0,0]
[null,"Количество детей, не получающих дошкольное образование"," до 1,5 лет",0,0,0,0]
[null,null,"от 1,5 до 3 лет",0,0,0,0]
[null,null,"от 3 до 7 лет",0,0,0,0]
[null,null," 7 лет и старше",0,0,0,0]
[null,"Количество детей, получающих дошкольное образование в ДОО","до 1,5 лет",0,0,0,0]
[null,null,"от 1,5 до 3 лет",0,11,6,17]
[null,null,"от 3 до 7 лет",0,28,25,53]
[null,null,"7 лет и старше",0,4,0,4]
[null,"Количество детей школьников, получающих образование в семейной форме","7-11 лет",0,0,0,0]
[null,null," 12-15 лет",0,0,0,0]
[null,null,"16 лет и старше",0,0,0,0]
[null,"Количество детей школьников, получающих образование в ОО","7-11 лет",3,0,0,3]
[null,null,"12-15 лет",9,0,0,9]
[null,null,"16 лет и старше",0,0,0,0]

{"sheet":"Маслянинский","index":20,"n_rows":49,"n_cols":7,"rows_kept":49,"cut":false,"hidden":false,"merged":[[31,0,48,0],[31,1,34,1],[43,1,45,1],[46,1,48,1],[35,1,38,1],[39,1,42,1],[21,1,24,1],[1,0,12,0],[1,1,3,1],[4,1,6,1],[7,1,9,1],[10,1,12,1],[13,0,30,0],[13,1,16,1],[17,1,20,1],[25,1,27,1],[28,1,30,1]]}
[null,null,null,"МКДОУ детский сад \"Тополёк\"","МБДОУ детский сад \"Росинка\"","МБОУ Маслянинская СОШ № 1","Итого"]
["Общее количество обращений по видам помощи в   1 квартале 2022 г.","методическая помощь","очная ",null,null,0,0]
[null,null,"дистанционная",null,null,0,0]
[null,null,"выездная",null,null,0,0]
[null,"психолого-педагогическая помощь","очная",null,2,0,2]
[null,null,"дистанционная",null,null,0,0]
[null,null,"выездная",null,null,0,0]
[null,"диагностическая помощь","очная",null,null,0,0]
[null,null,"дистанционная",null,null,0,0]
[null,null,"выездная",null,null,0,0]
[null,"консультативная помощь","очная",7,1,0,8]
[null,null,"дистанционная",2,null,0,2]
[null,null,"выездная",null,null,0,0]
["Общее количество родителей(законных представителей), обратившихся за помощью  в 1 квартале 2022 г","Количество родителей (з/пр) с детьми, получающими дошкольное образование                 в форме семейного образования"," до 1,5 лет",null,null,0,0]
[null,null,"от 1,5 до 3 лет",null,null,0,0]
[null,null,"от 3 до 7 лет",null,null,0,0]
[null,null,"7 лет и старше",null,null,0,0]
[null,"Количество родителей (з/пр) детей,  не получающих дошкольное образование","до 1,5 лет",null,null,0,0]
[null,null,"от 1,5 до 3 лет",5,null,0,5]
[null,null,"от 3 до 7 лет",null,null,0,0]
[null,null,"7 лет и старше",null,null,0,0]
[null,"Количество родителей (з/пр),  с детьми, получающими дошкольное образование в ДОО","до 1,5 лет",null,null,0,0]
[null,null,"от 1,5 до 3 лет",4,null,0,4]
[null,null,"от 3 до 7 лет",null,3,0,3]
[null,null,"7 лет и старше",null,null,0,0]
[null,"Количество родителей (з/пр),  с детьми школьниками, получающими  образование в форме семейного образования","7-11 лет",null,null,0,0]
[null,null,"12-15 лет",null,null,0,0]
[null,null,"16 лет и старше",null,null,0,0]
[null,"Количество родителей (з/пр), обратившихся  с детьми школьниками, получающими  образование в ОО","7-11 лет",null,null,0,0]
[null,null," 12-15 лет",null,null,0,0]
[null,null,"16 лет и старше",null,null,0,0]
["Общее количество детей, охваченных услугами в 1 квартале  2022 г","Количество детей, получающих дошкольное образование в семейной форме"," до 1,5 лет",null,null,0,0]
[null,null,"от 1,5 до 3 лет",null,null,0,0]
[null,null,"от 3 до 7 лет",null,null,0,0]
[null,null," 7 лет и старше",null,null,0,0]
[null,"Количество детей, не получающих дошкольное образование"," до 1,5 лет",null,null,0,0]
[null,null,"от 1,5 до 3 лет",5,null,0,5]
[null,null,"от 3 до 7 лет",null,null,0,0]
[null,null," 7 лет и старше",null,null,0,0]
[null,"Количество детей, получающих дошкольное образование в ДОО","до 1,5 лет",null,null,0,0]
[null,null,"от 1,5 до 3 лет",4,null,0,4]
[null,null,"от 3 до 7 лет",null,3,0,3]
[null,null,"7 лет и старше",null,null,0,0]
[null,"Количество детей школьников, получающих образование в семейной форме","7-11 лет",null,null,0,0]
[null,null," 12-15 лет",null,null,0,0]
[null,null,"16 лет и старше",null,null,0,0]
[null,"Количество детей школьников, получающих образование в ОО","7-11 лет",null,null,0,0]
[null,null,"12-15 лет",null,null,0,0]
[null,null,"16 лет и старше",null,null,0,0]

{"sheet":"Мошковский","index":21,"n_rows":49,"n_cols":7,"rows_kept":49,"cut":false,"hidden":false,"merged":[[31,0,48,0],[31,1,34,1],[35,1,38,1],[39,1,42,1],[43,1,45,1],[46,1,48,1],[13,0,30,0],[13,1,16,1],[17,1,20,1],[21,1,24,1],[25,1,27,1],[28,1,30,1],[1,0,12,0],[1,1,3,1],[4,1,6,1],[7,1,9,1],[10,1,12,1]]}
[null,null,null,"ОО №1","00 №2","ОО №3","Итого"]
["Общее количество обращений по видам помощи в   1 квартале 2021 г.","методическая помощь","очная ",0,0,0,0]
[null,null,"дистанционная",0,0,0,0]
[null,null,"выездная",0,0,0,0]
[null,"психолого-педагогическая помощь","очная",0,0,0,0]
[null,null,"дистанционная",0,0,0,0]
[null,null,"выездная",0,0,0,0]
[null,"диагностическая помощь","очная",0,0,0,0]
[null,null,"дистанционная",0,0,0,0]
[null,null,"выездная",0,0,0,0]
[null,"консультативная помощь","очная",0,0,0,0]
[null,null,"дистанционная",0,0,0,0]
[null,null,"выездная",0,0,0,0]
["Общее количество родителей(законных представителей), обратившихся за помощью  в 1 квартале 2021 г","Количество родителей (з/пр) с детьми, получающими дошкольное образование                 в форме семейного образования"," до 1,5 лет",0,0,0,0]
[null,null,"от 1,5 до 3 лет",0,0,0,0]
[null,null,"от 3 до 7 лет",0,0,0,0]
[null,null,"7 лет и старше",0,0,0,0]
[null,"Количество родителей (з/пр) детей,  не получающих дошкольное образование","до 1,5 лет",0,0,0,0]
[null,null,"от 1,5 до 3 лет",0,0,0,0]
[null,null,"от 3 до 7 лет",0,0,0,0]
[null,null,"7 лет и старше",0,0,0,0]
[null,"Количество родителей (з/пр),  с детьми, получающими дошкольное образование в ДОО","до 1,5 лет",0,0,0,0]
[null,null,"от 1,5 до 3 лет",0,0,0,0]
[null,null,"от 3 до 7 лет",0,0,0,0]
[null,null,"7 лет и старше",0,0,0,0]
[null,"Количество родителей (з/пр),  с детьми школьниками, получающими  образование в форме семейного образования","7-11 лет",0,0,0,0]
[null,null,"12-15 лет",0,0,0,0]
[null,null,"16 лет и старше",0,0,0,0]
[null,"Количество родителей (з/пр), обратившихся  с детьми школьниками, получающими  образование в ОО","7-11 лет",0,0,0,0]
[null,null," 12-15 лет",0,0,0,0]
[null,null,"16 лет и старше",0,0,0,0]
["Общее количество детей, охваченных услугами в 1 квартале  2021 г","Количество детей, получающих дошкольное образование в семейной форме"," до 1,5 лет",0,0,0,0]
[null,null,"от 1,5 до 3 лет",0,0,0,0]
[null,null,"от 3 до 7 лет",0,0,0,0]
[null,null," 7 лет и старше",0,0,0,0]
[null,"Количество детей, не получающих дошкольное образование"," до 1,5 лет",0,0,0,0]
[null,null,"от 1,5 до 3 лет",0,0,0,0]
[null,null,"от 3 до 7 лет",0,0,0,0]
[null,null," 7 лет и старше",0,0,0,0]
[null,"Количество детей, получающих дошкольное образование в ДОО","до 1,5 лет",0,0,0,0]
[null,null,"от 1,5 до 3 лет",0,0,0,0]
[null,null,"от 3 до 7 лет",0,0,0,0]
[null,null,"7 лет и старше",0,0,0,0]
[null,"Количество детей школьников, получающих образование в семейной форме","7-11 лет",0,0,0,0]
[null,null," 12-15 лет",0,0,0,0]
[null,null,"16 лет и старше",0,0,0,0]
[null,"Количество детей школьников, получающих образование в ОО","7-11 лет",0,0,0,0]
[null,null,"12-15 лет",0,0,0,0]
[null,null,"16 лет и старше",0,0,0,0]

{"sheet":"Обь","index":22,"n_rows":49,"n_cols":7,"rows_kept":49,"cut":false,"hidden":false,"merged":[[21,1,24,1],[1,0,12,0],[1,1,3,1],[4,1,6,1],[7,1,9,1],[10,1,12,1],[13,0,30,0],[13,1,16,1],[17,1,20,1],[25,1,27,1],[28,1,30,1],[31,0,48,0],[31,1,34,1],[43,1,45,1],[46,1,48,1],[35,1,38,1],[39,1,42,1]]}
[null,null,null,"МБОУ школа № 2","МБОУ \"СОШ № 26\"","МБОУ Школа № 60","Итого"]
["Общее количество обращений по видам помощи в   1 квартале 2022 г.","методическая помощь","очная ",23,null,null,23]
[null,null,"дистанционная",7,2,null,9]
[null,null,"выездная",null,null,null,0]
[null,"психолого-педагогическая помощь","очная",63,16,51,130]
[null,null,"дистанционная",7,3,null,10]
[null,null,"выездная",null,null,null,0]
[null,"диагностическая помощь","очная",22,16,36,74]
[null,null,"дистанционная",null,null,null,0]
[null,null,"выездная",null,null,null,0]
[null,"консультативная помощь","очная",41,20,15,76]
[null,null,"дистанционная",7,6,null,13]
[null,null,"выездная",null,null,null,0]
["Общее количество родителей(законных представителей), обратившихся за помощью  в 1 квартале 2022 г","Количество родителей (з/пр) с детьми, получающими дошкольное образование                 в форме семейного образования"," до 1,5 лет",null,null,null,0]
[null,null,"от 1,5 до 3 лет",null,null,null,0]
[null,null,"от 3 до 7 лет",null,null,null,0]
[null,null,"7 лет и старше",null,null,null,0]
[null,"Количество родителей (з/пр) детей,  не получающих дошкольное образование","до 1,5 лет",null,null,null,0]
[null,null,"от 1,5 до 3 лет",null,null,null,0]
[null,null,"от 3 до 7 лет",null,null,null,0]
[null,null,"7 лет и старше",null,null,null,0]
[null,"Количество родителей (з/пр),  с детьми, получающими дошкольное образование в ДОО","до 1,5 лет",null,null,null,0]
[null,null,"от 1,5 до 3 лет",null,null,null,0]
[null,null,"от 3 до 7 лет",null,null,null,0]
[null,null,"7 лет и старше",null,null,null,0]
[null,"Количество родителей (з/пр),  с детьми школьниками, получающими  образование в форме семейного образования","7-11 лет",null,null,null,0]
[null,null,"12-15 лет",null,null,null,0]
[null,null,"16 лет и старше",null,null,null,0]
[null,"Количество родителей (з/пр), обратившихся  с детьми школьниками, получающими  образование в ОО","7-11 лет",15,7,null,22]
[null,null," 12-15 лет",20,9,43,72]
[null,null,"16 лет и старше",13,1,null,14]
["Общее количество детей, охваченных услугами в 1 квартале  2022 г","Количество детей, получающих дошкольное образование в семейной форме"," до 1,5 лет",null,null,null,0]
[null,null,"от 1,5 до 3 лет",null,null,null,0]
[null,null,"от 3 до 7 лет",null,null,null,0]
[null,null," 7 лет и старше",null,null,null,0]
[null,"Количество детей, не получающих дошкольное образование"," до 1,5 лет",null,null,null,0]
[null,null,"от 1,5 до 3 лет",null,null,null,0]
[null,null,"от 3 до 7 лет",null,null,null,0]
[null,null," 7 лет и старше",null,null,null,0]
[null,"Количество детей, получающих дошкольное образование в ДОО","до 1,5 лет",null,null,null,0]
[null,null,"от 1,5 до 3 лет",null,null,null,0]
[null,null,"от 3 до 7 лет",null,null,null,0]
[null,null,"7 лет и старше",null,null,null,0]
[null,"Количество детей школьников, получающих образование в семейной форме","7-11 лет",null,null,null,0]
[null,null," 12-15 лет",null,null,null,0]
[null,null,"16 лет и старше",null,null,null,0]
[null,"Количество детей школьников, получающих образование в ОО","7-11 лет",15,7,null,22]
[null,null,"12-15 лет",22,9,67,98]
[null,null,"16 лет и старше",15,1,null,16]

{"sheet":"Ордынский","index":23,"n_rows":49,"n_cols":7,"rows_kept":49,"cut":false,"hidden":false,"merged":[[28,1,30,1],[31,0,48,0],[31,1,34,1],[35,1,38,1],[39,1,42,1],[43,1,45,1],[46,1,48,1],[13,0,30,0],[13,1,16,1],[17,1,20,1],[21,1,24,1],[25,1,27,1],[1,0,12,0],[1,1,3,1],[4,1,6,1],[7,1,9,1],[10,1,12,1]]}
[null,null,null,"ОО №1","00 №2","ОО №3","Итого"]
["Общее количество обращений по видам помощи в   1 квартале 2021 г.","методическая помощь","очная ",0,0,0,0]
[null,null,"дистанционная",0,0,0,0]
[null,null,"выездная",0,0,0,0]
[null,"психолого-педагогическая помощь","очная",0,0,0,0]
[null,null,"дистанционная",0,0,0,0]
[null,null,"выездная",0,0,0,0]
[null,"диагностическая помощь","очная",0,0,0,0]
[null,null,"дистанционная",0,0,0,0]
[null,null,"выездная",0,0,0,0]
[null,"консультативная помощь","очная",0,0,0,0]
[null,null,"дистанционная",0,0,0,0]
[null,null,"выездная",0,0,0,0]
["Общее количество родителей(законных представителей), обратившихся за помощью  в 1 квартале 2021 г","Количество родителей (з/пр) с детьми, получающими дошкольное образование                 в форме семейного образования"," до 1,5 лет",0,0,0,0]
[null,null,"от 1,5 до 3 лет",0,0,0,0]
[null,null,"от 3 до 7 лет",0,0,0,0]
[null,null,"7 лет и старше",0,0,0,0]
[null,"Количество родителей (з/пр) детей,  не получающих дошкольное образование","до 1,5 лет",0,0,0,0]
[null,null,"от 1,5 до 3 лет",0,0,0,0]
[null,null,"от 3 до 7 лет",0,0,0,0]
[null,null,"7 лет и старше",0,0,0,0]
[null,"Количество родителей (з/пр),  с детьми, получающими дошкольное образование в ДОО","до 1,5 лет",0,0,0,0]
[null,null,"от 1,5 до 3 лет",0,0,0,0]
[null,null,"от 3 до 7 лет",0,0,0,0]
[null,null,"7 лет и старше",0,0,0,0]
[null,"Количество родителей (з/пр),  с детьми школьниками, получающими  образование в форме семейного образования","7-11 лет",0,0,0,0]
[null,null,"12-15 лет",0,0,0,0]
[null,null,"16 лет и старше",0,0,0,0]
[null,"Количество родителей (з/пр), обратившихся  с детьми школьниками, получающими  образование в ОО","7-11 лет",0,0,0,0]
[null,null," 12-15 лет",0,0,0,0]
[null,null,"16 лет и старше",0,0,0,0]
["Общее количество детей, охваченных услугами в 1 квартале  2021 г","Количество детей, получающих дошкольное образование в семейной форме"," до 1,5 лет",0,0,0,0]
[null,null,"от 1,5 до 3 лет",0,0,0,0]
[null,null,"от 3 до 7 лет",0,0,0,0]
[null,null," 7 лет и старше",0,0,0,0]
[null,"Количество детей, не получающих дошкольное образование"," до 1,5 лет",0,0,0,0]
[null,null,"от 1,5 до 3 лет",0,0,0,0]
[null,null,"от 3 до 7 лет",0,0,0,0]
[null,null," 7 лет и старше",0,0,0,0]
[null,"Количество детей, получающих дошкольное образование в ДОО","до 1,5 лет",0,0,0,0]
[null,null,"от 1,5 до 3 лет",0,0,0,0]
[null,null,"от 3 до 7 лет",0,0,0,0]
[null,null,"7 лет и старше",0,0,0,0]
[null,"Количество детей школьников, получающих образование в семейной форме","7-11 лет",0,0,0,0]
[null,null," 12-15 лет",0,0,0,0]
[null,null,"16 лет и старше",0,0,0,0]
[null,"Количество детей школьников, получающих образование в ОО","7-11 лет",0,0,0,0]
[null,null,"12-15 лет",0,0,0,0]
[null,null,"16 лет и старше",0,0,0,0]

{"sheet":"Новосибирский","index":24,"n_rows":49,"n_cols":65,"rows_kept":49,"cut":false,"hidden":false,"merged":[[1,0,12,0],[1,1,3,1],[4,1,6,1],[7,1,9,1],[10,1,12,1],[21,1,24,1],[25,1,27,1],[28,1,30,1],[31,0,48,0],[31,1,34,1],[35,1,38,1],[39,1,42,1],[43,1,45,1],[46,1,48,1],[13,0,30,0],[17,1,20,1],[13,1,16,1]]}
[null,null,null,"МБОУ Краснообская СОШ № 1","МБОУ КРАСНООБСКАЯ СОШ № 2","МБОУ Ярковская СОШ № 3","МБОУ Алесеевская СОШ № 4","МБОУ Ленинская СОШ № 6","МБОУ Красноглинная СОШ № 7","МБОУ Барышевская СОШ № 9","МБОУ СОШ № 11 Шиловского гарнизона","МБОУ \"Березовская школа № 12\"","МАОУ Лицей № 13","МБОУ Верх-Тулинская СОШ № 14","МБОУ Гусинобродская СОШ № 18","МБОУ СОШ № 18. ст. Мочище","МБОУ Раздольненская СОШ № 19","МБОУ Криводановская СШ № 22","МБОУ Марусинская СОШ № 24","МБОУ Кудряшовская СШ № 25","МБОУ Краснояровская СОШ № 30","МБОУ Кубовинская ОШ № 31","МБОУ Сосновская СОШ № 32","МБОУ ОШ № 39","МБОУ Каменская СОШ № 44","МБОУ Мочищенская СОШ № 45","МБОУ Ленинская школа № 47","МКОУ Красномайская ОШ № 49","МБОУ Приобская СОШ № 53","МБОУ Новолуговская СОШ № 57","МБОУ СОШ № 58","МБОУ Толмачевская СОШ № 61","МБОУ Пашинская СОШ № 70","МБОУ Ново-Шиловская СОШ № 82","МБОУ Боровская СОШ № 84","МБОУ Плотниковская СОШ № 111","МКОУ Железнодорожная СОШ № 121","МКОУ Мичуринская СОШ № 123","МБОУ - ОШ № 161","Гимназия \"Краснообская\"","МКОУ Сетчанская СОШ № 76 ","ОЦО ","«Белочка»","«Василёк»","«Дельфин»","«Ёлочка»","«Звездочка»","«Земляничка»","«Золотая рыбка»","«Золотой ключик»","«Капелька»","«Колосок»","\"Кубики\"","«Лучик»","\"Лукоморье\"","«Медвежонок» К","«Медвежонок» П","«Незабудка»","«Радуга»","«Родничок»","«Росток»","«Солнышко»","«Теремок»","«Чебурашка»","Итого"]
["Общее количество обращений по видам помощи в 1 квартале 2022 г.","методическая помощь","очная",0,8,0,1,0,0,0,3,0,4,0,2,1,0,0,0,0,0,0,0,0,0,0,1,0,0,0,0,0,0,0,0,0,0,2,0,3,0,2,1,0,0,0,0,0,0,0,26,0,4,0,0,0,0,0,0,0,0,0,1,0,59]
[null,null,"дистанционная",0,0,0,2,1,0,0,3,0,0,0,0,0,0,0,0,0,0,0,0,0,0,0,7,0,0,0,0,0,0,7,0,0,0,0,0,0,0,0,0,0,0,0,0,0,0,0,0,0,0,0,0,0,0,0,0,0,0,0,0,0,20]
[null,null,"выездная",0,0,0,0,0,0,0,0,0,0,0,0,0,0,0,0,0,0,0,0,0,0,0,0,0,0,0,0,0,0,1,0,0,0,0,0,0,0,0,0,0,0,0,0,0,0,0,0,0,0,0,0,0,0,0,0,0,0,0,0,0,1]
[null,"психолого-педагогическая помощь","очная",0,81,0,4,2,6,0,0,21,60,22,3,0,0,34,0,0,3,0,0,0,5,6,1,0,0,1,0,8,3,6,0,0,0,3,0,2,0,10,3,0,0,0,4,0,0,0,1,6,5,0,3,2,0,15,0,0,19,0,18,0,357]
[null,null,"дистанционная",0,0,0,0,2,0,0,0,0,12,6,0,0,0,0,0,0,0,0,0,0,9,0,4,0,0,0,0,6,0,2,0,0,0,0,0,0,0,0,0,0,0,0,2,0,0,0,0,0,0,0,0,0,0,0,0,0,0,0,0,0,43]
[null,null,"выездная",0,0,0,0,0,0,0,0,0,0,0,0,0,0,0,0,0,0,0,0,0,0,0,0,0,0,0,0,0,0,0,0,0,0,0,0,0,0,0,0,0,0,0,0,0,0,0,0,0,0,0,0,0,0,0,0,0,0,0,0,0,0]
[null,"диагностическая помощь","очная",0,0,0,1,2,0,0,0,0,12,0,2,0,0,41,0,0,0,0,0,0,2,0,0,0,0,0,0,2,0,0,0,0,0,4,0,48,0,20,0,0,0,0,3,0,0,3,0,12,10,0,0,1,0,0,0,0,0,0,0,0,163]
[null,null,"дистанционная",0,0,0,0,0,0,0,0,0,0,0,0,0,0,0,0,0,0,0,0,0,0,0,0,0,0,0,0,0,0,0,0,0,0,1,0,2,0,0,0,0,0,0,0,0,0,0,0,0,0,0,0,0,0,0,0,0,0,0,0,0,3]
[null,null,"выездная",0,0,0,0,0,0,0,0,0,0,0,0,0,0,0,0,0,0,0,0,0,0,0,0,0,0,0,0,0,0,0,0,0,0,0,0,0,0,0,0,0,0,0,0,0,0,0,0,0,0,0,0,0,0,0,0,0,0,0,0,0,0]
[null,"консультативная помощь","очная",133,89,0,3,2,20,0,3,21,56,53,3,32,10,74,0,26,12,0,0,0,37,12,7,0,2,19,12,38,31,4,0,2,13,22,2,53,1,28,4,0,31,0,24,0,29,19,26,52,15,35,8,9,14,15,3,10,19,9,18,44,1204]
[null,null,"дистанционная",0,0,0,0,2,1,0,3,0,12,19,0,22,14,0,0,0,10,0,0,0,34,2,12,0,4,16,0,48,0,8,0,0,0,0,14,2,0,2,0,0,0,0,0,0,0,0,0,0,0,0,0,0,0,0,0,0,0,0,0,2,227]
[null,null,"выездная",0,0,0,0,0,0,0,0,0,0,0,0,0,0,0,0,0,0,0,0,0,0,0,0,0,0,0,0,0,0,0,0,0,0,0,0,0,0,0,0,0,0,0,0,0,0,0,0,0,0,0,0,0,0,0,0,0,0,0,0,0,0]
["Общее количество родителей(законных представителей), обратившихся за помощью в 1 квартале 2022 г","Количество родителей (з/пр) с детьми, получающими дошкольное образование в форме семейного образования","до 1,5 лет",0,0,0,0,0,0,0,0,0,0,0,0,0,0,0,0,0,0,0,0,0,0,0,0,0,0,0,0,0,0,0,0,0,0,0,0,0,0,0,0,0,0,0,0,0,0,0,0,0,0,0,0,0,0,0,0,0,0,0,0,0,0]
[null,null,"от 1,5 до 3 лет",0,0,0,0,0,0,0,0,0,0,0,0,0,0,0,0,0,0,0,0,0,0,0,0,0,0,0,0,0,0,0,0,0,0,0,0,0,0,0,0,0,0,0,0,0,0,0,0,0,0,0,0,0,0,0,0,0,0,0,0,0,0]
[null,null,"от 4 до 7 лет",0,0,0,0,0,0,0,0,0,0,0,0,0,0,0,0,0,0,0,0,0,0,0,0,0,0,0,0,0,0,0,0,0,0,0,0,0,0,0,0,0,0,0,0,0,0,0,0,0,0,0,0,0,0,15,0,0,0,0,0,0,15]
[null,null,"7 лет и старше",0,0,0,0,0,0,0,0,0,0,0,0,0,0,0,0,0,0,0,0,0,0,0,0,0,0,0,0,0,0,0,0,0,0,0,0,0,0,0,0,0,0,0,0,0,0,0,0,0,0,0,0,0,0,0,0,0,0,0,0,0,0]
[null,"Количество родителей (з/пр) детей, не получающих дошкольное образование","до 1,5 лет",0,0,0,0,0,0,0,0,0,0,0,0,0,0,0,0,0,0,0,0,0,0,0,0,0,0,0,0,0,0,0,0,0,0,0,0,0,0,0,0,0,0,0,0,0,0,0,0,0,0,0,0,0,0,0,0,0,0,0,0,0,0]
[null,null,"от 1,5 до 3 лет",0,0,0,0,0,0,0,0,0,0,0,0,0,0,0,0,0,0,0,0,0,0,0,0,0,0,0,0,0,0,0,0,0,0,0,0,0,0,0,0,0,0,0,5,0,0,0,0,0,0,0,0,0,0,0,0,0,0,0,0,0,5]
[null,null,"от 3 до 7 лет",0,0,0,0,0,0,0,0,0,0,0,0,0,0,0,0,0,0,0,0,0,0,0,0,0,0,0,0,4,0,0,0,0,0,0,0,0,0,0,0,0,1,0,2,0,0,0,0,0,0,0,0,0,0,0,0,0,0,0,0,0,7]
[null,null,"7 лет и старше",0,0,0,0,0,0,0,0,0,0,0,0,0,0,0,0,0,0,0,0,0,0,0,0,0,0,0,0,0,0,0,0,0,0,0,0,0,0,0,0,0,0,0,0,0,0,0,0,0,0,0,0,0,0,0,0,0,0,0,0,0,0]
[null,"Количество родителей (з/пр), с детьми, получающими дошкольное образование в ДОО","до 1,5 лет",0,0,0,0,0,0,0,0,0,0,0,0,0,0,0,0,0,0,0,0,0,0,0,0,0,0,0,0,0,0,0,0,0,0,0,0,0,0,0,0,0,0,0,0,0,0,0,0,0,0,0,0,0,0,0,0,0,0,0,0,0,0]
[null,null,"от 1,5 до 3 лет",0,0,0,0,0,0,0,0,0,0,0,0,0,0,0,0,0,0,0,0,0,0,0,0,0,0,0,0,0,0,0,0,0,0,0,0,0,0,0,0,0,1,0,2,0,2,0,9,2,0,12,0,0,2,0,0,3,0,0,0,4,37]
[null,null,"от 3 до 7 лет",3,29,0,1,0,0,0,0,0,1,8,0,30,11,0,0,0,0,0,0,0,2,0,7,0,0,7,3,32,0,0,0,0,0,4,0,0,1,0,4,0,27,0,13,0,27,22,17,50,15,23,8,12,12,15,3,7,19,9,21,38,481]
[null,null,"7 лет и старше",0,0,0,0,0,0,0,0,0,0,0,0,0,0,0,0,0,0,0,0,0,1,0,0,0,0,0,1,0,0,0,0,0,0,0,0,0,0,0,0,0,0,0,2,0,0,0,0,0,0,0,0,0,0,0,0,0,0,0,0,4,8]
[null,"Количество родителей (з/пр), с детьми школьниками, получающими образование в форме семейного образования","7-11 лет",0,0,0,0,0,0,0,0,1,0,0,0,0,0,0,0,0,0,0,0,0,0,0,0,0,0,0,0,0,0,0,0,0,0,0,0,0,0,0,0,0,0,0,0,0,0,0,0,0,0,0,0,0,0,0,0,0,0,0,0,0,1]
[null,null,"12-15 лет",0,0,0,0,0,0,0,0,0,1,0,0,0,0,0,0,0,0,0,0,0,0,0,1,0,0,0,0,0,0,0,0,0,0,0,0,0,0,0,0,0,0,0,0,0,0,0,0,0,0,0,0,0,0,0,0,0,0,0,0,0,2]
[null,null,"16 лет и старше",0,0,0,0,0,0,0,0,0,0,0,0,0,0,0,0,0,0,0,0,0,0,0,0,0,0,0,0,0,0,0,0,0,0,0,0,0,0,0,0,0,0,0,0,0,0,0,0,0,0,0,0,0,0,0,0,0,0,0,0,0,0]
[null,"Количество родителей (з/пр), обратившихся с детьми школьниками, получающими образование в ОО","7-11 лет",88,20,0,6,3,12,0,1,6,86,48,1,20,1,59,0,22,5,0,0,0,53,9,7,0,2,20,6,28,14,3,0,2,5,16,3,30,0,15,0,0,2,0,0,0,0,0,0,0,0,0,0,0,0,0,0,0,0,0,2,0,595]
[null,null,"12-15 лет",41,38,0,2,3,9,0,4,8,56,36,2,3,12,12,0,1,12,0,0,0,14,10,14,0,4,5,2,16,11,12,0,0,8,4,13,50,0,14,0,0,0,0,0,0,0,0,0,0,0,0,0,0,0,0,0,0,0,0,0,0,416]
[null,null,"16 лет и старше",1,2,0,2,0,0,0,1,6,12,8,0,1,0,0,0,2,5,0,0,0,4,1,0,0,0,4,0,6,5,2,0,0,0,1,0,6,0,0,0,0,0,0,0,0,0,0,0,0,0,0,0,0,0,0,0,0,0,0,0,0,69]
["Общее количество детей, охваченных услугами в 1 квартале 2022 г","Количество детей, получающих дошкольное образование в семейной форме","до 1,5 лет",0,0,0,0,0,0,0,0,0,0,0,0,0,0,0,0,0,0,0,0,0,0,0,0,0,0,0,0,0,0,0,0,0,0,0,0,0,0,0,0,0,0,0,0,0,0,0,0,0,0,0,0,0,0,0,0,0,0,0,0,0,0]
[null,null,"от 1,5 до 3 лет",0,0,0,0,0,0,0,0,0,0,0,0,0,0,0,0,0,0,0,0,0,0,0,0,0,0,0,0,0,0,0,0,0,0,0,0,0,0,0,0,0,0,0,0,0,0,0,0,0,0,0,0,0,0,0,0,0,0,0,0,0,0]
[null,null,"от 3 до 7 лет",0,0,0,0,0,0,0,0,0,0,0,0,0,0,0,0,0,0,0,0,0,0,0,0,0,0,0,0,0,0,0,0,0,0,0,0,0,0,0,0,0,0,0,0,0,0,0,0,0,0,0,0,0,0,0,0,0,0,0,0,0,0]
[null,null,"7 лет и старше",0,0,0,0,0,0,0,0,0,0,0,0,0,0,0,0,0,0,0,0,0,0,0,0,0,0,0,0,0,0,0,0,0,0,0,0,0,0,0,0,0,0,0,0,0,0,0,0,0,0,0,0,0,0,0,0,0,0,0,0,0,0]
[null,"Количество детей, не получающих дошкольное образование","до 1,5 лет",0,0,0,0,0,0,0,0,0,0,0,0,0,0,0,0,0,0,0,0,0,0,0,0,0,0,0,0,0,0,0,0,0,0,0,0,0,0,0,0,0,0,0,0,0,0,0,0,0,0,0,0,0,0,0,0,0,0,0,0,0,0]
[null,null,"от 1,5 до 3 лет",0,0,0,0,0,0,0,0,0,0,0,0,0,0,0,0,0,0,0,0,0,0,0,0,0,0,0,0,0,0,0,0,0,0,0,0,0,0,0,0,0,0,0,5,0,0,0,0,0,0,0,0,0,0,0,0,0,0,0,0,0,5]
[null,null,"от 3 до 7 лет",0,0,0,0,0,0,0,0,0,0,0,0,0,0,0,0,0,0,0,0,0,0,0,0,0,0,0,0,4,0,0,0,0,0,0,0,0,0,0,0,0,1,0,2,0,0,0,0,0,0,0,0,0,0,0,0,0,0,0,0,0,7]
[null,null,"7 лет и старше",0,0,0,0,0,0,0,0,0,0,0,0,0,0,0,0,0,0,0,0,0,0,0,0,0,0,0,0,0,0,0,0,0,0,0,0,0,0,0,0,0,0,0,0,0,0,0,0,0,0,0,0,0,0,0,0,0,0,0,0,0,0]
[null,"Количество детей, получающих дошкольное образование в ДОО","до 1,5 лет",0,0,0,0,0,0,0,0,0,0,0,0,0,0,0,0,0,0,0,0,0,0,0,0,0,0,0,0,0,0,0,0,0,0,0,0,0,0,0,0,0,0,0,0,0,0,0,0,0,0,0,0,0,0,0,0,0,0,0,0,0,0]
[null,null,"от 1,5 до 3 лет",0,0,0,0,0,0,0,0,0,0,0,0,0,0,0,0,0,0,0,0,0,0,0,0,0,0,0,0,0,0,0,0,0,0,0,0,0,0,0,0,0,1,0,2,0,2,0,9,2,0,12,0,0,2,0,0,3,0,0,0,4,37]
[null,null,"от 3 до 7 лет",3,29,0,0,0,0,0,0,0,0,8,0,30,11,0,0,0,0,0,0,0,2,0,7,0,0,7,3,32,0,0,0,0,0,4,0,0,1,0,4,0,27,0,13,0,27,22,17,50,15,23,8,12,12,15,3,7,19,9,21,38,479]
[null,null,"7 лет и старше",0,0,0,0,0,0,0,0,0,0,0,0,0,0,0,0,0,0,0,0,0,1,0,0,0,0,0,1,0,0,0,0,0,0,0,0,0,0,0,0,0,0,0,2,0,0,0,0,0,0,0,0,0,0,0,0,0,0,0,0,4,8]
[null,"Количество детей школьников, получающих образование в семейной форме","7-11 лет",0,0,0,0,0,0,0,0,1,0,0,0,0,0,0,0,0,0,0,0,0,0,0,1,0,0,0,0,0,0,0,0,0,0,0,0,0,0,0,0,0,0,0,0,0,0,0,0,0,0,0,0,0,0,0,0,0,0,0,0,0,2]
[null,null,"12-15 лет",0,0,0,0,0,0,0,0,0,1,0,0,0,0,0,0,0,0,0,0,0,0,0,0,0,0,0,0,0,0,0,0,0,0,0,0,0,0,0,0,0,0,0,0,0,0,0,0,0,0,0,0,0,0,0,0,0,0,0,0,0,1]
[null,null,"16 лет и старше",0,0,0,0,0,0,0,0,0,0,0,0,0,0,0,0,0,0,0,0,0,0,0,0,0,0,0,0,0,0,2,0,0,0,0,0,0,0,0,0,0,0,0,0,0,0,0,0,0,0,0,0,0,0,0,0,0,0,0,0,0,2]
[null,"Количество детей школьников, получающих образование в ОО","7-11 лет",88,20,0,3,4,12,0,1,1,88,48,3,20,1,59,0,23,5,0,0,0,53,9,7,0,2,20,6,28,14,3,0,2,5,16,3,30,15,15,0,0,2,0,0,0,0,0,0,0,0,0,0,0,0,0,0,0,0,0,2,0,608]
[null,null,"12-15 лет",41,38,0,8,4,9,0,4,16,59,36,4,3,12,12,0,1,12,0,0,0,14,10,14,0,4,5,2,16,11,12,0,0,8,4,13,50,0,15,0,0,0,0,0,0,0,0,0,0,0,0,0,0,0,0,0,0,0,0,0,0,437]
[null,null,"16 лет и старше",1,2,0,0,0,0,0,1,2,16,8,0,1,0,0,0,2,5,0,0,0,4,1,0,0,0,4,0,6,5,4,0,0,0,1,0,6,0,0,0,0,0,0,0,0,0,0,0,0,0,0,0,0,0,0,0,0,0,0,0,0,69]

{"sheet":"Северный","index":25,"n_rows":49,"n_cols":5,"rows_kept":49,"cut":false,"hidden":false,"merged":[[1,4,12,9],[31,0,48,0],[31,1,34,1],[43,1,45,1],[46,1,48,1],[35,1,38,1],[39,1,42,1],[13,0,30,0],[17,1,20,1],[25,1,27,1],[13,1,16,1],[1,0,12,0],[1,1,3,1],[4,1,6,1],[7,1,9,1],[10,1,12,1],[28,1,30,1],[21,1,24,1]]}
[null,null,null,"МКДОУ детский сад \"Сказка\"","Итого"]
["Общее количество обращений по видам помощи в   1 квартале 2021 г.","методическая помощь","очная ",null,0]
[null,null,"дистанционная"]
[null,null,"выездная"]
[null,"психолого-педагогическая помощь","очная"]
[null,null,"дистанционная"]
[null,null,"выездная"]
[null,"диагностическая помощь","очная"]
[null,null,"дистанционная"]
[null,null,"выездная"]
[null,"консультативная помощь","очная",20]
[null,null,"дистанционная",10]
[null,null,"выездная",0]
["Общее количество родителей(законных представителей), обратившихся за помощью  в 1 квартале 2021 г","Количество родителей (з/пр) с детьми, получающими дошкольное образование                 в форме семейного образования"," до 1,5 лет",0,0]
[null,null,"от 1,5 до 3 лет",0,0]
[null,null,"от 4 до 7 лет",0,0]
[null,null,"7 лет и старше",0,0]
[null,"Количество родителей (з/пр) детей,  не получающих дошкольное образование","до 1,5 лет",0,0]
[null,null,"от 1,5 до 3 лет",0,0]
[null,null,"от 3 до 7 лет",1,1]
[null,null,"7 лет и старше",0,0]
[null,"Количество родителей (з/пр),  с детьми, получающими дошкольное образование в ДОО","до 1,5 лет",0,0]
[null,null,"от 1,5 до 3 лет",2,2]
[null,null,"от 3 до 7 лет",8,8]
[null,null,"7 лет и старше",0,0]
[null,"Количество родителей (з/пр),  с детьми школьниками, получающими  образование в форме семейного образования","7-11 лет",0,0]
[null,null,"12-15 лет",0,0]
[null,null,"16 лет и старше",0,0]
[null,"Количество родителей (з/пр), обратившихся  с детьми школьниками, получающими  образование в ОО","7-11 лет",4,4]
[null,null," 12-15 лет",2,2]
[null,null,"16 лет и старше",0,0]
["Общее количество детей, охваченных услугами в 1 квартале  2021 г","Количество детей, получающих дошкольное образование в семейной форме"," до 1,5 лет",0,0]
[null,null,"от 1,5 до 3 лет",0,0]
[null,null,"от 3 до 7 лет",0,0]
[null,null," 7 лет и старше",0,0]
[null,"Количество детей, не получающих дошкольное образование"," до 1,5 лет",0,0]
[null,null,"от 1,5 до 3 лет",0,0]
[null,null,"от 3 до 7 лет",1,1]
[null,null," 7 лет и старше",0,0]
[null,"Количество детей, получающих дошкольное образование в ДОО","до 1,5 лет",0,0]
[null,null,"от 1,5 до 3 лет",2,2]
[null,null,"от 3 до 7 лет",8,8]
[null,null,"7 лет и старше",0,0]
[null,"Количество детей школьников, получающих образование в семейной форме","7-11 лет",0,0]
[null,null," 12-15 лет",0,0]
[null,null,"16 лет и старше",0,0]
[null,"Количество детей школьников, получающих образование в ОО","7-10 лет",4,4]
[null,null,"12-15 лет",2,2]
[null,null,"16 лет и старше",0,0]

{"sheet":"Сузунский","index":26,"n_rows":49,"n_cols":20,"rows_kept":49,"cut":false,"hidden":false,"merged":[[21,1,24,1],[1,0,12,0],[1,1,3,1],[4,1,6,1],[7,1,9,1],[10,1,12,1],[13,0,30,0],[13,1,16,1],[17,1,20,1],[25,1,27,1],[28,1,30,1],[31,0,48,0],[31,1,34,1],[43,1,45,1],[46,1,48,1],[35,1,38,1],[39,1,42,1]]}
[null,null,null,"МБОУ \"Болтовская СОШ\"","МБОУ \"Бобровская СОШ\"","МБОУ \"Ключиковская СОШ\"","МКОУ \"Шайдуровская СОШ имени Героя Советского Союза Г.И.Выглазова\"","МКОУ \"Шипуновская СОШ имени В.С.Гаврилова\"","МБОУ \"Сузунская СОШ № 1\"","МБОУ \"Сузунская СОШ № 2","МКОУ \"Сузунская СОШ № 301\"","МКОУ \"Сузунская ОШ-И\"","МКДОУ \"Сузунский детский сад № 1\"","МКДОУ \"Сузунский детский сад № 2\"","МКДОУ \"Сузунский детский сад № 3\"","МКДОУ \"Сузунский детский сад № 4\"","МКДОУ Сузунский детский сад № 5\"","МКДОУ \"Болтовский детский сад\"","МКДОУ \"Шипуновский детский сад\"","Итого"]
["Общее количество обращений по видам помощи в   4 квартале 2021 г.","методическая помощь","очная ",0,26,3,5,3,6,0,12,1,1,11,3,4,0,0,3,78]
[null,null,"дистанционная",0,47,2,0,0,0,0,0,0,0,0,0,0,0,0,0,49]
[null,null,"выездная",0,0,0,0,0,0,0,0,7,0,0,0,0,0,0,0,7]
[null,"психолого-педагогическая помощь","очная",2,0,3,1,0,22,12,0,1,0,0,0,0,3,6,0,50]
[null,null,"дистанционная",0,0,5,0,0,0,2,0,0,3,0,0,0,0,0,0,10]
[null,null,"выездная",0,0,0,0,0,0,0,0,8,0,0,0,0,0,0,0,8]
[null,"диагностическая помощь","очная",0,0,0,0,2,0,10,8,1,1,0,0,0,8,0,0,30]
[null,null,"дистанционная",0,0,0,0,0,0,0,0,0,0,0,0,0,0,0,0,0]
[null,null,"выездная",0,0,0,0,0,0,0,0,41,0,0,0,0,0,0,0,41]
[null,"консультативная помощь","очная",7,0,4,0,4,8,8,23,3,1,20,4,3,29,6,7,127]
[null,null,"дистанционная",0,0,1,0,0,0,0,6,0,0,0,0,0,0,0,0,7]
[null,null,"выездная",4,0,0,0,0,0,0,0,0,0,0,0,0,0,0,0,4]
["Общее количество родителей(законных представителей), обратившихся за помощью  в 4 квартале 2021 г","Количество родителей (з/пр) с детьми, получающими дошкольное образование                 в форме семейного образования"," до 1,5 лет",0,0,0,0,0,0,0,0,0,0,0,0,0,0,0,0,0]
[null,null,"от 1,5 до 3 лет",0,0,0,0,0,0,0,0,0,0,0,0,0,0,0,0,0]
[null,null,"от 4 до 7 лет",0,0,0,0,0,0,0,0,0,0,0,0,0,0,0,0,0]
[null,null,"7 лет и старше",0,0,0,0,0,0,0,0,0,0,0,0,0,0,0,0,0]
[null,"Количество родителей (з/пр) детей,  не получающих дошкольное образование","до 1,5 лет",0,0,0,0,0,0,0,0,0,0,0,0,0,0,0,0,0]
[null,null,"от 1,5 до 3 лет",0,0,0,0,0,0,0,0,0,0,0,0,0,0,0,0,0]
[null,null,"от 3 до 7 лет",0,0,0,0,0,0,0,0,0,0,0,0,0,0,0,0,0]
[null,null,"7 лет и старше",0,0,0,0,0,0,0,0,0,0,0,0,0,0,0,0,0]
[null,"Количество родителей (з/пр),  с детьми, получающими дошкольное образование в ДОО","до 1,5 лет",0,0,0,0,0,0,0,0,0,2,0,0,0,0,0,0,2]
[null,null,"от 1,5 до 3 лет",0,0,0,0,0,0,0,0,0,1,2,3,4,0,4,1,15]
[null,null,"от 3 до 7 лет",0,6,0,0,0,0,0,0,0,3,27,4,3,39,6,9,97]
[null,null,"7 лет и старше",0,0,0,0,0,0,0,0,0,0,0,0,0,0,0,0,0]
[null,"Количество родителей (з/пр),  с детьми школьниками, получающими  образование в форме семейного образования","7-11 лет",0,0,0,0,0,0,0,0,0,0,0,0,0,0,0,0,0]
[null,null,"12-15 лет",0,0,0,0,0,0,1,0,0,0,0,0,0,0,0,0,1]
[null,null,"16 лет и старше",0,0,0,0,0,0,0,0,0,0,0,0,0,0,0,0,0]
[null,"Количество родителей (з/пр), обратившихся  с детьми школьниками, получающими  образование в ОО","7-11 лет",2,11,3,2,2,6,10,13,17,0,0,0,0,0,0,0,66]
[null,null," 12-15 лет",8,21,1,4,2,21,6,20,13,0,0,0,0,0,0,0,96]
[null,null,"16 лет и старше",3,9,5,0,4,5,1,11,5,0,0,0,0,0,0,0,43]
["Общее количество детей, охваченных услугами в 4 квартале  2021 г","Количество детей, получающих дошкольное образование в семейной форме"," до 1,5 лет",0,0,0,0,0,0,0,0,0,0,0,0,0,0,0,0,0]
[null,null,"от 1,5 до 3 лет",0,0,0,0,0,0,0,0,0,0,0,0,0,0,0,0,0]
[null,null,"от 3 до 7 лет",0,0,0,0,0,0,0,0,0,0,0,0,0,0,0,0,0]
[null,null," 7 лет и старше",0,0,0,0,0,0,0,0,0,0,0,0,0,0,0,0,0]
[null,"Количество детей, не получающих дошкольное образование"," до 1,5 лет",0,0,0,0,0,0,0,0,0,0,0,0,0,0,0,0,0]
[null,null,"от 1,5 до 3 лет",0,0,0,0,0,0,0,0,0,0,0,0,0,0,0,0,0]
[null,null,"от 3 до 7 лет",0,0,0,0,0,0,0,0,0,0,0,0,0,0,0,0,0]
[null,null," 7 лет и старше",0,0,0,0,0,0,0,0,0,0,0,0,0,0,0,0,0]
[null,"Количество детей, получающих дошкольное образование в ДОО","до 1,5 лет",0,0,0,0,0,0,0,0,0,2,0,0,0,0,0,0,2]
[null,null,"от 1,5 до 3 лет",0,0,0,0,0,0,0,0,0,1,2,4,4,0,5,1,17]
[null,null,"от 3 до 7 лет",0,6,0,0,0,0,0,0,0,3,27,6,5,40,6,10,103]
[null,null,"7 лет и старше",0,0,0,0,0,0,0,0,0,0,0,0,0,0,0,0,0]
[null,"Количество детей школьников, получающих образование в семейной форме","7-11 лет",0,0,0,0,0,0,0,0,0,0,0,0,0,0,0,0,0]
[null,null," 12-15 лет",0,0,0,0,0,0,1,0,0,0,0,0,0,0,0,0,1]
[null,null,"16 лет и старше",0,0,0,0,0,0,0,0,0,0,0,0,0,0,0,0,0]
[null,"Количество детей школьников, получающих образование в ОО","7-10 лет",2,11,3,2,3,6,8,14,17,0,0,0,0,0,0,0,66]
[null,null,"12-15 лет",8,29,6,5,3,23,7,22,21,0,0,0,0,0,0,0,124]
[null,null,"16 лет и старше",3,11,1,null,4,5,3,11,8,0,0,0,0,0,0,0,46]

{"sheet":"Татарский","index":27,"n_rows":49,"n_cols":7,"rows_kept":49,"cut":false,"hidden":false,"merged":[[28,1,30,1],[31,0,48,0],[31,1,34,1],[35,1,38,1],[39,1,42,1],[43,1,45,1],[46,1,48,1],[13,0,30,0],[13,1,16,1],[17,1,20,1],[21,1,24,1],[25,1,27,1],[1,0,12,0],[1,1,3,1],[4,1,6,1],[7,1,9,1],[10,1,12,1]]}
[null,null,null,"ОО №1","00 №2","ОО №3","Итого"]
["Общее количество обращений по видам помощи в   1 квартале 2021 г.","методическая помощь","очная ",0,0,0,0]
[null,null,"дистанционная",0,0,0,0]
[null,null,"выездная",0,0,0,0]
[null,"психолого-педагогическая помощь","очная",0,0,0,0]
[null,null,"дистанционная",0,0,0,0]
[null,null,"выездная",0,0,0,0]
[null,"диагностическая помощь","очная",0,0,0,0]
[null,null,"дистанционная",0,0,0,0]
[null,null,"выездная",0,0,0,0]
[null,"консультативная помощь","очная",0,0,0,0]
[null,null,"дистанционная",0,0,0,0]
[null,null,"выездная",0,0,0,0]
["Общее количество родителей(законных представителей), обратившихся за помощью  в 1 квартале 2021 г","Количество родителей (з/пр) с детьми, получающими дошкольное образование                 в форме семейного образования"," до 1,5 лет",0,0,0,0]
[null,null,"от 1,5 до 3 лет",0,0,0,0]
[null,null,"от 3 до 7 лет",0,0,0,0]
[null,null,"7 лет и старше",0,0,0,0]
[null,"Количество родителей (з/пр) детей,  не получающих дошкольное образование","до 1,5 лет",0,0,0,0]
[null,null,"от 1,5 до 3 лет",0,0,0,0]
[null,null,"от 3 до 7 лет",0,0,0,0]
[null,null,"7 лет и старше",0,0,0,0]
[null,"Количество родителей (з/пр),  с детьми, получающими дошкольное образование в ДОО","до 1,5 лет",0,0,0,0]
[null,null,"от 1,5 до 3 лет",0,0,0,0]
[null,null,"от 3 до 7 лет",0,0,0,0]
[null,null,"7 лет и старше",0,0,0,0]
[null,"Количество родителей (з/пр),  с детьми школьниками, получающими  образование в форме семейного образования","7-11 лет",0,0,0,0]
[null,null,"12-15 лет",0,0,0,0]
[null,null,"16 лет и старше",0,0,0,0]
[null,"Количество родителей (з/пр), обратившихся  с детьми школьниками, получающими  образование в ОО","7-11 лет",0,0,0,0]
[null,null," 12-15 лет",0,0,0,0]
[null,null,"16 лет и старше",0,0,0,0]
["Общее количество детей, охваченных услугами в 1 квартале  2021 г","Количество детей, получающих дошкольное образование в семейной форме"," до 1,5 лет",0,0,0,0]
[null,null,"от 1,5 до 3 лет",0,0,0,0]
[null,null,"от 3 до 7 лет",0,0,0,0]
[null,null," 7 лет и старше",0,0,0,0]
[null,"Количество детей, не получающих дошкольное образование"," до 1,5 лет",0,0,0,0]
[null,null,"от 1,5 до 3 лет",0,0,0,0]
[null,null,"от 3 до 7 лет",0,0,0,0]
[null,null," 7 лет и старше",0,0,0,0]
[null,"Количество детей, получающих дошкольное образование в ДОО","до 1,5 лет",0,0,0,0]
[null,null,"от 1,5 до 3 лет",0,0,0,0]
[null,null,"от 3 до 7 лет",0,0,0,0]
[null,null,"7 лет и старше",0,0,0,0]
[null,"Количество детей школьников, получающих образование в семейной форме","7-11 лет",0,0,0,0]
[null,null," 12-15 лет",0,0,0,0]
[null,null,"16 лет и старше",0,0,0,0]
[null,"Количество детей школьников, получающих образование в ОО","7-11 лет",0,0,0,0]
[null,null,"12-15 лет",0,0,0,0]
[null,null,"16 лет и старше",0,0,0,0]

{"sheet":"Тогучинский","index":28,"n_rows":49,"n_cols":6,"rows_kept":49,"cut":false,"hidden":false,"merged":[[1,0,12,0],[1,1,3,1],[4,1,6,1],[7,1,9,1],[10,1,12,1],[13,0,30,0],[13,1,16,1],[31,0,48,0],[31,1,34,1],[43,1,45,1],[46,1,48,1],[35,1,38,1],[17,1,20,1],[25,1,27,1],[28,1,30,1],[21,1,24,1],[39,1,42,1]]}
[null,"Отчёт по работе КЦ                                      за I квартал - 2022 г",null,"МКДОУ Тогучинского района \"Тогучинский детский сад №1\"","МКДОУ Тогучинского района \"Горновский детский сад №1\"","Итого"]
["Общее количество обращений по видам помощи в   1 квартале 2022 г.","методическая помощь","очная ",null,null,0]
[null,null,"дистанционная",null,null,0]
[null,null,"выездная",null,null,0]
[null,"психолого-педагогическая помощь","очная",null,null,0]
[null,null,"дистанционная",null,null,0]
[null,null,"выездная",null,null,0]
[null,"диагностическая помощь","очная",null,null,0]
[null,null,"дистанционная",null,null,0]
[null,null,"выездная",null,null,0]
[null,"консультативная помощь","очная",11,5,16]
[null,null,"дистанционная",null,null,0]
[null,null,"выездная",null,null,0]
["Общее количество родителей(законных представителей), обратившихся за помощью  в 1 квартале 2022 г","Количество родителей (з/пр) с детьми, получающими дошкольное образование                 в форме семейного образования"," до 1,5 лет",null,null,0]
[null,null,"от 1,5 до 3 лет",null,null,0]
[null,null,"от 3 до 7 лет",null,null,0]
[null,null,"7 лет и старше",null,null,0]
[null,"Количество родителей (з/пр) детей,  не получающих дошкольное образование","до 1,5 лет",null,null,0]
[null,null,"от 1,5 до 3 лет",null,null,0]
[null,null,"от 3 до 7 лет",1,1,2]
[null,null,"7 лет и старше",null,null,0]
[null,"Количество родителей (з/пр),  с детьми, получающими дошкольное образование в ДОО","до 1,5 лет",null,null,0]
[null,null,"от 1,5 до 3 лет",null,null,0]
[null,null,"от 3 до 7 лет",7,4,11]
[null,null,"7 лет и старше",null,null,0]
[null,"Количество родителей (з/пр),  с детьми школьниками, получающими  образование в форме семейного образования","7-11 лет",null,null,0]
[null,null,"12-15 лет",null,null,0]
[null,null,"16 лет и старше",null,null,0]
[null,"Количество родителей (з/пр), обратившихся  с детьми школьниками, получающими  образование в ОО","7-11 лет",2,null,2]
[null,null," 12-15 лет",1,null,1]
[null,null,"16 лет и старше",null,null,0]
["Общее количество детей, охваченных услугами                                                                          в 1 квартале 2022 г","Количество детей, получающих дошкольное образование в семейной форме"," до 1,5 лет",null,null,0]
[null,null,"от 1,5 до 3 лет",null,null,0]
[null,null,"от 3 до 7 лет",null,null,0]
[null,null," 7 лет и старше",null,null,0]
[null,"Количество детей, не получающих дошкольное образование"," до 1,5 лет",null,null,0]
[null,null,"от 1,5 до 3 лет",null,null,0]
[null,null,"от 3 до 7 лет",1,1,2]
[null,null," 7 лет и старше",null,null,0]
[null,"Количество детей, получающих дошкольное образование в ДОО","до 1,5 лет",null,null,0]
[null,null,"от 1,5 до 3 лет",null,null,0]
[null,null,"от 3 до 7 лет",7,4,11]
[null,null,"7 лет и старше",null,null,0]
[null,"Количество детей школьников, получающих образование в семейной форме","7-11 лет",null,null,0]
[null,null," 12-15 лет",null,null,0]
[null,null,"16 лет и старше",null,null,0]
[null,"Количество детей школьников, получающих образование в ОО","7-10 лет",2,null,2]
[null,null,"12-15 лет",1,null,1]
[null,null,"16 лет и старше",null,null,0]

{"sheet":"Убинский","index":29,"n_rows":49,"n_cols":8,"rows_kept":49,"cut":false,"hidden":false,"merged":[[21,1,24,1],[1,0,12,0],[1,1,3,1],[4,1,6,1],[7,1,9,1],[10,1,12,1],[13,0,30,0],[13,1,16,1],[17,1,20,1],[25,1,27,1],[28,1,30,1],[31,0,48,0],[31,1,34,1],[43,1,45,1],[46,1,48,1],[35,1,38,1],[39,1,42,1]]}
[null,null,null,"МКДОУ д/сад \"Солнышко\"","МКОУ \"Убинская средняя школа №2\"","МКОУ \"Убинская средняя школа №1\"","МКОУ \"Раисинская средняя школа\"","Итого"]
["Общее количество обращений по видам помощи в   1 квартале 2022 г.","методическая помощь","очная ",3,0,3,1,7]
[null,null,"дистанционная",0,0,0,0,0]
[null,null,"выездная",0,0,0,0,0]
[null,"психолого-педагогическая помощь","очная",2,2,3,0,7]
[null,null,"дистанционная",0,0,0,0,0]
[null,null,"выездная",0,0,0,0,0]
[null,"диагностическая помощь","очная",2,0,0,0,2]
[null,null,"дистанционная",0,0,0,0,0]
[null,null,"выездная",0,0,0,0,0]
[null,"консультативная помощь","очная",3,9,63,7,82]
[null,null,"дистанционная",0,0,0,0,0]
[null,null,"выездная",0,0,0,0,0]
["Общее количество родителей(законных представителей), обратившихся за помощью  в 1 квартале 2022 г","Количество родителей (з/пр) с детьми, получающими дошкольное образование                 в форме семейного образования"," до 1,5 лет",0,0,0,0,0]
[null,null,"от 1,5 до 3 лет",0,0,0,0,0]
[null,null,"от 3 до 7 лет",0,0,0,0,0]
[null,null,"7 лет и старше",0,0,0,0,0]
[null,"Количество родителей (з/пр) детей,  не получающих дошкольное образование","до 1,5 лет",0,0,0,0,0]
[null,null,"от 1,5 до 3 лет",0,0,1,0,1]
[null,null,"от 3 до 7 лет",3,0,2,0,5]
[null,null,"7 лет и старше",0,0,0,0,0]
[null,"Количество родителей (з/пр),  с детьми, получающими дошкольное образование в ДОО","до 1,5 лет",0,0,0,0,0]
[null,null,"от 1,5 до 3 лет",0,0,0,2,2]
[null,null,"от 3 до 7 лет",3,0,2,0,5]
[null,null,"7 лет и старше",0,0,0,0,0]
[null,"Количество родителей (з/пр),  с детьми школьниками, получающими  образование в форме семейного образования","7-11 лет",0,0,0,0,0]
[null,null,"12-15 лет",0,0,0,0,0]
[null,null,"16 лет и старше",0,0,0,0,0]
[null,"Количество родителей (з/пр), обратившихся  с детьми школьниками, получающими  образование в ОО","7-11 лет",0,9,8,0,17]
[null,null," 12-15 лет",0,0,50,6,56]
[null,null,"16 лет и старше",0,0,0,0,0]
["Общее количество детей, охваченных услугами в 1 квартале  2022 г","Количество детей, получающих дошкольное образование в семейной форме"," до 1,5 лет",0,0,0,0,0]
[null,null,"от 1,5 до 3 лет",0,0,0,0,0]
[null,null,"от 3 до 7 лет",0,0,0,0,0]
[null,null," 7 лет и старше",0,0,0,0,0]
[null,"Количество детей, не получающих дошкольное образование"," до 1,5 лет",0,0,0,0,0]
[null,null,"от 1,5 до 3 лет",0,0,1,0,1]
[null,null,"от 3 до 7 лет",3,0,2,0,5]
[null,null," 7 лет и старше",0,0,0,0,0]
[null,"Количество детей, получающих дошкольное образование в ДОО","до 1,5 лет",0,0,0,0,0]
[null,null,"от 1,5 до 3 лет",0,0,0,2,2]
[null,null,"от 3 до 7 лет",3,0,2,0,5]
[null,null,"7 лет и старше",0,0,0,0,0]
[null,"Количество детей школьников, получающих образование в семейной форме","7-11 лет",0,0,0,0,0]
[null,null," 12-15 лет",0,0,0,0,0]
[null,null,"16 лет и старше",0,0,0,0,0]
[null,"Количество детей школьников, получающих образование в ОО","7-11 лет",0,9,8,0,17]
[null,null,"12-15 лет",0,0,50,6,56]
[null,null,"16 лет и старше",0,0,0,0,0]

{"sheet":"Усть-Таркский","index":30,"n_rows":49,"n_cols":13,"rows_kept":49,"cut":false,"hidden":false,"merged":[[21,1,24,1],[1,0,12,0],[1,1,3,1],[4,1,6,1],[7,1,9,1],[10,1,12,1],[13,0,30,0],[13,1,16,1],[17,1,20,1],[25,1,27,1],[28,1,30,1],[31,0,48,0],[31,1,34,1],[43,1,45,1],[46,1,48,1],[35,1,38,1],[39,1,42,1]]}
[null,null,null,"МБОУ Усть-Таркская СОШ","МКОУ Козинская СОШ","МКОУ Кушаговская СОШ","МКОУ Новосилишинская СОШ","МКОУ Угуйская СОШ","МКОУ Щербаковская СОШ","МКОУ Яркуль-Матюшкинская СОШ","МКДОУ Усть-Таркский детский сад \"Колосок\"","МКДОУ Усть-Таркский детский сад \"Солнышко\"","Итого"]
["Общее количество обращений по видам помощи в   4 квартале 2021 г.","методическая помощь","очная ",7,null,1,null,null,null,null,4,null,12]
[null,null,"дистанционная",1,null,null,null,null,null,null,2,null,3]
[null,null,"выездная",3,null,null,null,null,null,null,null,null,3]
[null,"психолого-педагогическая помощь","очная",5,2,null,1,1,9,1,5,10,34]
[null,null,"дистанционная",2,null,null,null,null,null,null,4,null,6]
[null,null,"выездная",3,null,null,null,null,null,null,null,null,3]
[null,"диагностическая помощь","очная",1,null,null,null,null,9,null,null,2,12]
[null,null,"дистанционная",null,null,null,null,null,null,null,null,5,5]
[null,null,"выездная",null,null,null,null,null,null,null,null,null,0]
[null,"консультативная помощь","очная",5,2,1,2,5,30,null,10,2,57]
[null,null,"дистанционная",2,null,1,null,null,null,null,null,null,3]
[null,null,"выездная",2,null,null,null,null,null,null,null,null,2]
["Общее количество родителей(законных представителей), обратившихся за помощью  в 4 квартале 2021 г","Количество родителей (з/пр) с детьми, получающими дошкольное образование                 в форме семейного образования"," до 1,5 лет",null,null,null,null,null,null,null,null,null,0]
[null,null,"от 1,5 до 3 лет",null,null,null,null,null,null,null,null,null,0]
[null,null,"от 3 до 7 лет",null,null,null,null,null,null,null,null,null,0]
[null,null,"7 лет и старше",null,null,null,null,null,null,null,null,null,0]
[null,"Количество родителей (з/пр) детей,  не получающих дошкольное образование","до 1,5 лет",null,null,null,null,null,null,null,2,null,2]
[null,null,"от 1,5 до 3 лет",null,null,null,null,null,null,null,3,6,9]
[null,null,"от 3 до 7 лет",null,null,null,null,null,null,null,1,2,3]
[null,null,"7 лет и старше",null,null,null,null,null,null,null,null,null,0]
[null,"Количество родителей (з/пр),  с детьми, получающими дошкольное образование в ДОО","до 1,5 лет",null,null,null,null,null,null,null,null,null,0]
[null,null,"от 1,5 до 3 лет",null,null,null,null,null,null,null,null,null,0]
[null,null,"от 3 до 7 лет",null,null,1,1,null,null,null,17,11,30]
[null,null,"7 лет и старше",null,null,null,null,null,null,null,null,null,0]
[null,"Количество родителей (з/пр),  с детьми школьниками, получающими  образование в форме семейного образования","7-11 лет",2,null,null,null,null,null,null,null,null,2]
[null,null,"12-15 лет",null,null,null,null,null,null,null,null,null,0]
[null,null,"16 лет и старше",null,null,null,null,null,null,null,null,null,0]
[null,"Количество родителей (з/пр), обратившихся  с детьми школьниками, получающими  образование в ОО","7-11 лет",9,2,null,null,1,7,1,1,null,21]
[null,null," 12-15 лет",12,2,1,2,4,27,null,1,null,49]
[null,null,"16 лет и старше",8,null,1,null,1,14,null,null,null,24]
["Общее количество детей, охваченных услугами в 4 квартале  2021 г","Количество детей, получающих дошкольное образование в семейной форме"," до 1,5 лет",null,null,null,null,null,null,null,null,null,0]
[null,null,"от 1,5 до 3 лет",null,null,null,null,null,null,null,null,null,0]
[null,null,"от 3 до 7 лет",null,null,null,null,null,null,null,null,null,0]
[null,null," 7 лет и старше",null,null,null,null,null,null,null,null,null,0]
[null,"Количество детей, не получающих дошкольное образование"," до 1,5 лет",null,null,null,null,null,null,null,2,null,2]
[null,null,"от 1,5 до 3 лет",null,null,null,null,null,null,null,3,6,9]
[null,null,"от 3 до 7 лет",null,null,null,null,null,null,null,1,2,3]
[null,null," 7 лет и старше",null,null,null,null,null,null,null,null,null,0]
[null,"Количество детей, получающих дошкольное образование в ДОО","до 1,5 лет",null,null,null,null,null,null,null,null,null,0]
[null,null,"от 1,5 до 3 лет",null,null,null,null,null,null,null,null,null,0]
[null,null,"от 3 до 7 лет",null,null,1,1,null,null,null,17,11,30]
[null,null,"7 лет и старше",null,null,null,null,null,null,null,null,null,0]
[null,"Количество детей школьников, получающих образование в семейной форме","7-11 лет",2,null,null,null,null,null,null,null,null,2]
[null,null," 12-15 лет",null,null,null,null,null,null,null,null,null,0]
[null,null,"16 лет и старше",null,null,null,null,null,null,null,null,null,0]
[null,"Количество детей школьников, получающих образование в ОО","7-11 лет",9,2,null,null,1,7,1,1,null,21]
[null,null,"12-15 лет",12,2,1,2,4,27,null,1,null,49]
[null,null,"16 лет и старше",8,null,1,null,1,14,null,null,null,24]

{"sheet":"Чановский","index":31,"n_rows":49,"n_cols":18,"rows_kept":49,"cut":false,"hidden":false,"merged":[[21,1,24,1],[31,0,48,0],[31,1,34,1],[43,1,45,1],[46,1,48,1],[35,1,38,1],[39,1,42,1],[13,0,30,0],[13,1,16,1],[17,1,20,1],[25,1,27,1],[28,1,30,1],[1,0,12,0],[1,1,3,1],[4,1,6,1],[7,1,9,1],[10,1,12,1]]}
[null,null,null,"МБОУ Чановская СШ №1","МБОУ Чановская СШ №2","МБОУ Тебисская СШ","МБОУ Озеро-Карачинская СШ","МБОУ Щегловская СШ","МБОУ Зем-Заимская СШ","МБОУ Старокарачинская СШ","МБОУ Красносельская СШ","МБОУ Красненская ОШ","МБОУ Моховская ОШ","МБОУ Юрковская ОШ","МБДОУ Чановский д/сад № 1 ","МБДОУ Чановский д/сад № 4","МБДОУ Оз.-Карачинский д/сад","Итого"]
["Общее количество обращений по видам помощи в   1 квартале 2021 г.","методическая помощь","очная ",null,null,1,null,null,null,null,2,2,null,1,4,null,1,11]
[null,null,"дистанционная",null,null,null,null,null,null,null,null,null,null,null,null,null,null,0]
[null,null,"выездная",null,null,null,null,null,null,null,null,null,null,null,null,null,null,0]
[null,"психолого-педагогическая помощь","очная",null,16,null,null,null,null,3,2,2,1,1,3,null,1,29]
[null,null,"дистанционная",1,null,null,null,null,null,null,null,null,1,null,null,null,null,2]
[null,null,"выездная",null,null,null,null,null,null,null,null,null,null,null,null,null,null,0]
[null,"диагностическая помощь","очная",null,null,null,null,null,null,null,null,null,null,1,3,null,2,6]
[null,null,"дистанционная",null,null,null,null,null,null,null,null,null,null,null,null,null,null,0]
[null,null,"выездная",null,null,null,null,null,null,null,null,null,null,null,null,null,null,0]
[null,"консультативная помощь","очная",8,9,15,9,7,9,7,5,6,16,1,8,16,4,120]
[null,null,"дистанционная",11,null,null,4,5,null,null,null,null,6,null,1,null,2,29]
[null,null,"выездная",null,null,null,1,null,null,null,null,null,null,null,null,null,null,1]
["Общее количество родителей(законных представителей), обратившихся за помощью  в 1 квартале 2021 г","Количество родителей (з/пр) с детьми, получающими дошкольное образование                 в форме семейного образования"," до 1,5 лет",null,null,null,null,null,null,null,null,null,null,1,null,null,null,1]
[null,null,"от 1,5 до 3 лет",null,null,null,null,null,null,null,null,null,null,3,null,null,null,3]
[null,null,"от 4 до 7 лет",null,null,null,null,null,null,null,null,null,null,null,null,null,null,0]
[null,null,"7 лет и старше",null,null,null,null,null,null,null,null,null,null,null,null,null,null,0]
[null,"Количество родителей (з/пр) детей,  не получающих дошкольное образование","до 1,5 лет",null,null,2,null,null,null,null,null,null,null,null,null,null,null,2]
[null,null,"от 1,5 до 3 лет",null,null,3,null,null,null,null,null,2,null,null,2,null,null,7]
[null,null,"от 3 до 7 лет",null,3,null,null,null,null,null,1,null,null,null,null,null,null,4]
[null,null,"7 лет и старше",null,null,null,null,null,null,null,null,null,null,null,null,null,null,0]
[null,"Количество родителей (з/пр),  с детьми, получающими дошкольное образование в ДОО","до 1,5 лет",null,null,null,null,null,null,2,null,null,null,null,null,null,null,2]
[null,null,"от 1,5 до 3 лет",null,null,null,null,null,null,2,null,null,null,null,null,4,5,11]
[null,null,"от 3 до 7 лет",null,null,8,null,2,1,null,null,2,4,null,17,11,4,49]
[null,null,"7 лет и старше",null,5,null,null,0,null,null,null,null,null,null,null,1,null,6]
[null,"Количество родителей (з/пр),  с детьми школьниками, получающими  образование в форме семейного образования","7-11 лет",null,null,null,null,null,null,null,null,null,null,null,null,null,null,0]
[null,null,"12-15 лет",null,null,1,null,null,null,null,null,null,null,null,null,null,null,1]
[null,null,"16 лет и старше",null,1,null,null,null,null,null,null,null,null,null,null,null,null,1]
[null,"Количество родителей (з/пр), обратившихся  с детьми школьниками, получающими  образование в ОО","7-11 лет",17,null,null,5,2,5,3,3,2,13,null,null,null,null,50]
[null,null," 12-15 лет",1,16,1,7,8,2,3,5,4,5,null,null,null,null,52]
[null,null,"16 лет и старше",null,null,null,2,null,1,null,null,null,null,null,null,null,null,3]
["Общее количество детей, охваченных услугами в 1 квартале  2021 г","Количество детей, получающих дошкольное образование в семейной форме"," до 1,5 лет",null,null,null,null,null,null,null,null,null,null,1,null,null,null,1]
[null,null,"от 1,5 до 3 лет",null,null,null,null,null,null,null,null,null,null,3,null,null,null,3]
[null,null,"от 3 до 7 лет",null,null,null,null,null,null,null,null,null,null,null,null,null,null,0]
[null,null," 7 лет и старше",null,null,null,null,null,null,null,null,null,null,null,null,null,null,0]
[null,"Количество детей, не получающих дошкольное образование"," до 1,5 лет",null,null,2,null,null,null,null,null,null,null,null,null,null,null,2]
[null,null,"от 1,5 до 3 лет",null,null,3,null,null,null,null,null,2,null,null,2,null,null,7]
[null,null,"от 3 до 7 лет",null,3,null,null,null,null,null,1,null,null,null,null,null,null,4]
[null,null," 7 лет и старше",null,null,null,null,null,null,null,null,null,null,null,null,null,null,0]
[null,"Количество детей, получающих дошкольное образование в ДОО","до 1,5 лет",null,null,null,null,null,null,null,null,null,null,null,null,null,null,0]
[null,null,"от 1,5 до 3 лет",null,null,null,null,null,null,2,null,null,null,null,null,4,5,11]
[null,null,"от 3 до 7 лет",null,null,8,null,2,1,2,null,2,4,null,17,11,4,51]
[null,null,"7 лет и старше",null,5,null,null,null,null,null,null,null,null,null,null,1,null,6]
[null,"Количество детей школьников, получающих образование в семейной форме","7-11 лет",null,null,null,null,null,null,null,null,null,null,null,null,null,null,0]
[null,null," 12-15 лет",null,null,1,null,null,null,null,null,null,null,null,null,null,null,1]
[null,null,"16 лет и старше",null,1,null,null,null,null,null,null,null,null,null,null,null,null,1]
[null,"Количество детей школьников, получающих образование в ОО","7-10 лет",17,null,null,5,2,5,3,3,2,12,null,null,null,null,49]
[null,null,"12-15 лет",1,16,1,7,8,2,3,5,4,5,null,null,null,null,52]
[null,null,"16 лет и старше",null,null,null,2,null,1,null,null,null,null,null,null,null,null,3]

{"sheet":"Черепановский","index":32,"n_rows":49,"n_cols":7,"rows_kept":49,"cut":false,"hidden":false,"merged":[[1,0,12,0],[1,1,3,1],[4,1,6,1],[7,1,9,1],[10,1,12,1],[13,0,30,0],[13,1,16,1],[31,0,48,0],[31,1,34,1],[43,1,45,1],[46,1,48,1],[35,1,38,1],[17,1,20,1],[25,1,27,1],[28,1,30,1],[21,1,24,1],[39,1,42,1]]}
[null,null,null,"МАОУ \"СОШ №3 г. Черепанова\"","МДОУ детский сад №10 \"Колокольчик\"","ОО №3","Итого"]
["Общее количество обращений по видам помощи в   1 квартале 2022 г.","методическая помощь","очная ",5,1,null,6]
[null,null,"дистанционная",0,null,null,0]
[null,null,"выездная",0,null,null,0]
[null,"психолого-педагогическая помощь","очная",15,4,null,19]
[null,null,"дистанционная",0,null,null,0]
[null,null,"выездная",0,null,null,0]
[null,"диагностическая помощь","очная",17,7,null,24]
[null,null,"дистанционная",0,null,null,0]
[null,null,"выездная",0,null,null,0]
[null,"консультативная помощь","очная",7,null,null,7]
[null,null,"дистанционная",0,null,null,0]
[null,null,"выездная",0,null,null,0]
["Общее количество родителей(законных представителей), обратившихся за помощью  в 1 квартале 2022 г","Количество родителей (з/пр) с детьми, получающими дошкольное образование                 в форме семейного образования"," до 1,5 лет",0,null,null,0]
[null,null,"от 1,5 до 3 лет",0,null,null,0]
[null,null,"от 3 до 7 лет",0,null,null,0]
[null,null,"7 лет и старше",0,null,null,0]
[null,"Количество родителей (з/пр) детей,  не получающих дошкольное образование","до 1,5 лет",0,null,null,0]
[null,null,"от 1,5 до 3 лет",0,null,null,0]
[null,null,"от 3 до 7 лет",0,null,null,0]
[null,null,"7 лет и старше",0,null,null,0]
[null,"Количество родителей (з/пр),  с детьми, получающими дошкольное образование в ДОО","до 1,5 лет",0,null,null,0]
[null,null,"от 1,5 до 3 лет",0,1,null,1]
[null,null,"от 3 до 7 лет",0,6,null,6]
[null,null,"7 лет и старше",0,null,null,0]
[null,"Количество родителей (з/пр),  с детьми школьниками, получающими  образование в форме семейного образования","7-11 лет",0,null,null,0]
[null,null,"12-15 лет",0,null,null,0]
[null,null,"16 лет и старше",0,null,null,0]
[null,"Количество родителей (з/пр), обратившихся  с детьми школьниками, получающими  образование в ОО","7-11 лет",16,5,null,21]
[null,null," 12-15 лет",0,null,null,0]
[null,null,"16 лет и старше",0,null,null,0]
["Общее количество детей, охваченных услугами в 1 квартале  2022 г","Количество детей, получающих дошкольное образование в семейной форме"," до 1,5 лет",0,null,null,0]
[null,null,"от 1,5 до 3 лет",0,null,null,0]
[null,null,"от 3 до 7 лет",0,null,null,0]
[null,null," 7 лет и старше",0,null,null,0]
[null,"Количество детей, не получающих дошкольное образование"," до 1,5 лет",0,null,null,0]
[null,null,"от 1,5 до 3 лет",0,null,null,0]
[null,null,"от 3 до 7 лет",0,null,null,0]
[null,null," 7 лет и старше",0,null,null,0]
[null,"Количество детей, получающих дошкольное образование в ДОО","до 1,5 лет",0,null,null,0]
[null,null,"от 1,5 до 3 лет",0,1,null,1]
[null,null,"от 3 до 7 лет",0,6,null,6]
[null,null,"7 лет и старше",0,null,null,0]
[null,"Количество детей школьников, получающих образование в семейной форме","7-11 лет",0,null,null,0]
[null,null," 12-15 лет",0,null,null,0]
[null,null,"16 лет и старше",0,null,null,0]
[null,"Количество детей школьников, получающих образование в ОО","7-11 лет",19,5,null,24]
[null,null,"12-15 лет",0,null,null,0]
[null,null,"16 лет и старше",0,null,null,0]

{"sheet":"Чистоозерный","index":33,"n_rows":49,"n_cols":6,"rows_kept":49,"cut":false,"hidden":false,"merged":[[21,1,24,1],[1,0,12,0],[1,1,3,1],[4,1,6,1],[7,1,9,1],[10,1,12,1],[13,0,30,0],[13,1,16,1],[17,1,20,1],[25,1,27,1],[28,1,30,1],[31,0,48,0],[31,1,34,1],[43,1,45,1],[46,1,48,1],[35,1,38,1],[39,1,42,1]]}
[null,null,null,"МБОУ Чистоозерная СОШ №2","МБОУ Чистоозерная СОШ №3","Итого"]
["Общее количество обращений по видам помощи в   I квартале 2022 г.","методическая помощь","очная ",45,40,85]
[null,null,"дистанционная",0,0,0]
[null,null,"выездная",0,0,0]
[null,"психолого-педагогическая помощь","очная",25,30,55]
[null,null,"дистанционная",0,0,0]
[null,null,"выездная",0,0,0]
[null,"диагностическая помощь","очная",60,80,140]
[null,null,"дистанционная",0,0,0]
[null,null,"выездная",0,0,0]
[null,"консультативная помощь","очная",55,75,130]
[null,null,"дистанционная",0,0,0]
[null,null,"выездная",0,0,0]
["Общее количество родителей(законных представителей), обратившихся за помощью  в I квартале 2022 г","Количество родителей (з/пр) с детьми, получающими дошкольное образование                 в форме семейного образования"," до 1,5 лет",0,0,0]
[null,null,"от 1,5 до 3 лет",0,0,0]
[null,null,"от 4 до 7 лет",0,0,0]
[null,null,"7 лет и старше",0,0,0]
[null,"Количество родителей (з/пр) детей,  не получающих дошкольное образование","до 1,5 лет",0,0,0]
[null,null,"от 1,5 до 3 лет",0,0,0]
[null,null,"от 3 до 7 лет",0,0,0]
[null,null,"7 лет и старше",0,0,0]
[null,"Количество родителей (з/пр),  с детьми, получающими дошкольное образование в ДОО","до 1,5 лет",0,0,0]
[null,null,"от 1,5 до 3 лет",0,0,0]
[null,null,"от 3 до 7 лет",0,0,0]
[null,null,"7 лет и старше",0,0,0]
[null,"Количество родителей (з/пр),  с детьми школьниками, получающими  образование в форме семейного образования","7-11 лет",0,0,0]
[null,null,"12-15 лет",0,0,0]
[null,null,"16 лет и старше",0,0,0]
[null,"Количество родителей (з/пр), обратившихся  с детьми школьниками, получающими  образование в ОО","7-11 лет",30,42,72]
[null,null," 12-15 лет",63,72,135]
[null,null,"16 лет и старше",24,32,56]
["Общее количество детей, охваченных услугами в I квартале  2022 г","Количество детей, получающих дошкольное образование в семейной форме"," до 1,5 лет",0,0,0]
[null,null,"от 1,5 до 3 лет",0,0,0]
[null,null,"от 3 до 7 лет",0,0,0]
[null,null," 7 лет и старше",0,0,0]
[null,"Количество детей, не получающих дошкольное образование"," до 1,5 лет",0,0,0]
[null,null,"от 1,5 до 3 лет",0,0,0]
[null,null,"от 3 до 7 лет",0,0,0]
[null,null," 7 лет и старше",0,0,0]
[null,"Количество детей, получающих дошкольное образование в ДОО","до 1,5 лет",0,0,0]
[null,null,"от 1,5 до 3 лет",0,0,0]
[null,null,"от 3 до 7 лет",0,0,0]
[null,null,"7 лет и старше",0,0,0]
[null,"Количество детей школьников, получающих образование в семейной форме","7-11 лет",0,0,0]
[null,null," 12-15 лет",0,0,0]
[null,null,"16 лет и старше",0,0,0]
[null,"Количество детей школьников, получающих образование в ОО","7-10 лет",50,45,95]
[null,null,"12-15 лет",45,55,100]
[null,null,"16 лет и старше",15,30,45]

{"sheet":"Чулымский","index":34,"n_rows":49,"n_cols":7,"rows_kept":49,"cut":false,"hidden":false,"merged":[[21,1,24,1],[1,0,12,0],[1,1,3,1],[4,1,6,1],[7,1,9,1],[10,1,12,1],[13,0,30,0],[13,1,16,1],[17,1,20,1],[25,1,27,1],[28,1,30,1],[31,0,48,0],[31,1,34,1],[43,1,45,1],[46,1,48,1],[35,1,38,1],[39,1,42,1]]}
[null,null,null,"Чулымский лицей","00 №2","ОО №3","Итого"]
["Общее количество обращений по видам помощи в   1 квартале 2022 г.","методическая помощь","очная ",0,null,null,0]
[null,null,"дистанционная",0,null,null,0]
[null,null,"выездная",0,null,null,0]
[null,"психолого-педагогическая помощь","очная",10,null,null,10]
[null,null,"дистанционная",0,null,null,0]
[null,null,"выездная",0,null,null,0]
[null,"диагностическая помощь","очная",10,null,null,10]
[null,null,"дистанционная",0,null,null,0]
[null,null,"выездная",0,null,null,0]
[null,"консультативная помощь","очная",4,null,null,4]
[null,null,"дистанционная",0,null,null,0]
[null,null,"выездная",0,null,null,0]
["Общее количество родителей(законных представителей), обратившихся за помощью  в 1 квартале 2022 г","Количество родителей (з/пр) с детьми, получающими дошкольное образование                 в форме семейного образования"," до 1,5 лет",0,null,null,0]
[null,null,"от 1,5 до 3 лет",0,null,null,0]
[null,null,"от 3 до 7 лет",0,null,null,0]
[null,null,"7 лет и старше",0,null,null,0]
[null,"Количество родителей (з/пр) детей,  не получающих дошкольное образование","до 1,5 лет",0,null,null,0]
[null,null,"от 1,5 до 3 лет",0,null,null,0]
[null,null,"от 3 до 7 лет",0,null,null,0]
[null,null,"7 лет и старше",0,null,null,0]
[null,"Количество родителей (з/пр),  с детьми, получающими дошкольное образование в ДОО","до 1,5 лет",0,null,null,0]
[null,null,"от 1,5 до 3 лет",0,null,null,0]
[null,null,"от 3 до 7 лет",1,null,null,1]
[null,null,"7 лет и старше",0,null,null,0]
[null,"Количество родителей (з/пр),  с детьми школьниками, получающими  образование в форме семейного образования","7-11 лет",0,null,null,0]
[null,null,"12-15 лет",0,null,null,0]
[null,null,"16 лет и старше",0,null,null,0]
[null,"Количество родителей (з/пр), обратившихся  с детьми школьниками, получающими  образование в ОО","7-11 лет",13,null,null,13]
[null,null," 12-15 лет",8,null,null,8]
[null,null,"16 лет и старше",2,null,null,2]
["Общее количество детей, охваченных услугами в 1 квартале  2022 г","Количество детей, получающих дошкольное образование в семейной форме"," до 1,5 лет",0,null,null,0]
[null,null,"от 1,5 до 3 лет",0,null,null,0]
[null,null,"от 3 до 7 лет",0,null,null,0]
[null,null," 7 лет и старше",0,null,null,0]
[null,"Количество детей, не получающих дошкольное образование"," до 1,5 лет",0,null,null,0]
[null,null,"от 1,5 до 3 лет",0,null,null,0]
[null,null,"от 3 до 7 лет",0,null,null,0]
[null,null," 7 лет и старше",0,null,null,0]
[null,"Количество детей, получающих дошкольное образование в ДОО","до 1,5 лет",0,null,null,0]
[null,null,"от 1,5 до 3 лет",0,null,null,0]
[null,null,"от 3 до 7 лет",1,null,null,1]
[null,null,"7 лет и старше",0,null,null,0]
[null,"Количество детей школьников, получающих образование в семейной форме","7-11 лет",0,null,null,0]
[null,null," 12-15 лет",0,null,null,0]
[null,null,"16 лет и старше",0,null,null,0]
[null,"Количество детей школьников, получающих образование в ОО","7-11 лет",13,null,null,13]
[null,null,"12-15 лет",8,null,null,8]
[null,null,"16 лет и старше",2,null,null,2]

{"sheet":"Дзержинский ДОУ","index":35,"n_rows":49,"n_cols":13,"rows_kept":49,"cut":false,"hidden":false,"merged":[[1,0,12,0],[1,1,3,1],[4,1,6,1],[7,1,9,1],[10,1,12,1],[13,0,30,0],[13,1,16,1],[31,0,48,0],[31,1,34,1],[43,1,45,1],[46,1,48,1],[35,1,38,1],[17,1,20,1],[25,1,27,1],[28,1,30,1],[21,1,24,1],[39,1,42,1]]}
[null,null,null,"ДОУ №105","ДОУ №206","ДОУ №262","ДОУ №281","ДОУ №401","ДОУ №439","ДОУ №468","ДОУ №493","ДОУ №509","Итого"]
["Общее количество обращений по видам помощи в   1 квартале 2022 г.","методическая помощь","очная ",1,0,10,2,2,2,39,3,0,59]
[null,null,"дистанционная",0,1,6,0,0,0,0,1,0,8]
[null,null,"выездная",0,0,0,0,0,0,0,0,0,0]
[null,"психолого-педагогическая помощь","очная",1,2,14,5,1,24,0,1,0,48]
[null,null,"дистанционная",1,0,6,0,0,15,0,1,0,23]
[null,null,"выездная",0,0,0,0,0,0,0,0,0,0]
[null,"диагностическая помощь","очная",0,0,7,11,0,31,0,2,0,51]
[null,null,"дистанционная",0,0,3,0,0,0,0,0,0,3]
[null,null,"выездная",0,0,0,0,0,0,0,0,0,0]
[null,"консультативная помощь","очная",0,0,12,7,0,12,0,1,0,32]
[null,null,"дистанционная",0,2,26,0,0,0,0,1,0,29]
[null,null,"выездная",0,0,0,0,0,0,0,0,0,0]
["Общее количество родителей(законных представителей), обратившихся за помощью  в 1 квартале 2022 г","Количество родителей (з/пр) с детьми, получающими дошкольное образование                 в форме семейного образования"," до 1,5 лет",0,0,0,0,0,0,0,0,0,0]
[null,null,"от 1,5 до 3 лет",0,0,0,0,0,0,0,0,0,0]
[null,null,"от 3 до 7 лет",0,0,0,0,0,0,0,0,0,0]
[null,null,"7 лет и старше",0,0,0,0,0,0,0,0,0,0]
[null,"Количество родителей (з/пр) детей,  не получающих дошкольное образование","до 1,5 лет",0,0,0,1,0,0,0,0,0,1]
[null,null,"от 1,5 до 3 лет",0,0,0,0,0,0,0,0,0,0]
[null,null,"от 3 до 7 лет",0,0,5,0,0,0,0,0,0,5]
[null,null,"7 лет и старше",0,0,3,1,0,0,0,0,0,4]
[null,"Количество родителей (з/пр),  с детьми, получающими дошкольное образование в ДОО","до 1,5 лет",0,0,0,0,0,1,0,0,0,1]
[null,null,"от 1,5 до 3 лет",0,0,36,1,2,25,0,0,0,64]
[null,null,"от 3 до 7 лет",3,5,40,18,1,52,39,10,0,168]
[null,null,"7 лет и старше",0,0,0,3,0,6,0,0,0,9]
[null,"Количество родителей (з/пр),  с детьми школьниками, получающими  образование в форме семейного образования","7-11 лет",0,0,0,0,0,0,0,0,0,0]
[null,null,"12-15 лет",0,0,0,0,0,0,0,0,0,0]
[null,null,"16 лет и старше",0,0,0,0,0,0,0,0,0,0]
[null,"Количество родителей (з/пр), обратившихся  с детьми школьниками, получающими  образование в ОО","7-11 лет",0,0,0,1,0,0,0,0,0,1]
[null,null," 12-15 лет",0,0,0,0,0,0,0,0,0,0]
[null,null,"16 лет и старше",0,0,0,0,0,0,0,0,0,0]
["Общее количество детей, охваченных услугами в 1 квартале  2022 г","Количество детей, получающих дошкольное образование в семейной форме"," до 1,5 лет",0,0,0,0,0,0,0,0,0,0]
[null,null,"от 1,5 до 3 лет",0,0,36,0,0,1,0,0,0,37]
[null,null,"от 3 до 7 лет",0,0,40,0,0,2,0,0,0,42]
[null,null," 7 лет и старше",0,0,0,0,0,0,0,0,0,0]
[null,"Количество детей, не получающих дошкольное образование"," до 1,5 лет",0,0,0,1,0,0,0,0,0,1]
[null,null,"от 1,5 до 3 лет",0,1,0,0,0,0,0,0,0,1]
[null,null,"от 3 до 7 лет",0,2,5,0,0,0,0,0,0,7]
[null,null," 7 лет и старше",0,0,3,1,0,0,0,0,0,4]
[null,"Количество детей, получающих дошкольное образование в ДОО","до 1,5 лет",0,0,0,0,0,1,0,0,0,1]
[null,null,"от 1,5 до 3 лет",0,0,36,1,2,25,0,0,0,64]
[null,null,"от 3 до 7 лет",0,2,40,18,1,52,39,10,0,162]
[null,null,"7 лет и старше",0,0,0,3,0,6,0,0,0,9]
[null,"Количество детей школьников, получающих образование в семейной форме","7-11 лет",0,0,0,0,0,0,0,0,0,0]
[null,null," 12-15 лет",0,0,0,0,0,0,0,0,0,0]
[null,null,"16 лет и старше",0,0,0,0,0,0,0,0,0,0]
[null,"Количество детей школьников, получающих образование в ОО","7-11 лет",0,0,0,1,0,0,0,0,0,1]
[null,null,"12-15 лет",0,0,0,0,0,0,0,0,0,0]
[null,null,"16 лет и старше",0,0,0,0,0,0,0,0,0,0]

{"sheet":"Калининский ДОУ","index":36,"n_rows":1,"n_cols":4,"rows_kept":1,"cut":false,"hidden":false,"merged":[]}
[null,null,null,"Итого"]

{"sheet":"Кировский ДОУ","index":37,"n_rows":1,"n_cols":4,"rows_kept":1,"cut":false,"hidden":false,"merged":[]}
[null,null,null,"Итого"]

{"sheet":"Ленинский ДОУ","index":38,"n_rows":49,"n_cols":7,"rows_kept":49,"cut":false,"hidden":false,"merged":[[1,0,12,0],[1,1,3,1],[4,1,6,1],[7,1,9,1],[10,1,12,1],[13,0,30,0],[13,1,16,1],[31,0,48,0],[31,1,34,1],[43,1,45,1],[46,1,48,1],[35,1,38,1],[17,1,20,1],[25,1,27,1],[28,1,30,1],[21,1,24,1],[39,1,42,1]]}
[null,null,null,"МКДОУ 242",311,203,"Итого"]
["Общее количество обращений по видам помощи в   1 квартале 2022 г.","методическая помощь","очная ",33,0,34,67]
[null,null,"дистанционная",10,0,23,33]
[null,null,"выездная",null,null,null,0]
[null,"психолого-педагогическая помощь","очная",23,12,43,78]
[null,null,"дистанционная",5,4,24,33]
[null,null,"выездная",null,null,null,0]
[null,"диагностическая помощь","очная",31,15,56,102]
[null,null,"дистанционная",null,null,null,0]
[null,null,"выездная",null,null,null,0]
[null,"консультативная помощь","очная",38,36,39,113]
[null,null,"дистанционная",16,0,18,34]
[null,null,"выездная",null,null,null,0]
["Общее количество родителей(законных представителей), обратившихся за помощью  в 1 квартале 2022 г","Количество родителей (з/пр) с детьми, получающими дошкольное образование                 в форме семейного образования"," до 1,5 лет",null,null,null,0]
[null,null,"от 1,5 до 3 лет",0,0,0,0]
[null,null,"от 3 до 7 лет",null,null,null,0]
[null,null,"7 лет и старше",null,null,null,0]
[null,"Количество родителей (з/пр) детей,  не получающих дошкольное образование","до 1,5 лет",8,0,7,15]
[null,null,"от 1,5 до 3 лет",54,0,8,62]
[null,null,"от 3 до 7 лет",2,0,2,4]
[null,null,"7 лет и старше",3,0,0,3]
[null,"Количество родителей (з/пр),  с детьми, получающими дошкольное образование в ДОО","до 1,5 лет",null,null,null,0]
[null,null,"от 1,5 до 3 лет",11,2,0,13]
[null,null,"от 3 до 7 лет",46,10,54,110]
[null,null,"7 лет и старше",2,0,0,2]
[null,"Количество родителей (з/пр),  с детьми школьниками, получающими  образование в форме семейного образования","7-11 лет",null,null,null,0]
[null,null,"12-15 лет",null,null,null,0]
[null,null,"16 лет и старше",null,null,null,0]
[null,"Количество родителей (з/пр), обратившихся  с детьми школьниками, получающими  образование в ОО","7-11 лет",2,0,0,2]
[null,null," 12-15 лет",null,null,null,0]
[null,null,"16 лет и старше",null,null,null,0]
["Общее количество детей, охваченных услугами в 1 квартале  2022 г","Количество детей, получающих дошкольное образование в семейной форме"," до 1,5 лет",null,null,null,0]
[null,null,"от 1,5 до 3 лет",null,null,null,0]
[null,null,"от 3 до 7 лет",null,null,null,0]
[null,null," 7 лет и старше",null,null,null,0]
[null,"Количество детей, не получающих дошкольное образование"," до 1,5 лет",null,null,7,7]
[null,null,"от 1,5 до 3 лет",23,0,8,31]
[null,null,"от 3 до 7 лет",16,null,null,16]
[null,null," 7 лет и старше",null,null,null,0]
[null,"Количество детей, получающих дошкольное образование в ДОО","до 1,5 лет",null,null,null,0]
[null,null,"от 1,5 до 3 лет",19,4,0,23]
[null,null,"от 3 до 7 лет",64,12,54,130]
[null,null,"7 лет и старше",21,null,null,21]
[null,"Количество детей школьников, получающих образование в семейной форме","7-11 лет",2,null,null,2]
[null,null," 12-15 лет",null,null,null,0]
[null,null,"16 лет и старше",null,null,null,0]
[null,"Количество детей школьников, получающих образование в ОО","7-11 лет",1,0,0,1]
[null,null,"12-15 лет",null,null,null,0]
[null,null,"16 лет и старше",null,null,null,0]

{"sheet":"Октябрьский ДОУ","index":39,"n_rows":49,"n_cols":7,"rows_kept":49,"cut":false,"hidden":false,"merged":[[1,0,12,0],[1,1,3,1],[4,1,6,1],[7,1,9,1],[10,1,12,1],[28,1,30,1],[31,0,48,0],[31,1,34,1],[35,1,38,1],[39,1,42,1],[43,1,45,1],[46,1,48,1],[13,0,30,0],[13,1,16,1],[17,1,20,1],[21,1,24,1],[25,1,27,1]]}
[null,null,null,"МКДОУ д/с №489","МКДОУ д/с № 6","МКДОУ д/с № 391","Итого"]
["Общее количество обращений по видам помощи в   1 квартале 2022 г.","методическая помощь","очная ",null,null,null,0]
[null,null,"дистанционная",null,1,null,1]
[null,null,"выездная",null,null,null,0]
[null,"психолого-педагогическая помощь","очная",null,null,null,0]
[null,null,"дистанционная",null,3,null,3]
[null,null,"выездная",null,null,null,0]
[null,"диагностическая помощь","очная",15,null,null,15]
[null,null,"дистанционная",null,1,null,1]
[null,null,"выездная",null,null,null,0]
[null,"консультативная помощь","очная",120,null,17,137]
[null,null,"дистанционная",null,3,null,3]
[null,null,"выездная",null,null,null,0]
["Общее количество родителей(законных представителей), обратившихся за помощью  в 1 квартале 2022 г","Количество родителей (з/пр) с детьми, получающими дошкольное образование                 в форме семейного образования"," до 1,5 лет",null,null,null,0]
[null,null,"от 1,5 до 3 лет",null,null,null,0]
[null,null,"от 3 до 7 лет",null,null,null,0]
[null,null,"7 лет и старше",null,null,null,0]
[null,"Количество родителей (з/пр) детей,  не получающих дошкольное образование","до 1,5 лет",null,null,null,0]
[null,null,"от 1,5 до 3 лет",null,null,null,0]
[null,null,"от 3 до 7 лет",null,null,5,5]
[null,null,"7 лет и старше",null,null,null,0]
[null,"Количество родителей (з/пр),  с детьми, получающими дошкольное образование в ДОО","до 1,5 лет",null,null,null,0]
[null,null,"от 1,5 до 3 лет",null,null,null,0]
[null,null,"от 3 до 7 лет",135,8,12,155]
[null,null,"7 лет и старше",null,null,null,0]
[null,"Количество родителей (з/пр),  с детьми школьниками, получающими  образование в форме семейного образования","7-11 лет",null,null,null,0]
[null,null,"12-15 лет",null,null,null,0]
[null,null,"16 лет и старше",null,null,null,0]
[null,"Количество родителей (з/пр), обратившихся  с детьми школьниками, получающими  образование в ОО","7-11 лет",null,null,null,0]
[null,null," 12-15 лет",null,null,null,0]
[null,null,"16 лет и старше",null,null,null,0]
["Общее количество детей, охваченных услугами в 1 квартале  2022 г","Количество детей, получающих дошкольное образование в семейной форме"," до 1,5 лет",null,null,null,0]
[null,null,"от 1,5 до 3 лет",null,null,null,0]
[null,null,"от 3 до 7 лет",null,null,null,0]
[null,null," 7 лет и старше",null,null,null,0]
[null,"Количество детей, не получающих дошкольное образование"," до 1,5 лет",null,null,null,0]
[null,null,"от 1,5 до 3 лет",null,null,null,0]
[null,null,"от 3 до 7 лет",null,null,5,5]
[null,null," 7 лет и старше",null,null,null,0]
[null,"Количество детей, получающих дошкольное образование в ДОО","до 1,5 лет",null,null,null,0]
[null,null,"от 1,5 до 3 лет",null,null,null,0]
[null,null,"от 3 до 7 лет",135,8,12,155]
[null,null,"7 лет и старше",null,null,null,0]
[null,"Количество детей школьников, получающих образование в семейной форме","7-11 лет",null,null,null,0]
[null,null," 12-15 лет",null,null,null,0]
[null,null,"16 лет и старше",null,null,null,0]
[null,"Количество детей школьников, получающих образование в ОО","7-11 лет",null,null,null,0]
[null,null,"12-15 лет",null,null,null,0]
[null,null,"16 лет и старше",null,null,null,0]

{"sheet":"Первомайский ДОУ","index":40,"n_rows":1,"n_cols":4,"rows_kept":1,"cut":false,"hidden":false,"merged":[]}
[null,null,null,"Итого"]

{"sheet":"Советский ДОУ","index":41,"n_rows":1,"n_cols":4,"rows_kept":1,"cut":false,"hidden":false,"merged":[]}
["С",null,null,"Итого"]

{"sheet":"Центральный округ ДОУ","index":42,"n_rows":49,"n_cols":46,"rows_kept":49,"cut":false,"hidden":false,"merged":[[1,0,12,0],[1,1,3,1],[4,1,6,1],[7,1,9,1],[10,1,12,1],[13,0,30,0],[13,1,16,1],[31,0,48,0],[31,1,34,1],[43,1,45,1],[46,1,48,1],[35,1,38,1],[17,1,20,1],[25,1,27,1],[28,1,30,1],[21,1,24,1],[39,1,42,1]]}
[null,null,null,"МКДОУ № 423","МКДОУ д/с № 101","МКДОУ № 421","Итого",null,null,null,null,null,null,null,null,null,null,null,null,null,null,null,null,null,null,null,null,32,null,null,null,null,null,null,null,null,null,null,null,null,null,null,null,null,null,32]
["Общее количество обращений по видам помощи в   1 квартале 2022 г.","методическая помощь","очная ",{"$f":"SUM('[1]Приложение 2'!$I$12)","v":0},null,null,0]
[null,null,"дистанционная",null,null,null,0]
[null,null,"выездная",null,null,null,0]
[null,"психолого-педагогическая помощь","очная",null,null,2,2]
[null,null,"дистанционная",null,null,null,0]
[null,null,"выездная",null,null,null,0]
[null,"диагностическая помощь","очная",6,11,6,23]
[null,null,"дистанционная",null,null,null,0]
[null,null,"выездная",null,null,null,0]
[null,"консультативная помощь","очная",17,21,15,53]
[null,null,"дистанционная",null,null,null,0]
[null,null,"выездная",null,null,null,0]
["Общее количество родителей(законных представителей), обратившихся за помощью  в 1 квартале 2022 г","Количество родителей (з/пр) с детьми, получающими дошкольное образование                 в форме семейного образования"," до 1,5 лет",null,null,null,0]
[null,null,"от 1,5 до 3 лет",null,null,null,0]
[null,null,"от 3 до 7 лет",17,null,null,17]
[null,null,"7 лет и старше",null,null,null,0]
[null,"Количество родителей (з/пр) детей,  не получающих дошкольное образование","до 1,5 лет",null,null,null,0]
[null,null,"от 1,5 до 3 лет",null,null,null,0]
[null,null,"от 3 до 7 лет",null,null,null,0]
[null,null,"7 лет и старше",null,null,null,0]
[null,"Количество родителей (з/пр),  с детьми, получающими дошкольное образование в ДОО","до 1,5 лет",null,null,null,0]
[null,null,"от 1,5 до 3 лет",null,null,null,0]
[null,null,"от 3 до 7 лет",null,32,15,47]
[null,null,"7 лет и старше",null,null,null,0]
[null,"Количество родителей (з/пр),  с детьми школьниками, получающими  образование в форме семейного образования","7-11 лет",null,null,null,0]
[null,null,"12-15 лет",null,null,null,0]
[null,null,"16 лет и старше",null,null,null,0]
[null,"Количество родителей (з/пр), обратившихся  с детьми школьниками, получающими  образование в ОО","7-11 лет",null,null,null,0]
[null,null," 12-15 лет",null,null,null,0]
[null,null,"16 лет и старше",null,null,null,0]
["Общее количество детей, охваченных услугами в 1 квартале  2022 г","Количество детей, получающих дошкольное образование в семейной форме"," до 1,5 лет",null,null,null,0]
[null,null,"от 1,5 до 3 лет",null,null,null,0]
[null,null,"от 3 до 7 лет",null,null,null,0]
[null,null," 7 лет и старше",null,null,null,0]
[null,"Количество детей, не получающих дошкольное образование"," до 1,5 лет",null,null,null,0]
[null,null,"от 1,5 до 3 лет",null,null,null,0]
[null,null,"от 3 до 7 лет",null,null,null,0]
[null,null," 7 лет и старше",null,null,null,0]
[null,"Количество детей, получающих дошкольное образование в ДОО","до 1,5 лет",null,null,null,0]
[null,null,"от 1,5 до 3 лет",null,null,null,0]
[null,null,"от 3 до 7 лет",9,32,64,105]
[null,null,"7 лет и старше",null,null,null,0]
[null,"Количество детей школьников, получающих образование в семейной форме","7-11 лет",null,null,null,0]
[null,null," 12-15 лет",null,null,null,0]
[null,null,"16 лет и старше",null,null,null,0]
[null,"Количество детей школьников, получающих образование в ОО","7-11 лет",null,null,null,0]
[null,null,"12-15 лет",null,null,null,0]
[null,null,"16 лет и старше",null,null,null,0]

{"sheet":"Школы Новосибирск","index":43,"n_rows":49,"n_cols":11,"rows_kept":49,"cut":false,"hidden":false,"merged":[[1,0,12,0],[1,1,3,1],[4,1,6,1],[7,1,9,1],[10,1,12,1],[13,0,30,0],[13,1,16,1],[17,1,20,1],[21,1,24,1],[25,1,27,1],[28,1,30,1],[31,0,48,0],[31,1,34,1],[35,1,38,1],[39,1,42,1],[43,1,45,1],[46,1,48,1]]}
[null,null,null,"Центральный округ","Ленинский район","Дзержинский район","Октябрьский район","Первомайский район","Кировский район","Советский район","Итого"]
["Общее количество обращений по видам помощи в   1 квартале 2022 г.","методическая помощь","очная ",52,14,25,0,6,0,4,101]
[null,null,"дистанционная",0,9,5,0,6,0,1,21]
[null,null,"выездная",0,0,0,0,1,0,0,1]
[null,"психолого-педагогическая помощь","очная",549,114,120,21,8,0,12,824]
[null,null,"дистанционная",83,7,20,0,0,0,3,113]
[null,null,"выездная",0,0,0,0,0,0,{"$f":"H7+I7","v":0},0]
[null,"диагностическая помощь","очная",491,47,85,21,16,0,4,664]
[null,null,"дистанционная",53,0,0,0,0,0,{"$f":"H9+I9","v":0},53]
[null,null,"выездная",0,0,0,0,0,0,{"$f":"H10+I10","v":0},0]
[null,"консультативная помощь","очная",517,131,156,142,13,0,5,964]
[null,null,"дистанционная",32,9,12,1,19,0,2,75]
[null,null,"выездная",2,0,0,0,0,0,0,2]
["Общее количество родителей(законных представителей), обратившихся за помощью  в 1 квартале 2022 г","Количество родителей (з/пр) с детьми, получающими дошкольное образование                 в форме семейного образования"," до 1,5 лет",0,0,0,0,0,0,{"$f":"H14+I14","v":0},0]
[null,null,"от 1,5 до 3 лет",0,0,0,0,0,0,0,0]
[null,null,"от 3 до 7 лет",0,0,0,0,0,0,0,0]
[null,null,"7 лет и старше",0,0,0,0,0,0,0,0]
[null,"Количество родителей (з/пр) детей,  не получающих дошкольное образование","до 1,5 лет",0,0,0,0,0,0,0,0]
[null,null,"от 1,5 до 3 лет",0,0,0,0,0,0,0,0]
[null,null,"от 3 до 7 лет",0,0,0,0,0,0,0,0]
[null,null,"7 лет и старше",0,0,0,0,0,0,0,0]
[null,"Количество родителей (з/пр),  с детьми, получающими дошкольное образование в ДОО","до 1,5 лет",0,0,0,0,0,0,0,0]
[null,null,"от 1,5 до 3 лет",0,0,0,0,0,0,0,0]
[null,null,"от 3 до 7 лет",0,0,0,0,2,0,2,4]
[null,null,"7 лет и старше",0,0,0,0,0,0,0,0]
[null,"Количество родителей (з/пр),  с детьми школьниками, получающими  образование в форме семейного образования","7-11 лет",0,1,0,0,0,0,0,1]
[null,null,"12-15 лет",1,0,2,0,1,0,2,6]
[null,null,"16 лет и старше",0,9,0,1,0,0,3,13]
[null,"Количество родителей (з/пр), обратившихся  с детьми школьниками, получающими  образование в ОО","7-11 лет",52,58,147,34,19,0,{"$f":"H29+I29","v":19},329]
[null,null," 12-15 лет",99,29,198,31,14,0,14,385]
[null,null,"16 лет и старше",45,14,76,7,14,0,14,170]
["Общее количество детей, охваченных услугами в 1 квартале  2022 г","Количество детей, получающих дошкольное образование в семейной форме"," до 1,5 лет",0,0,0,0,0,0,0,0]
[null,null,"от 1,5 до 3 лет",0,0,0,0,0,0,0,0]
[null,null,"от 3 до 7 лет",0,0,0,0,0,0,0,0]
[null,null," 7 лет и старше",0,0,0,0,0,0,0,0]
[null,"Количество детей, не получающих дошкольное образование"," до 1,5 лет",0,0,0,0,0,0,0,0]
[null,null,"от 1,5 до 3 лет",0,0,0,0,0,0,0,0]
[null,null,"от 3 до 7 лет",0,0,0,0,0,0,0,0]
[null,null," 7 лет и старше",0,0,0,0,0,0,0,0]
[null,"Количество детей, получающих дошкольное образование в ДОО","до 1,5 лет",0,0,0,0,0,0,0,0]
[null,null,"от 1,5 до 3 лет",0,0,0,0,0,0,0,0]
[null,null,"от 3 до 7 лет",0,0,0,0,2,0,2,4]
[null,null,"7 лет и старше",0,0,0,0,0,0,0,0]
[null,"Количество детей школьников, получающих образование в семейной форме","7-11 лет",2,3,0,0,0,0,0,5]
[null,null," 12-15 лет",2,6,2,0,4,0,4,18]
[null,null,"16 лет и старше",1,9,1,1,0,0,0,12]
[null,"Количество детей школьников, получающих образование в ОО","7-11 лет",524,37,147,39,31,0,31,809]
[null,null,"12-15 лет",612,83,198,38,25,0,25,981]
[null,null,"16 лет и старше",252,30,75,7,17,0,17,398]

{"sheet":"Конец","index":44,"n_rows":0,"n_cols":0,"rows_kept":0,"cut":false,"hidden":false,"merged":[]}